Workbook

Sheet Ruta
B2: Aliados Red de la Alegría
B3: Activo | C3: # | D3: Ciudad | E3: Canal | F3: Responsable | G3: Cliente | H3: Línea Domicilio | I3: Promoción | J3: Dirección | K3: Nit | L3: Uds Sem 1 | M3: Uds Sem 2 | N3: Uds Sem 3 | O3: Uds Sem 4 | P3: Uds Sem 5 | Q3: Uds Sem 6 | R3: Uds Sem 7 | S3: Uds Sem 8 | T3: Uds Sem 9 | U3: Uds Sem 10 | V3: Uds Sem 11 | W3: Uds Sem 12 | X3: Uds Sem 13 | Y3: Uds Sem 14 | Z3: Uds Sem 15 | AA3: Observación
B4: SI | C4: 1 | D4: La Unión | E4: Supermercado | F4: Jhenny Romero | G4: Supermercado MercaPlaza | H4: 2023491 | I4: Marques 3años Botella + Can Agte | J4: Calle 14 # 15 - 13 | M4: 8 | N4: 6 | O4: 8 | P4: 7 | Q4: 6 | R4: 6 | S4: 8 | T4: 12 | U4: 4 | V4: 3 | W4: 2 | X4: 4 | Y4: 3
B5: SI | C5: =+C4+1 -> 2 | D5: Rozo | E5: Licorera | F5: Katherine Rengifo | G5: Estanco Blanco del Valle | H5: 3122475697 | I5: Marques 3años Botella + Can Agte | J5: Calle 10 # 9A- 29 | L5: =4*12 -> 48 | M5: 48 | N5: 60 | O5: 180 | P5: 360 | Q5: 480 | R5: 360 | S5: 480 | T5: 600 | U5: 360 | V5: 480 | W5: 420 | X5: 144 | Y5: 360
B6: SI | C6: =+C5+1 -> 3 | D6: Guacarí | E6: Mayorista | F6: Katherine Rengifo | G6: Licores Los Paisas | H6: 3216537169 | I6: Marques 3años Botella + Can Agte | J6: Carrera 7 # 4 - 80 | L6: 0 | M6: 36 | N6: 120 | O6: 360 | P6: 360 | Q6: 540 | R6: 600 | S6: 720 | T6: 900 | U6: 600 | V6: 600 | W6: 480 | X6: 252 | Y6: 336
B7: NO | C7: 4 | D7: Valle | E7: Supermercado | F7: Miriam Mejia | G7: SurtiFamiliar | H7: 4873041 | I7: Marques 3años Botella + Can Agte - Marques 3años Botella + Can Marques 3años -Marques Bot 3años P2 x 3 - Marques Can P2 X3 - | M7: 90
B8: NO | C8: 5 | D8: Cali | E8: Supermercado | F8: Miriam Mejia | G8: Supermercados Galerías Plaza | H8: 3041365780 | J8: Cl. 19 Oe. #4 A 11 | M8: 70
B9: NO | C9: 6 | D9: Valle | E9: Supermercado | F9: Miriam Mejia | G9: Confandi | H9: 3176365583 | I9: Marques 3años Botella + Can Agte - Marques 3años Botella + Can Marques 3años -Marques Bot 3años P2 x 3 - Marques Can P2 X3 - | M9: 113
B10: SI | C10: 7 | D10: Cali | E10: Mayorista | F10: Edwin Polanco | G10: Los Paisas de la 44 | H10: 4415918 - 3113078334 | I10: Marques 3años Botella + Can Agte - Marques 3años Botella + Can Marques 3años | J10: calle 44 # 14-62 | L10: 360 | M10: 420 | N10: 396 | O10: 600 | P10: 540 | Q10: 480 | R10: 720 | S10: 660 | T10: 600 | U10: 780 | V10: 2280 | W10: 420 | X10: 480 | Y10: 600
B11: SI | C11: 8 | D11: Cali | E11: Mayorista | F11: Edwin Polanco | G11: Brisas de Juanchito | H11: 6560777 - 3153158897 | I11: Marques 3años Botella + Can Agte - Marques 3años Botella + Can Marques 3años -Marques Bot 3años P2 x 3 - Marques Can P2 X3 | J11: Carrera 8 #72-04 | L11: 480 | M11: 504 | N11: 528 | O11: 1320 | P11: 1200 | Q11: 1200 | R11: 1320 | S11: 1380 | T11: 1200 | U11: 1620 | V11: 1320 | W11: 504 | X11: 1320 | Y11: 1320
B12: SI | C12: 9 | D12: Cali | E12: Mayorista | F12: Edwin Polanco | G12: La 66 | H12: 3314763 - 3176095207 | I12: Marques 3años Botella + Can Agte - Marques 3años Botella + Can Marques 3años -Marques Bot 3años P2 x 3 - Marques Can P2 X3 - Marques 8años + Can 3 años - shot x Bot s,a - 2shock por Garrafa | J12: Carrera 66 #10-12 | L12: 540 | M12: 552 | N12: 576 | O12: 1440 | P12: 1200 | Q12: 1080 | R12: 1140 | S12: 1200 | T12: 1080 | U12: 960 | V12: 600 | W12: 552 | X12: 1140 | Y12: 960
B13: SI | C13: 10 | D13: Cali | E13: Mayorista | F13: Edwin Polanco | G13: Villa del Lago | H13: 6627676 | I13: Marques 3años Botella + Can Agte - Marques 3años Botella + Can Marques 3años | J13: Diagonal 70 # 25e-10 | L13: 300 | M13: 324 | N13: 336 | O13: 780 | P13: 720 | Q13: 780 | R13: 840 | S13: 780 | T13: 780 | U13: 1200 | V13: 1440 | W13: 324 | X13: 780 | Y13: 1200
B14: SI | C14: 11 | D14: Cali | E14: Mayorista | F14: Edwin Polanco | G14: Los Panchos | H14: 6629305 | I14: Marques 3años Botella + Can Agte - Marques 3años Botella + Can Marques 3años | J14: calle 73 # 7tbII2-38 | L14: =26*12 -> 312 | M14: 348 | N14: 360 | O14: 1440 | P14: 1200 | Q14: 1104 | R14: 1200 | S14: 1104 | T14: 1104 | U14: 2760 | V14: 2400 | W14: 348 | X14: 1104 | Y14: 2400
B15: SI | C15: 12 | D15: Cali | E15: Mayorista | F15: Edwin Polanco | G15: La Mayorista | H15: 4416350 | I15: Marques 3años Botella + Can Agte - Marques 3años Botella + Can Marques 3años | J15: Carera 27 dg 28b -93 | L15: 384 | M15: 396 | N15: 408 | O15: 660 | P15: 480 | Q15: 540 | R15: 600 | S15: 540 | T15: 660 | U15: 780 | V15: 600 | W15: 396 | X15: 660 | Y15: 660
B16: SI | C16: 13 | D16: Cali | E16: Mayorista | F16: Edwin Polanco | G16: El Poblado | H16: 4263073 | I16: Marques 3años Botella + Can Agte - Marques 3años Botella + Can Marques 3años - Marques Can P2 X3 | J16: Calle 72u # 28-47 | L16: =26*12 -> 312 | M16: 348 | N16: 348 | O16: 1440 | P16: 1080 | Q16: 1080 | R16: 1140 | S16: 1080 | T16: 1440 | U16: 1680 | V16: 1440 | W16: 348 | X16: 1440 | Y16: 1440
B17: SI | C17: 14 | D17: Cali | E17: Mayorista | F17: Edwin Polanco | G17: Licores La Amistad | H17: 4471825 | I17: Marques 3años Botella + Can Agte - Marques 3años Botella + Can Marques 3años -Marques Bot 3años P2 x 3 - Marques Can P2 X3 - Marques 8años + Can 3 años - shot x Bot s,a - 2shot por Garrafa | J17: Calle 46c # 5-01 | L17: 1200 | M17: 1248 | N17: 1320 | O17: 2160 | P17: 2280 | Q17: 2040 | R17: 2280 | S17: 2280 | T17: 2040 | U17: 1800 | V17: 2160 | W17: 1152 | X17: 2160 | Y17: 2160
B18: SI | C18: 15 | D18: Cali | E18: Mayorista | F18: Edwin Polanco | G18: Los Gemelos | H18: 4489216 | I18: Marques 3años Botella + Can Agte - Marques 3años Botella + Can Marques 3años - Marques Can P2 X3 | J18: Calle 44 # 6n-57 | L18: 720 | M18: 744 | N18: 756 | O18: 1260 | P18: 1320 | Q18: 1200 | R18: 1260 | S18: 1320 | T18: 1320 | U18: 2400 | V18: 1260 | W18: 780 | X18: 1200 | Y18: 2400
B19: SI | C19: 16 | D19: Cali | E19: Mayorista | F19: Edwin Polanco | G19: El amigo de la Noche | H19: App | I19: Marques 3años Botella + Can Agte - Marques 3años Botella + Can Marques 3años -Marques Bot 3años P2 x 3 - Marques Can P2 X3 - Marques 8años + Can 3 años - shot x Bot s,a - 2shock por Garrafa | J19: App | L19: 144 | M19: 144 | N19: 144 | O19: 600 | P19: 600 | Q19: 480 | R19: 480 | S19: 480 | T19: 480 | U19: 1080 | V19: 480 | W19: 1200 | X19: 480 | Y19: 1200
B20: SI | C20: 17 | D20: Cali | E20: Mayorista | F20: Edwin Polanco | G20: La Rebaja | H20: App | I20: Marques 3años Botella + Can Agte - Marques 3años Botella + Can Marques 3años - Marques Can P2 X3 - shock x Bot s,a - 2shot por Garrafa | J20: Carrera 15 #33b-30 | L20: 264 | M20: 264 | N20: 276 | O20: 1200 | P20: 1440 | Q20: 1200 | R20: 1440 | S20: 1440 | T20: 1200 | U20: 840 | V20: 840 | W20: 288 | X20: 1200 | Y20: 840
B21: SI | C21: 18 | D21: Buenaventura | E21: Mayorista | F21: Edwin Polanco | G21: Casablanca | H21: 2433412 | I21: Marques 3años Botella + Can Agte - Marques 3años Botella + Can Marques 3años -Marques Bot 3años P2 x 3 - Marques Can P2 X3 - Marques 8años + Can 3 años | J21: calle 3 # 18-42 | L21: 576 | M21: 576 | N21: 744 | O21: 2244 | P21: 2400 | Q21: 2040 | R21: 2400 | S21: 3600 | T21: 2700 | U21: 3000 | V21: 2400 | W21: 660 | X21: 2040 | Y21: 2040
B22: SI | C22: 19 | D22: Buenaventura | E22: Mayorista | F22: Edwin Polanco | G22: La Rebajona | H22: 2416300 | I22: Marques 3años Botella + Can Agte - Marques 3años Botella + Can Marques 3años | J22: carrera 6 # 4a-54 | L22: 144 | M22: 144 | N22: 168 | O22: 480 | P22: 600 | Q22: 540 | R22: 168 | S22: 780 | T22: 540 | U22: 660 | V22: 480 | W22: 144 | X22: 540 | Y22: 540
B23: SI | C23: 20 | D23: Tuluá | E23: Supermercado | F23: Lina Colonia | G23: Autoservicio Mi Barrio | H23: 312 806 22 21 | J23: Carrera 24 # 36 - 04 | L23: 12 | M23: 14 | N23: 14 | O23: 36 | P23: 30 | Q23: 27 | R23: 36 | S23: 32 | T23: 36 | U23: 21 | V23: 39 | W23: 48 | X23: 40 | Y23: 36
B24: SI | C24: 21 | D24: Tuluá | E24: Mayorista | F24: Lina Colonia | G24: Bodega La Esperanza | H24: 316 253 5816 | I24: Marques 3años Botella + Can Agte -Marques Bot 3años P2 x 3 | J24: Carrera 23 # 29-04 | L24: 72 | M24: 312 | N24: =25*12 -> 300 | O24: =22*12 -> 264 | P24: 250 | Q24: 225 | R24: 230 | S24: 192 | T24: 312 | U24: 228 | V24: 264 | W24: 168 | X24: 230 | Y24: 324
B25: SI | C25: 22 | D25: Tuluá | E25: Mayorista | F25: Lina Colonia | G25: Distribuidora Farallón | H25: 311 334 1151 | I25: Marques 3años Botella + Can Agte | J25: Carrera 22 Calle 28 | L25: 100 | M25: 1560 | N25: =260*12 -> 3120 | O25: =265*12 -> 3180 | P25: 3000 | Q25: 2700 | R25: 3000 | S25: 3200 | T25: 3600 | U25: 2640 | V25: 3060 | W25: 2430 | X25: 2700 | Y25: 2160
B26: SI | C26: 23 | D26: Tuluá | E26: Licorera | F26: Lina Colonia | G26: Licores Junior La 28 | H26: 2320073 | J26: Calle 28 # 22-56 | L26: 36 | M26: 108 | N26: 250 | O26: 250 | P26: 250 | Q26: 225 | R26: 240 | S26: 262 | T26: 264 | U26: 245 | V26: 324 | W26: 300 | X26: 360 | Y26: 384
B27: SI | C27: 24 | D27: Tuluá | E27: Mayorista | F27: Lina Colonia | G27: Distribuidora La Madeja | H27: 317 789 75 09 | I27: Marques 3años Botella + Can Agte | J27: Calle 29 # 22-36 | L27: =9*12 -> 108 | M27: 144 | N27: =14*12 -> 168 | O27: 168 | P27: 170 | Q27: 153 | R27: 165 | S27: 192 | T27: 312 | U27: 228 | V27: 336 | W27: 252 | X27: 384 | Y27: 336
B28: SI | C28: 25 | D28: Buga | E28: Mayorista | F28: Lina Colonia | G28: Distribuidora El Madejón | H28: 310 413 95 50 | I28: Marques 3años Botella + Can Agte - Marques 3años Botella + Can Marques 3años - Marques Can P2 X3 | J28: Calle 9 # 12 - 10 | L28: =15*12 -> 180 | M28: 216 | N28: =90*12 -> 1080 | O28: =80*12 -> 960 | P28: 500 | Q28: 450 | R28: 500 | S28: 620 | T28: 2040 | U28: 1800 | V28: 1560 | W28: 1560 | X28: 1500 | Y28: 1620
B29: SI | C29: 26 | D29: Andalucía | E29: Mayorista | F29: Lina Colonia | G29: Distribuidora Central de Andalucía | H29: 314 761 70 13 | I29: Marques 3años Botella + Can Agte - Marques 3años Botella + Can Marques 3años - Marques Can P2 X3 | J29: Carrera 5 # 12 - 67 | L29: =3*12 -> 36 | M29: 600 | N29: =70*12 -> 840 | O29: =72*12 -> 864 | P29: 700 | Q29: 630 | R29: 750 | S29: 936 | T29: 1980 | U29: 1740 | V29: 1800 | W29: 1620 | X29: 1920 | Y29: 1704
B30: SI | C30: 27 | D30: Tuluá | E30: Mayorista | F30: Lina Colonia | G30: Autoservicio El Campesino | H30: 224 4272 | I30: Marques 3años Botella + Can Agte | J30: Carrera 22 Calle 29 | L30: =5*12 -> 60 | M30: 180 | N30: =18*12 -> 216 | O30: =20*12 -> 240 | P30: 250 | Q30: 225 | R30: 230 | S30: 420 | T30: 468 | U30: 384 | V30: 504 | W30: 300 | X30: 576 | Y30: 420
B31: NO | C31: 28 | D31: Tuluá | E31: Licorera | F31: Lina Colonia | G31: Licorera del Parque | H31: 317 550 3193 | I31: Marques 3años Botella + Can Agte | J31: Calle 25 # 26-15 | L31: 0 | M31: 0
B32: SI | C32: 29 | D32: Trujillo | E32: Licorera | F32: Lina Colonia | G32: Licorera El Alambique | H32: 312 736 9212 | I32: Marques 3años Botella + Can Agte | J32: Carrera 19 # 19-22 | L32: =5*12 -> 60 | M32: 96 | N32: =13*12 -> 156 | O32: =15*12 -> 180 | P32: 160 | Q32: 144 | R32: 155 | S32: 204 | T32: 240 | U32: 240 | V32: 216 | W32: 264 | X32: 240 | Y32: 252
B33: SI | C33: 30 | D33: San Pedro | E33: Mayorista | F33: Lina Colonia | G33: Distribuidora San Pedro | H33: 311 393 5295 | I33: Marques 3años Botella + Can Agte | J33: Calle 5 Parque Principal | L33: =2*12 -> 24 | M33: 36 | N33: 40 | O33: 40 | P33: 180 | Q33: 162 | R33: 175 | S33: 156 | T33: 180 | U33: 144 | V33: 108 | W33: 108 | X33: 132 | Y33: 120
B34: SI | C34: 31 | D34: Tuluá | E34: Supermercado | F34: Lina Colonia | G34: Mauro Market | H34: 323 423 8848 | I34: Botella $36.000, Marques 3años Botella + Can Agte | J34: Calle 34 Carrera 34 | L34: 6 | M34: 12 | N34: 12 | O34: 12 | P34: 12 | Q34: 10 | R34: 12 | S34: 16 | T34: 16 | U34: 12 | V34: 8 | W34: 16 | X34: 10 | Y34: 17
B35: SI | C35: 32 | D35: Tuluá | E35: Licorera | F35: Lina Colonia | G35: Licores El Estanco | H35: 305 372 46 39 | J35: Transv 12 # 24-46 | L35: =4*12 -> 48 | M35: 144 | N35: =14*12 -> 168 | O35: =15*12 -> 180 | P35: 170 | Q35: 153 | R35: 175 | S35: 192 | T35: 216 | U35: 180 | V35: 192 | W35: 228 | X35: 240 | Y35: 264
B36: SI | C36: 33 | D36: Buga | E36: Licorera | F36: Lina Colonia | G36: Licores La 4ta Avenida | H36: 3167142019 | I36: Marques 3años Botella + Can Agte -Marques Bot 3años P2 x 3 - Marques 8años + Can 3 años | J36: Calle 4 # 6 - 06 | L36: =30*12 -> 360 | M36: 840 | N36: =90*12 -> 1080 | O36: =100*12 -> 1200 | P36: 1200 | Q36: 1080 | R36: 1200 | S36: 840 | T36: 1440 | U36: 1320 | V36: 1560 | W36: 1700 | X36: 1440 | Y36: 1500
B37: SI | C37: 34 | D37: Cali | E37: TAT | F37: Ana Rosa Lopera | G37: Supermercado Tarzan | H37: 3143874179 | I37: Marques 3años Botella + Can Agte | J37: Carrera 82 #5-97 | K37: 901235591 | L37: 0 | M37: 20 | N37: 11 | O37: 15 | P37: 21 | Q37: 14 | R37: 18 | S37: 20 | T37: 94 | U37: 123 | V37: 120 | W37: 97 | X37: 103 | Y37: 103
B38: NO | C38: 35 | D38: Cali | E38: TAT | F38: Ana Rosa Lopera | G38: Miscelanea Viejo Willi | H38: 3298558 | I38: Marques 3años Botella + Can Agte | J38: Sector alabama la buitrera | K38: 16587698 | L38: 0 | M38: 0 | N38: 5 | O38: 0 | P38: 0 | Q38: 0 | R38: 0
B39: SI | C39: 36 | D39: Cali | E39: TAT | F39: Ana Rosa Lopera | G39: Licores La Perla | H39: 5216031 | I39: Marques 3años Botella + Can Agte | J39: Polvorines vía ppal | K39: 1032363617 | L39: 0 | M39: 20 | N39: 25 | O39: 30 | P39: 21 | Q39: 28 | R39: 30 | S39: 36 | T39: 41 | U39: 85 | V39: 104 | W39: 123 | X39: 278 | Y39: 278
B40: NO | C40: 37 | D40: Cali | E40: TAT | F40: Ana Rosa Lopera | G40: Licores Martha | H40: 1130669277 | I40: Marques 3años Botella + Can Agte | J40: Carrera 39 #46-10 | K40: 1130669277 | L40: 0 | M40: 0 | N40: 0
B41: SI | C41: 38 | D41: Cali | E41: TAT | F41: Ana Rosa Lopera | G41: Licores Helen | H41: 3022491892 | I41: Marques 3años Botella + Can Agte | J41: Carrera 25 #19-02 | K41: 31971928 | L41: 20 | M41: 0 | N41: 18 | O41: 50 | P41: 35 | Q41: 35 | R41: 38 | S41: 48 | T41: 123 | U41: 188 | V41: 225 | W41: 195 | X41: 240 | Y41: 310
B42: SI | C42: 39 | D42: Cali | E42: TAT | F42: Ana Rosa Lopera | G42: Mini Market 7 | H42: 3134661206 | I42: Marques 3años Botella + Can Agte | J42: Calle 7 #31-09 | K42: 1088006300 | L42: 0 | M42: 0 | N42: 17 | O42: 21 | P42: 14 | Q42: 7 | R42: 10 | S42: 14 | T42: 135 | U42: 83 | V42: 90 | W42: 70 | X42: 95 | Y42: 95
B43: SI | C43: 40 | D43: Cali | E43: TAT | F43: Ana Rosa Lopera | G43: Alvaro Prado | H43: 4207110 | I43: Marques 3años Botella + Can Agte | J43: Carrera 26 u #122=94 | K43: 94300252 | L43: 0 | M43: 0 | N43: 20 | O43: 21 | P43: 28 | Q43: 21 | R43: 26 | S43: 50 | T43: 54 | U43: 125 | V43: 96 | W43: 113 | X43: 135 | Y43: 135
B44: SI | C44: 41 | D44: Cali | E44: TAT | F44: Ana Rosa Lopera | G44: Carlos Lopez | H44: 4201897 | I44: Marques 3años Botella + Can Agte | J44: Carrera 25 c # 123-01 | K44: 70829838 | L44: 0 | M44: 0 | N44: 21 | O44: 30 | P44: 28 | Q44: 28 | R44: 26 | S44: 44 | T44: 177 | U44: 60 | V44: 66 | W44: 46 | X44: 115 | Y44: 230
B45: NO | C45: 42 | D45: Cali | E45: TAT | F45: Ana Rosa Lopera | G45: Licores El Calidoso | H45: 4056996 | I45: Marques 3años Botella + Can Agte | J45: Carrera 26L 123 06 | K45: 16833231 | L45: 0 | M45: 0 | N45: 0
B46: SI | C46: 43 | D46: Cali | E46: TAT | F46: Ana Rosa Lopera | G46: Granero y Estanco Martinez | H46: 4306553 | I46: Marques 3años Botella + Can Agte | J46: Carrera 4 A #60 - 82 | K46: 42116594 | L46: 10 | M46: 0 | N46: 9 | O46: 21 | P46: 21 | Q46: 14 | R46: 18 | S46: 51 | T46: 80 | U46: 75 | V46: 81 | W46: 88 | X46: 80 | Y46: 80
B47: NO | C47: 44 | D47: Cali | E47: TAT | F47: Ana Rosa Lopera | G47: Grupo Empresarial JF | H47: 5529929 | I47: Marques 3años Botella + Can Agte | J47: Carrera 95 # 3-20 | K47: 901133087 | L47: 0 | M47: 0 | N47: 0
B48: NO | C48: 45 | D48: Cali | E48: TAT | F48: Ana Rosa Lopera | G48: Giovanny Molina | H48: 4035308 | I48: Marques 3años Botella + Can Agte | J48: Carrera 94 A # 2 A 102 | K48: 4722270 | L48: 0 | M48: 0 | N48: 0
B49: SI | C49: 46 | D49: Cali | E49: TAT | F49: Ana Rosa Lopera | G49: Supertienda Carvajal | H49: 3015493138 | I49: Marques 3años Botella + Can Agte | J49: Calle 13 # 34 - 33 | K49: 1144040229 | L49: 0 | M49: 0 | N49: 5 | O49: 7 | P49: 14 | Q49: 7 | R49: 8 | S49: 12 | T49: 95 | U49: 105 | V49: 116 | W49: 72 | X49: 145 | Y49: 145
B50: SI | C50: 47 | D50: Cali | E50: TAT | F50: Ana Rosa Lopera | G50: Licores La Sucursal | H50: 4482670 | I50: Marques 3años Botella + Can Agte | J50: Calle 44 #5-26 | K50: 1107103712 | L50: 0 | M50: 0 | N50: 9 | O50: 15 | P50: 21 | Q50: 28 | R50: 25 | S50: 38 | T50: 24 | U50: 90 | V50: 88 | W50: 133 | X50: 320 | Y50: 320
B51: NO | C51: 48 | D51: Cali | E51: TAT | F51: Ana Rosa Lopera | G51: Richard Cundar Benavides | H51: 3153399094 | J51: Cll54#47-05 | K51: 1082657940 | L51: 0 | M51: 0 | N51: 0
B52: SI | C52: 49 | D52: Cali | E52: TAT | F52: Ana Rosa Lopera | G52: Mercaplaza Mariano | H52: 374330575 | I52: Marques 3años Botella + Can Agte | J52: CLL 46 # 49-03 | K52: 1143836583 | L52: 0 | M52: 0 | N52: 0 | O52: 0 | P52: 0 | Q52: 0 | R52: 14 | S52: 12 | T52: 12 | U52: 4 | V52: 6 | W52: 0 | X52: 0 | Y52: 0
B53: NO | C53: 50 | D53: Cali | E53: TAT | F53: Ana Rosa Lopera | G53: Licores Yeya | H53: 3178465387 | I53: Marques 3años Botella + Can Agte | J53: CR 49A # 43-85 | K53: 51693168 | L53: 0 | M53: 0 | N53: 0
B54: NO | C54: 51 | D54: Cali | E54: TAT | F54: Ana Rosa Lopera | G54: supermercado Marce | H54: 3113684406 | I54: Marques 3años Botella + Can Agte | J54: CLL 83C # 20-74 | K54: 44007376 | L54: 0 | M54: 0 | N54: 0
B55: NO | C55: 52 | D55: Cali | E55: TAT | F55: Ana Rosa Lopera | G55: Granero Rey | H55: 3750248 | I55: Marques 3años Botella + Can Agte | J55: CLL 81A # 22-134 | K55: 94399540 | L55: 0 | M55: 0 | N55: 0
B56: SI | C56: 53 | D56: Cali | E56: TAT | F56: Ana Rosa Lopera | G56: supermercado Nuevo Progreso | H56: 3760861 | I56: Marques 3años Botella + Can Agte | J56: CR 34 # 26A-03 | K56: 15905205 | L56: 0 | M56: 0 | N56: 12 | O56: 15 | P56: 21 | Q56: 14 | R56: 14 | S56: 14 | T56: 9 | U56: 8 | V56: 4 | W56: 8 | X56: 0 | Y56: 6
B57: SI | C57: 54 | D57: Cali | E57: TAT | F57: Ana Rosa Lopera | G57: Rapitienda Caldas | H57: 3137974910 | I57: Marques 3años Botella + Can Agte | J57: CLL 26A # 38-09 | K57: 79887872 | L57: 0 | M57: 0 | N57: 10 | O57: 15 | P57: 0 | Q57: 14 | R57: 14 | S57: 14 | T57: 12 | U57: 8 | V57: 6 | W57: 12 | X57: 0 | Y57: 10
B58: NO | C58: 55 | D58: Cali | E58: TAT | F58: Ana Rosa Lopera | G58: Supermercado El Oasis | H58: 4469845 | I58: Marques 3años Botella + Can Agte | J58: CR 7N # 67N-42 | K58: 4485384 | L58: 0 | M58: 0 | N58: 0
B59: SI | C59: 56 | D59: Cali | E59: TAT | F59: Ana Rosa Lopera | G59: Nicolas Elias | H59: 6662306 | I59: Marques 3años Botella + Can Agte | J59: AV 3 E # 47C-20 | K59: 71371926 | L59: 0 | M59: 20 | N59: 10 | O59: 15 | P59: 21 | Q59: 0 | R59: 7 | S59: 7 | T59: 8 | U59: 6 | V59: 6 | W59: 6 | X59: 6 | Y59: 0
B60: SI | C60: 57 | D60: Cali | E60: TAT | F60: Ana Rosa Lopera | G60: Minarket 1000 y Mas | H60: 3178814634 | I60: Marques 3años Botella + Can Agte | J60: CLL 44N # 3-111 | K60: 16943799 | L60: 0 | M60: 0 | N60: 10 | O60: 15 | P60: 21 | Q60: 14 | R60: 14 | S60: 14 | T60: 10 | U60: 5 | V60: 5 | W60: 8 | X60: 8 | Y60: 0
B61: SI | C61: 58 | D61: Cali | E61: TAT | F61: Ana Rosa Lopera | G61: Brandon Carvajal | H61: 3136372746 | I61: Marques 3años Botella + Can Agte | J61: CLL 27 # 41C-37 | K61: 1107074996 | L61: 0 | M61: 0 | N61: 10 | O61: 0 | P61: 0 | Q61: 0 | R61: 0 | T61: 15 | U61: 15 | V61: 18 | W61: 10 | X61: 0 | Y61: 8
B62: SI | C62: 59 | D62: Cali | E62: TAT | F62: Ana Rosa Lopera | G62: Carolina Espinosa | H62: 3132614285 | I62: Marques 3años Botella + Can Agte | J62: CR 67 # 1A 0STE 07 | K62: 38644553 | L62: 0 | M62: 20 | N62: 7 | O62: 0 | P62: 0 | Q62: 0 | R62: 0 | T62: 4 | U62: 5 | V62: 12 | W62: 0 | X62: 0 | Y62: 3
B63: SI | C63: 60 | D63: Cali | E63: TAT | F63: Ana Rosa Lopera | G63: Licores Los Cerros | H63: 3204796646 | I63: Marques 3años Botella + Can Agte | J63: CLL1 #69-44 | K63: 94543390 | L63: 0 | M63: 20 | N63: 11 | O63: 0 | P63: 0 | Q63: 0 | R63: 21 | S63: 21 | T63: 2 | U63: 20 | V63: 15 | W63: 20 | X63: 0 | Y63: 48
B64: SI | C64: 61 | D64: Cali | E64: TAT | F64: Ana Rosa Lopera | G64: La Rebajona | H64: 3734192 | I64: Marques 3años Botella + Can Agte | J64: CL 14A 53 03 | K64: 9855053 | L64: 0 | M64: 2 | N64: 2 | O64: 3 | P64: 7 | Q64: 7 | R64: 7 | S64: 4 | T64: 12 | U64: 5 | V64: 6 | W64: 6 | X64: 6 | Y64: 6
B65: NO | C65: 62 | D65: Cali | E65: TAT | F65: Ana Rosa Lopera | G65: Willian Urrea | H65: 3776919 | I65: Marques 3años Botella + Can Agte | J65: Kra 44 # 18 32 | K65: 10115498 | L65: 0 | M65: 2 | N65: 0 | O65: 0
B66: SI | C66: 63 | D66: Cali | E66: TAT | F66: Ana Rosa Lopera | G66: Licores El Baratisimo | H66: 4339595 | I66: Marques 3años Botella + Can Agte | J66: Kra 1 kn # 80 74 | K66: 1118296911 | L66: 2 | M66: 0 | N66: 12 | O66: 3 | P66: 7 | Q66: 7 | R66: 14 | S66: 14 | T66: 12 | U66: 12 | V66: 10 | W66: 0 | X66: 8 | Y66: 12
B67: NO | C67: 64 | D67: Cali | E67: TAT | F67: Ana Rosa Lopera | G67: Licores El Progreso | H67: 3185227444 | I67: Marques 3años Botella + Can Agte | J67: Kra 1D # 74 25 | L67: 0 | M67: 0 | N67: 0 | O67: 0 | P67: 0
B68: SI | C68: 65 | D68: Cali | E68: TAT | F68: Ana Rosa Lopera | G68: Marco Tulio Giraldo | H68: 4333355 | I68: Marques 3años Botella + Can Agte | J68: Cl 76A # 1D 03 | K68: 70830067 | L68: 0 | M68: 0 | N68: 9 | O68: 3 | P68: 7 | Q68: 7 | R68: 7 | S68: 7 | T68: 10 | U68: 12 | V68: 12 | W68: 6 | X68: 10 | Y68: 6
B69: SI | C69: 66 | D69: Cali | E69: TAT | F69: Ana Rosa Lopera | G69: Licores Sanchez | H69: 3184662902 | I69: Marques 3años Botella + Can Agte | J69: Kra 27 # 33 E 39 | K69: 66818508 | L69: 0 | M69: 0 | N69: 12 | O69: 3 | P69: 7 | Q69: 7 | R69: 0 | S69: 7 | T69: 20 | U69: 10 | V69: 6 | W69: 6 | X69: 0 | Y69: 20
B70: SI | C70: 67 | D70: Cali | E70: TAT | F70: Ana Rosa Lopera | G70: Granero El Buen Precio | H70: 4412666 | I70: Marques 3años Botella + Can Agte | J70: CLL 34 # 25A-03 | K70: 6162317 | L70: 0 | M70: 0 | N70: 9 | O70: 3 | P70: 7 | Q70: 7 | R70: 5 | S70: 7 | T70: 5 | U70: 6 | V70: 6 | W70: 6 | X70: 2 | Y70: 0
B71: NO | C71: 68 | D71: Cali | E71: TAT | F71: Ana Rosa Lopera | G71: Clara Esperanza Ardila | H71: 4441530 | I71: Marques 3años Botella + Can Agte | J71: Kra 24# 43 65 | K71: 31272995 | L71: 0 | M71: 0 | N71: 0 | P71: 0
B72: NO | C72: 69 | D72: Cali | E72: TAT | F72: Ana Rosa Lopera | G72: Licores Las Morochas | H72: 4454407 | I72: Marques 3años Botella + Can Agte | J72: CL 50# 28 A 28 | K72: 41474010 | L72: 0 | M72: 0 | N72: 0 | P72: 0
B73: SI | C73: 70 | D73: Cali | E73: TAT | F73: Ana Rosa Lopera | G73: Licores La Abundancia | H73: 3154673318 | I73: Marques 3años Botella + Can Agte | J73: CL 72B# 28D3- 123 | K73: 31988790 | L73: 0 | M73: 0 | N73: 12 | O73: 3 | P73: 7 | Q73: 0 | R73: 7 | S73: 5 | T73: 8 | U73: 12 | V73: 5 | W73: 4 | X73: 5 | Y73: 6
B74: NO | C74: 71 | D74: Cali | E74: TAT | F74: Ana Rosa Lopera | G74: Campo Alegre | H74: 3174705696 | I74: Marques 3años Botella + Can Agte | J74: CL 12 OESTE #36-42 | K74: 967023320 | L74: 0 | M74: 2 | N74: 0
B75: SI | C75: 72 | D75: Cali | E75: TAT | F75: Ana Rosa Lopera | G75: Tienda Rojo y Verde | H75: 3113630033 | I75: Marques 3años Botella + Can Agte | J75: oeste santa teresita, Av. 2 Oe | K75: 16713789 | L75: 0 | M75: 0 | N75: 11 | O75: 0 | P75: 0 | Q75: 0 | R75: 7 | S75: 7 | T75: 12 | U75: 6 | V75: 8 | W75: 2 | X75: 0 | Y75: 0
B76: SI | C76: 73 | D76: Poblado Campestre | E76: TAT | F76: Ana Rosa Lopera | G76: Tienda y Licores Mas Barato | H76: 3006673631 | I76: Marques 3años Botella + Can Agte | J76: MANZANA 28 CASA 22-05 | K76: 1130679015 | L76: 0 | M76: 2 | N76: 5 | O76: 3 | P76: 7 | Q76: 0 | R76: 7 | S76: 3 | T76: 16 | U76: 0 | V76: 3 | W76: 16 | X76: 0 | Y76: 12
B77: SI | C77: 74 | D77: Poblado Campestre | E77: TAT | F77: Ana Rosa Lopera | G77: Minimarket El Majo | H77: 3174559610 | I77: Marques 3años Botella + Can Agte | J77: Calle 22 con carrera 41 oeste, manzana 30 casa 24, | K77: 66993437 | L77: 0 | M77: 4 | N77: 2 | O77: 3 | P77: 7 | Q77: 0 | R77: 3 | S77: 3 | T77: 0 | U77: 0 | V77: 6 | W77: 12 | X77: 0 | Y77: 10
B78: SI | C78: =+C77+1 -> 75 | D78: Poblado Campestre | E78: TAT | F78: Ana Rosa Lopera | G78: Rendimercado Las 2 Palmas | H78: 3122879341 | I78: Marques 3años Botella + Can Agte | J78: Carrera 4 #9-09 | K78: 10389034 | L78: 0 | M78: 0 | N78: 4 | O78: 3 | P78: 7 | Q78: 0 | R78: 0 | S78: 7 | T78: 8 | U78: 0 | V78: 2 | W78: 15 | X78: 0 | Y78: 14
B79: NO | C79: 76 | D79: Cali | E79: TAT | F79: Ana Rosa Lopera | G79: Rapitienda Leonardo | H79: 3122765236 | I79: Marques 3años Botella + Can Agte | J79: Cll 1oeste #52-380 | K79: 67013451 | L79: 0 | M79: 0 | N79: 0
B80: NO | C80: 77 | D80: Cali | E80: TAT | F80: Ana Rosa Lopera | G80: Rancho y Llicores El Regalon | H80: 5528043 | I80: Marques 3años Botella + Can Agte | J80: Dg 51 #4oeste 47 | K80: 94507583 | L80: 0 | M80: 0 | N80: 0
B81: NO | C81: 78 | D81: Cali | E81: TAT | F81: Ana Rosa Lopera | G81: Rapitienda Rivera Express | H81: 3153169323 | I81: Marques 3años Botella + Can Agte | J81: Cra 54 cll1d esquina | K81: 66983025 | L81: 0 | M81: 0 | N81: 3 | O81: 0 | P81: 0 | Q81: 0 | R81: 0
B82: NO | C82: 79 | D82: Cali | E82: TAT | F82: Ana Rosa Lopera | G82: Mercatoño | H82: 5523530 | I82: Marques 3años Botella + Can Agte | J82: Dg 50 oeste 5 119 | K82: 1130591583 | L82: 0 | M82: 4 | N82: 3 | O82: 0 | P82: 0 | Q82: 0 | R82: 3 | S82: 0 | U82: 0 | V82: 0
B83: NO | C83: 80 | D83: Cali | E83: TAT | F83: Ana Rosa Lopera | G83: Rapitienda El Sol | H83: 5524171 | I83: Marques 3años Botella + Can Agte | J83: Cra 39 2 37 | K83: 94517200 | L83: 0 | M83: 4 | N83: 2 | O83: 0 | P83: 0 | Q83: 0 | R83: 0
B84: NO | C84: 81 | D84: Cali | E84: TAT | F84: Ana Rosa Lopera | G84: Rapiexpress | H84: 5132654 | I84: Marques 3años Botella + Can Agte | J84: Cra 55 6a09 | K84: 31220703 | L84: 0 | M84: 0 | N84: 0
B85: SI | C85: 82 | D85: Cali | E85: TAT | F85: Ana Rosa Lopera | G85: Autoservicio y Panadería Caribe | H85: 5136160 | I85: Marques 3años Botella + Can Agte | J85: Cra 56 1.ª 16 oeste | K85: 6102380 | L85: 0 | M85: 0 | N85: 2 | O85: 3 | P85: 7 | Q85: 0 | R85: 0 | S85: 3 | T85: 0 | U85: 5 | V85: 6 | W85: 5 | X85: 3 | Y85: 0
B86: NO | C86: 83 | D86: Cali | E86: TAT | F86: Ana Rosa Lopera | G86: Autoservicio El Único | H86: 3157691554 | I86: Marques 3años Botella + Can Agte | J86: Mz D casa 24 sector la sirena | K86: 1117016699 | L86: 0 | M86: 0 | N86: 0
B87: NO | C87: 84 | D87: Cali | E87: TAT | F87: Ana Rosa Lopera | G87: Merca Bien | H87: 3122226944 | I87: Marques 3años Botella + Can Agte | J87: Mz D casa 24 sector la sirena | K87: 1117016699 | L87: 0 | M87: 0 | N87: 0
B88: SI | C88: 85 | D88: Cali | E88: TAT | F88: Ana Rosa Lopera | G88: Supermercado La Ganguita | H88: 4468365 | I88: Marques 3años Botella + Can Agte | J88: Cra 1c4 64A 14 bloque 15 | K88: 12985122 | L88: 0 | M88: 0 | N88: 3 | O88: 3 | P88: 7 | Q88: 0 | R88: 0 | S88: 3 | T88: 5 | U88: 5 | V88: 7 | W88: 5 | X88: 3 | Y88: 3
B89: NO | C89: 86 | D89: Cali | E89: TAT | F89: Ana Rosa Lopera | G89: Supermercado Mega Líder | H89: 3726226 | I89: Marques 3años Botella + Can Agte | J89: Cll 66 1bis 70 | K89: 6548730 | L89: 0 | M89: 0 | N89: 0
B90: NO | C90: 87 | D90: Cali | E90: TAT | F90: Ana Rosa Lopera | G90: Megalider Veracruz | H90: 3217340706 | I90: Marques 3años Botella + Can Agte | J90: Cra 1b1 58.ª 09 | K90: 1130656816 | L90: 4 | M90: 0 | N90: 0
B91: NO | C91: 88 | D91: Cali | E91: TAT | F91: Ana Rosa Lopera | G91: Autoservicio El Vencedor | H91: 3780230 | I91: Marques 3años Botella + Can Agte | J91: CR 25b 25 05 | K91: 31987561 | L91: 0 | M91: 0 | N91: 4 | O91: 0 | P91: 0 | Q91: 0 | R91: 0
B92: SI | C92: 89 | D92: Cali | E92: TAT | F92: Ana Rosa Lopera | G92: Rapitienda La Esperanza | H92: 3137849701 | I92: Marques 3años Botella + Can Agte | J92: Cll 27 29b 18 | K92: 38671009 | L92: 0 | M92: 0 | N92: 4 | O92: 7 | P92: 14 | Q92: 0 | R92: 0 | S92: 3 | T92: 5 | U92: 3 | V92: 3 | W92: 5 | X92: 3 | Y92: 3
B93: NO | C93: 90 | D93: Cali | E93: TAT | F93: Ana Rosa Lopera | G93: Granero el Progreso | H93: 3348473 | I93: Marques 3años Botella + Can Agte | J93: CR 31.ª 34 02 | K93: 15903476 | L93: 0 | M93: 0 | N93: 0
B94: NO | C94: 91 | D94: Cali | E94: TAT | F94: Ana Rosa Lopera | G94: Estanco Medallo | H94: 3937543 | I94: Marques 3años Botella + Can Agte | J94: Cll 112 27g 24 | K94: 16759330 | L94: 0 | M94: 0 | N94: 0
B95: NO | C95: 92 | D95: Cali | E95: TAT | F95: Ana Rosa Lopera | G95: Autoservicio Monterrey | H95: 4205905 | I95: Marques 3años Botella + Can Agte | J95: CR 43.ª 56b07 | K95: 94192456 | L95: 0 | M95: 0 | N95: 0
B96: SI | C96: 93 | D96: Cali | E96: TAT | F96: Ana Rosa Lopera | G96: El Rebajon | H96: 5579626 | I96: Marques 3años Botella + Can Agte | J96: Cll 9e 22a12 | K96: 9850773 | L96: 0 | M96: 2 | N96: 6 | O96: 3 | P96: 0 | Q96: 3 | R96: 0 | S96: 8 | T96: 5 | U96: 5 | V96: 0 | W96: 6 | X96: 5 | Y96: 0
B97: NO | C97: 94 | D97: Cali | E97: TAT | F97: Ana Rosa Lopera | G97: Minimarket La Fortuna | H97: 3207002704 | I97: Marques 3años Botella + Can Agte | J97: CL 10 # 18-61 | K97: 16712936 | L97: 0 | M97: 0 | N97: 0
B98: SI | C98: 95 | D98: Cali | E98: TAT | F98: Ana Rosa Lopera | G98: Minimarket Matecaña | H98: 5582197 | I98: Marques 3años Botella + Can Agte | J98: CR 23 12.ª 03 | K98: 98391364 | L98: 0 | M98: 0 | N98: 0 | O98: 0 | P98: 0 | T98: 3 | U98: 3 | V98: 2 | W98: 12 | X98: 3 | Y98: 0
B99: NO | C99: 96 | D99: Tulua | E99: Supermercado | F99: Lina Colonia | G99: Tulua Centro Surtifamiliar | H99: 3108461826 | I99: Marques 3años Botella + Can Agte - Marques 3años Botella + Can Marques 3años -Marques Bot 3años P2 x 3 - Marques Can P2 X3 - | J99: CRA 21N° 25 – 76 | M99: 30
B100: NO | C100: 97 | D100: Tulua | E100: Supermercado | F100: Lina Colonia | G100: Tulua Porveir Surtifamiliar | H100: 3207178634 | I100: Marques 3años Botella + Can Agte - Marques 3años Botella + Can Marques 3años -Marques Bot 3años P2 x 3 - Marques Can P2 X3 - | J100: DIAG. 23N° 9 – 28 | M100: 18
B101: NO | C101: 98 | D101: Buga | E101: Supermercado | F101: Lina Colonia | G101: Buga Centro Surtifamiliar | H101: 3108461821 | I101: Marques 3años Botella + Can Agte - Marques 3años Botella + Can Marques 3años -Marques Bot 3años P2 x 3 - Marques Can P2 X3 - | J101: CRA 12N° 8 – 34 | M101: 24
B102: NO | C102: 99 | D102: Buga | E102: Supermercado | F102: Lina Colonia | G102: Buga Valle real Surtifamiliar | H102: 3108497538 | I102: Marques 3años Botella + Can Agte - Marques 3años Botella + Can Marques 3años -Marques Bot 3años P2 x 3 - Marques Can P2 X3 - | J102: CRA 30N° 12 – 64 | M102: 24
B103: NO | C103: 100 | D103: Guacarí | E103: Supermercado | F103: Lina Colonia | G103: Guacari Surtifamiliar | H103: 3202545256 | I103: Marques 3años Botella + Can Agte - Marques 3años Botella + Can Marques 3años -Marques Bot 3años P2 x 3 - Marques Can P2 X3 - | J103: CRA 7 N° 6 – 52
B104: NO | C104: 101 | D104: Cerrito | E104: Supermercado | F104: Katherine Rengifo | G104: SurtiFamiliar | H104: 3113580948 | I104: Marques 3años Botella + Can Agte - Marques 3años Botella + Can Marques 3años -Marques Bot 3años P2 x 3 - Marques Can P2 X3 - | J104: CALLE 8N° 13 – 52 | M104: 24
B105: NO | C105: 102 | D105: Vijes | E105: Supermercado | F105: Miriam Mejia | G105: SurtiFamiliar | H105: 3207162674 | I105: Marques 3años Botella + Can Agte - Marques 3años Botella + Can Marques 3años -Marques Bot 3años P2 x 3 - Marques Can P2 X3 - | J105: CALLE 7 N°4 – 80 ESQUINA
B106: NO | C106: 103 | D106: Acopi | E106: Supermercado | F106: Miriam Mejia | G106: SurtiFamiliar | H106: 3136709023 | I106: Marques 3años Botella + Can Agte - Marques 3años Botella + Can Marques 3años -Marques Bot 3años P2 x 3 - Marques Can P2 X3 - | J106: CRA 40N° 12A – 237
B107: NO | C107: 104 | D107: Alcazres | E107: Supermercado | F107: Miriam Mejia | G107: SurtiFamiliar | H107: 3206931192 | I107: Marques 3años Botella + Can Agte - Marques 3años Botella + Can Marques 3años -Marques Bot 3años P2 x 3 - Marques Can P2 X3 - | J107: CRA 1A5N° 71 – 46
B108: NO | C108: 105 | D108: Alameda | E108: Supermercado | F108: Miriam Mejia | G108: SurtiFamiliar | H108: 3217007997 | I108: Marques 3años Botella + Can Agte - Marques 3años Botella + Can Marques 3años -Marques Bot 3años P2 x 3 - Marques Can P2 X3 - | J108: CL 9 B 23 C 65
B109: NO | C109: 106 | D109: Caney | E109: Supermercado | F109: Miriam Mejia | G109: SurtiFamiliar | H109: 3216249142 | I109: Marques 3años Botella + Can Agte - Marques 3años Botella + Can Marques 3años -Marques Bot 3años P2 x 3 - Marques Can P2 X3 - | J109: CALLE 48N° – 83E ESQUINA
B110: NO | C110: 107 | D110: Cali | E110: Supermercado | F110: Miriam Mejia | G110: comfandi Guadalupe | H110: 3176365583 | I110: Marques 3años Botella + Can Agte - Marques 3años Botella + Can Marques 3años -Marques Bot 3años P2 x 3 - Marques Can P2 X3 - | J110: Cl. 10 ##56,
B111: NO | C111: 108 | D111: Cali | E111: Supermercado | F111: Miriam Mejia | G111: comfandi torres | H111: 3184153685 | I111: Marques 3años Botella + Can Agte - Marques 3años Botella + Can Marques 3años -Marques Bot 3años P2 x 3 - Marques Can P2 X3 - | J111: Cra. 1 #56-20
B112: NO | C112: 109 | D112: Cali | E112: Supermercado | F112: Miriam Mejia | G112: comfandi san fernando | H112: 3174284930 | I112: Marques 3años Botella + Can Agte - Marques 3años Botella + Can Marques 3años -Marques Bot 3años P2 x 3 - Marques Can P2 X3 - | J112: Cra. 36 #68
B113: NO | C113: 110 | D113: Cali | E113: Supermercado | F113: Miriam Mejia | G113: super A | H113: 3172930374 | J113: oeste santa teresita, Av. 2 Oe
B114: SI | C114: 111 | D114: Cartago | E114: Mayorista | F114: Jhenny Romero | G114: Garces | H114: 2133333 | J114: Carrera 4 # 19-38 | L114: 36 | M114: 38 | N114: 20 | O114: 30 | P114: 46 | Q114: 66 | R114: 60 | S114: 96 | T114: 136 | U114: 100 | V114: 90 | W114: 90 | X114: 100 | Y114: 100
B115: SI | C115: 112 | D115: Zarzal | E115: Mayorista | F115: Jhenny Romero | G115: Cigarrería La Andina | H115: 3152228870 | I115: Marques 3años Botella + Can Agte | J115: Calle 9 # 8 - 76 | L115: 50 | M115: 60 | N115: 10 | O115: 50 | P115: 66 | Q115: 75 | R115: 66 | S115: 120 | T115: 200 | U115: 120 | V115: 120 | W115: 110 | X115: 36 | Y115: 50
B116: SI | C116: 113 | D116: Cartago | E116: Mayorista | F116: Jhenny Romero | G116: Licores Raulette | H116: 2125411 | I116: Marques 3años Botella + Can Agte | J116: Carrera 4 # 11-30 | L116: 120 | M116: 90 | N116: 60 | O116: 75 | P116: 80 | Q116: 90 | R116: 86 | S116: 120 | T116: 200 | U116: 115 | V116: 120 | W116: 120 | X116: 100 | Y116: 90
B117: SI | C117: 114 | D117: La Unión | E117: Licorera | F117: Jhenny Romero | G117: Estanquillo La 16 | H117: 2292935 | I117: Marques 3años Botella + Can Agte | J117: Carrera 16 # 17 - 44 | L117: 36 | M117: 40 | N117: 45 | O117: 36 | P117: 48 | Q117: 60 | R117: 70 | S117: 92 | T117: 145 | U117: 100 | V117: 96 | W117: 90 | X117: 80 | Y117: 80
B118: SI | C118: 115 | D118: Roldanillo | E118: Mayorista | F118: Jhenny Romero | G118: Estanquillo Muñoz | H118: 2297172 | I118: Marques 3años Botella + Can Agte - Marques 3años Botella + Can Marques 3años -Marques Bot 3años P2 x 3 - Marques Can P2 X3 - Marques 8años + Can 3 años | J118: Calle 8 # 7 - 67 | L118: 24 | M118: 35 | N118: 36 | O118: 24 | P118: 60 | Q118: 84 | R118: 68 | S118: 136 | T118: 180 | U118: 110 | V118: 120 | W118: 120 | X118: 120 | Y118: 100
B119: SI | C119: 116 | D119: Cartago | E119: Mayorista | F119: Jhenny Romero | G119: Comercializadora Don Jimmy | H119: 2139099 | I119: Marques 3años Botella + Can Agte - Marques 3años Botella + Can Marques 3años -Marques Bot 3años P2 x 3 - Marques Can P2 X3 - Marques 8años + Can 3 años | J119: Carrera / # 11-51 | L119: 60 | M119: 80 | N119: 300 | O119: 250 | P119: 300 | Q119: 400 | R119: 280 | S119: 480 | T119: 600 | U119: 420 | V119: 400 | W119: 500 | X119: 480 | Y119: 500
B120: NO | C120: 117 | D120: Alcalá | E120: Licorera | F120: Jhenny Romero | G120: Distribuciones El Imán | H120: 3113183498 | I120: Marques 3años Botella + Can Agte | J120: Calle 5 # 8-36 | L120: 10 | M120: 18 | N120: 20 | O120: 10 | P120: 12 | Q120: 20 | R120: 3
B121: SI | C121: 118 | D121: Cartago | E121: Mayorista | F121: Jhenny Romero | G121: Saloon Licores | H121: 3175131166 | I121: Marques 3años Botella + Can Agte | J121: Calle 10 # 15 - 20 | L121: 120 | M121: 120 | N121: 80 | O121: 60 | P121: 90 | Q121: 100 | R121: 75 | S121: 90 | T121: 120 | U121: 120 | V121: 120 | W121: 120 | X121: 135 | Y121: 120
B122: SI | C122: 119 | D122: Palmira | E122: Mayorista | F122: Katherine Rengifo | G122: Licores Palmira | H122: 2859975-3218677680 | I122: Marques 3años Botella + Can Agte - Marques 3años Botella + Can Marques 3años -Marques Bot 3años P2 x 3 - Marques Can P2 X3 - Marques 8años + Can 3 años | J122: Calle 31 # 37 - 56 | L122: =15*12 -> 180 | M122: 204 | N122: 300 | O122: 600 | P122: 720 | Q122: 960 | R122: 1200 | S122: 1800 | T122: 3000 | U122: 2400 | V122: 3000 | W122: 2400 | X122: 1200 | Y122: 3600
B123: SI | C123: 120 | D123: El Placer | E123: Mayorista | F123: Katherine Rengifo | G123: Granero Los Paisas | H123: 3173171258-2548145 | I123: Marques 3años Botella + Can Agte | J123: Carrera 8 # 6 -12 | L123: =6*12 -> 72 | M123: 84 | N123: 80 | O123: 144 | P123: 240 | Q123: 300 | R123: 300 | S123: 360 | T123: 540 | U123: 360 | V123: 360 | W123: 300 | X123: 180 | Y123: 300
B124: SI | C124: 121 | D124: Cerrito | E124: Licorera | F124: Katherine Rengifo | G124: Estanco Punto Blanco | H124: 3146620834 | I124: Marques 3años Botella + Can Agte | J124: Calle 7 # 12 - 08 | L124: =4*12 -> 48 | M124: 72 | N124: 84 | O124: 120 | P124: 240 | Q124: 240 | R124: 300 | S124: 300 | T124: 420 | U124: 300 | V124: 420 | W124: 360 | X124: 120 | Y124: 360
B125: SI | C125: 122 | D125: Pradera | E125: Licorera | F125: Katherine Rengifo | G125: El Barril de la 6 | H125: 3163471484-2670572-3187944106 | I125: Marques 3años Botella + Can Agte | J125: Calle 6 # 11-03 | L125: =10*12 -> 120 | M125: 156 | N125: 156 | O125: 480 | P125: 600 | Q125: 840 | R125: 840 | S125: 1080 | T125: 1320 | U125: 600 | V125: 420 | W125: 840 | X125: 300 | Y125: 432
B126: SI | C126: 123 | D126: Pradera | E126: Supermercado | F126: Katherine Rengifo | G126: Mercapava | H126: 2834030 | I126: Marques 3años Botella + Can Agte | J126: Calle 7 # 9-59 | M126: 120 | N126: 115 | O126: 180 | P126: 120 | Q126: 300 | R126: 420 | S126: 600 | T126: 720 | U126: 480 | V126: 300 | W126: 360 | X126: 96 | Y126: 360
B127: SI | C127: 124 | D127: Candelaria | E127: Mayorista | F127: Katherine Rengifo | G127: Estanco y Dulcería Los Paisas | H127: 3136518541 | I127: Marques 3años Botella + Can Agte | J127: Carrera 7 # 4-80 | L127: =8*12 -> 96 | M127: 100 | N127: 120 | O127: 240 | P127: 276 | Q127: 240 | R127: 240 | S127: 360 | T127: 540 | U127: 360 | V127: 360 | W127: 300 | X127: 144 | Y127: 348
B128: SI | C128: 125 | D128: Florida | E128: Mayorista | F128: Katherine Rengifo | G128: Distribuidora Cordillera Central | H128: 3117666820 | J128: Carrera 14 # 8 - 61 | L128: 0 | M128: 36 | N128: 48 | O128: 72 | P128: 72 | Q128: 120 | R128: 180 | S128: 180 | T128: 240 | U128: 180 | V128: 180 | W128: 240 | X128: 72 | Y128: 120
B129: SI | C129: 126 | D129: Palmira | E129: Supermercado | F129: Katherine Rengifo | G129: Supermercado La Gran Colombia | H129: 3004377555 | I129: Marques 3años Botella + Can Agte | J129: Carrera 28 # 66A - 86 | M129: 36 | N129: 70 | O129: 156 | P129: 24 | Q129: 24 | R129: 24 | S129: 24 | T129: 72 | U129: 24 | V129: 24 | W129: 12 | X129: 12 | Y129: 24
B130: SI | C130: 127 | D130: Palmira | E130: Supermercado | F130: Katherine Rengifo | G130: SuperInter La Cometa | H130: 3113775927 | I130: Marques 3años Botella + Can Agte | J130: Carrera 19 # 42A - 23 | M130: 48 | N130: 72 | O130: 120 | P130: 72 | Q130: 120 | R130: 120 | S130: 120 | T130: 180 | U130: 120 | V130: 180 | W130: 120 | X130: 120 | Y130: 144
B131: NO | C131: 128 | D131: Palmira | E131: Supermercado | F131: Katherine Rengifo | G131: SuperInter Centro | H131: 3215638563 | I131: Marques 3años Botella + Can Agte | J131: Calle31 # 27 - 37 | M131: 48 | N131: 60 | O131: 120 | P131: 72 | Q131: 120 | R131: 0 | S131: 0 | T131: 0
B132: SI | C132: 129 | D132: Palmira | E132: Supermercado | F132: Katherine Rengifo | G132: Olimpica Versalles | H132: 2896657 | I132: Marques 3años Botella + Can Agte | J132: Calle 42 # 28 Esquina | M132: 36 | N132: 48 | O132: 204 | P132: 60 | Q132: 180 | R132: 120 | S132: 180 | T132: 240 | U132: 180 | V132: 180 | W132: 120 | X132: 120 | Y132: 144
B133: SI | C133: 130 | D133: Tuluá | E133: Mayorista | F133: Lina Colonia | G133: Distri Jota SAS | H133: (2) 224 9488 | I133: Marques 3años Botella + Can Agte | J133: Calle 29 # 22-23 | M133: 96 | N133: =7*12 -> 84 | O133: =8*12 -> 96 | P133: 85 | Q133: 77 | R133: 80 | S133: 84 | T133: 132 | U133: 108 | V133: 132 | W133: 96 | X133: 108 | Y133: 120
B134: SI | C134: 131 | D134: Tuluá | E134: Mayorista | F134: Lina Colonia | G134: Depósito La Ganga | H134: (2) 225 7742 | I134: Marques 3años Botella + Can Agte | J134: Carrera 22 # 28 - 49 | L134: =8*12 -> 96 | M134: 480 | N134: =22*12 -> 264 | O134: =25*12 -> 300 | P134: 250 | Q134: 225 | R134: 270 | S134: 384 | T134: 372 | U134: 300 | V134: 336 | W134: 228 | X134: 360 | Y134: 336
B135: SI | C135: 132 | D135: Tuluá | E135: Mayorista | F135: Lina Colonia | G135: Cacharrería yDist. JM | H135: 318 369 2722 | I135: Marques 3años Botella + Can Agte | M135: 72 | N135: =4*12 -> 48 | O135: =5*12 -> 60 | P135: 40 | Q135: 36 | R135: 36 | S135: 32 | T135: 47 | U135: 32 | V135: 60 | W135: 18 | X135: 12 | Y135: 0
B136: SI | C136: 133 | D136: Tuluá | E136: Mayorista | F136: Lina Colonia | G136: Almacén Ossa | H136: 317 513 4129 | I136: Marques 3años Botella + Can Agte | J136: Carrera 22 # 29A - 04 | M136: 108 | N136: =12*12 -> 144 | O136: 144 | P136: 180 | Q136: 168 | R136: 170 | S136: 192 | T136: 216 | U136: 204 | V136: 180 | W136: 144 | X136: 220 | Y136: 228
B137: NO | C137: 134 | D137: Buga | E137: Mayorista | F137: Lina Colonia | G137: Licores La Cuarta | H137: 316 714 2019 | I137: Marques 3años Botella + Can Agte | J137: Calle 4 # 6-06
B138: SI | C138: 135 | D138: Restrepo | E138: Mayorista | F138: Lina Colonia | G138: Los Paisas | H138: 321 482 7231 | I138: Marques 3años Botella + Can Agte | J138: Carrera 10 # 9-50 Plaza de mercado | M138: 156 | N138: 160 | O138: 160 | P138: =20*12 -> 240 | Q138: 226 | R138: 220 | S138: 204 | T138: 240 | U138: 228 | V138: 264 | W138: 192 | X138: 288 | Y138: 240
B139: SI | C139: 136 | D139: Buga | E139: Mayorista | F139: Lina Colonia | G139: Depóstito El Triunfo | H139: (2) 227 1824 | I139: Marques 3años Botella + Can Agte | J139: Calle 21 # 12-59 | M139: 204 | N139: =20*12 -> 240 | O139: =22*12 -> 264 | P139: 264 | Q139: 240 | R139: 260 | S139: 252 | T139: 336 | U139: 264 | V139: 236 | W139: 288 | X139: 360 | Y139: 300
B140: SI | C140: 137 | D140: Palmira | E140: Mayorista | F140: Katherine Rengifo | G140: Miscelanea La Unión | H140: 3157030966 - 2836460 | I140: Marques 3años Botella + Can Agte | J140: cra 25 #27-44 | P140: 360 | Q140: 420 | R140: 360 | S140: 720 | T140: 720 | U140: 480 | V140: 504 | W140: 420 | X140: 240 | Y140: 300
B141: SI | C141: 138 | D141: Cali | E141: TAT | F141: Ana Rosa Lopera | G141: Luz marina zuluaga | H141: 3207412307 | I141: Marques 3años Botella + Can Agte | J141: AV 15 OESTE # 7 03 | K141: 31523227 | O141: 7 | P141: 7 | Q141: 7 | R141: 0 | S141: 0 | T141: 12 | U141: 5 | V141: 5 | W141: 6 | X141: 7 | Y141: 12
B142: SI | C142: =+C141+1 -> 139 | D142: Cali | E142: TAT | F142: Ana Rosa Lopera | G142: Ramon giraldo | H142: 3113754878 | I142: Marques 3años Botella + Can Agte | J142: CLL 12 OESTE # 39-06 | K142: 94422261 | O142: 3 | P142: 7 | Q142: 7 | R142: 5 | S142: 10 | T142: 2 | U142: 2 | V142: 0 | W142: 0 | X142: 0 | Y142: 0
B143: NO | C143: 140 | D143: Cali | E143: TAT | F143: Ana Rosa Lopera | G143: Victor mosquera | H143: 6622328 | I143: Marques 3años Botella + Can Agte | J143: CL 72A # 7B BIS 09 | K143: 166659803 | O143: 0 | P143: 0 | Q143: 0 | R143: 6 | S143: 0 | T143: 0 | U143: 0 | V143: 0
B144: SI | C144: 141 | D144: Cali | E144: TAT | F144: Ana Rosa Lopera | G144: Doly hortencia | H144: 5514843 | I144: Marques 3años Botella + Can Agte | J144: CR 40A # 9C 20 | K144: 66814208 | O144: 3 | P144: 0 | Q144: 3 | R144: 7 | S144: 3 | T144: 4 | U144: 0 | V144: 5 | W144: 15 | X144: 0 | Y144: 5
B145: SI | C145: 142 | D145: Cali | E145: TAT | F145: Ana Rosa Lopera | G145: Jonny salazar giraldo | H145: 3117636936 | I145: Marques 3años Botella + Can Agte | J145: CLL 13 # 47 04 | K145: 1038405574 | O145: 3 | P145: 7 | Q145: 3 | R145: 3 | S145: 7 | T145: 8 | U145: 6 | V145: 7 | W145: 9 | X145: 0 | Y145: 8
B146: SI | C146: 143 | D146: Cali | E146: TAT | F146: Ana Rosa Lopera | G146: Carlos alberto lopez | H146: 5531616 | I146: Marques 3años Botella + Can Agte | J146: CR 47A # 10-83 | K146: 15429690 | O146: 7 | P146: 0 | Q146: 7 | R146: 7 | S146: 3 | T146: 8 | U146: 4 | V146: 8 | W146: 19 | X146: 0 | Y146: 12
B147: SI | C147: 144 | D147: Cali | E147: TAT | F147: Ana Rosa Lopera | G147: Yakeline ospina | H147: 3053624703 | I147: Marques 3años Botella + Can Agte | J147: CLL 52A # 29B 17 | K147: 1144176021 | O147: 3 | P147: 3 | Q147: 3 | R147: 0 | S147: 0 | T147: 5 | U147: 8 | V147: 8 | W147: 5 | X147: 0 | Y147: 7
B148: SI | C148: 145 | D148: Cali | E148: TAT | F148: Ana Rosa Lopera | G148: Jaime ocampo valencia | H148: 3103953082 | I148: Marques 3años Botella + Can Agte | J148: CLL 51 # 29A 118 | K148: 1058844991 | O148: 3 | P148: 0 | Q148: 3 | R148: 7 | S148: 5 | T148: 8 | U148: 9 | V148: 6 | W148: 8 | X148: 0 | Y148: 6
B149: SI | C149: 146 | D149: Cali | E149: TAT | F149: Ana Rosa Lopera | G149: Jesus antonio barles | H149: 3931110 | I149: Marques 3años Botella + Can Agte | J149: CR 32A # 51A 20 | K149: 3493913 | O149: 7 | P149: 3 | Q149: 0 | R149: 3 | S149: 6 | T149: 9 | U149: 8 | V149: 3 | W149: 5 | X149: 0 | Y149: 9
B150: SI | C150: 147 | D150: Cali | E150: TAT | F150: Ana Rosa Lopera | G150: Ciro solis | H150: 3217534183 | I150: Marques 3años Botella + Can Agte | J150: CR 29B # 46 00 | K150: 1144137846 | O150: 3 | P150: 3 | Q150: 0 | R150: 3 | S150: 4 | T150: 4 | U150: 4 | V150: 7 | W150: 6 | X150: 0 | Y150: 4
B151: SI | C151: 148 | D151: Cali | E151: TAT | F151: Ana Rosa Lopera | G151: Jaime jaramillo | H151: 3146940159 | I151: Marques 3años Botella + Can Agte | J151: CR 29 B # 40 99 | K151: 1107514677 | O151: 7 | P151: 0 | Q151: 0 | R151: 3 | S151: 4 | T151: 0 | U151: 6 | V151: 3 | W151: 7 | X151: 0 | Y151: 5
B152: SI | C152: 149 | D152: Cali | E152: TAT | F152: Ana Rosa Lopera | G152: Carlos alberto lopez | H152: 3137671699 | I152: Marques 3años Botella + Can Agte | J152: CLL 49# 8A 23 | K152: 16681943 | O152: 14 | P152: 21 | Q152: 0 | R152: 3 | S152: 0 | T152: 3 | U152: 0 | V152: 1 | W152: 2 | X152: 2 | Y152: 0
B153: SI | C153: 150 | D153: Cali | E153: TAT | F153: Ana Rosa Lopera | G153: Olga pelaez | H153: 4337053 | I153: Marques 3años Botella + Can Agte | J153: CLL 71C # 3BN 70 | K153: 29185357 | O153: 14 | P153: 21 | Q153: 0 | R153: 0 | S153: 0 | T153: 10 | U153: 5 | V153: 6 | W153: 4 | X153: 3 | Y153: 0
B154: SI | C154: 151 | D154: Cali | E154: TAT | F154: Ana Rosa Lopera | G154: Alba nora | H154: 3207552888 | I154: Marques 3años Botella + Can Agte | J154: CLL 45 # 98A 28 | K154: 66978222 | O154: 14 | P154: 21 | Q154: 0 | R154: 6 | S154: 7 | T154: 12 | U154: 0 | V154: 0 | W154: 3 | X154: 3 | Y154: 0
B155: SI | C155: 152 | D155: Cali | E155: TAT | F155: Ana Rosa Lopera | G155: Diliana españa | H155: 3162451945 | I155: Marques 3años Botella + Can Agte | J155: CR 83C # 48 223 | K155: 1144084729 | O155: 14 | P155: 21 | Q155: 0 | R155: 3 | S155: 7 | T155: 8 | U155: 0 | V155: 3 | W155: 5 | X155: 3 | Y155: 0
B156: SI | C156: 153 | D156: Cali | E156: TAT | F156: Ana Rosa Lopera | G156: Supermercado aranjuez | H156: 3722002 | I156: Marques 3años Botella + Can Agte | J156: CR 23 15B 44 | K156: 1130598374 | O156: 0 | P156: 3 | Q156: 0 | R156: 7 | S156: 5 | T156: 6 | U156: 0 | V156: 3 | W156: 0 | X156: 2 | Y156: 0
B157: SI | C157: 154 | D157: Cali | E157: TAT | F157: Ana Rosa Lopera | G157: Licores sarasty | H157: 3104156267 | I157: Marques 3años Botella + Can Agte | J157: CLL 58A 1B 06 | K157: 16796483 | O157: 3 | P157: 7 | Q157: 0 | R157: 5 | S157: 8 | T157: 10 | U157: 5 | V157: 8 | W157: 5 | X157: 36 | Y157: 0
B158: SI | C158: 155 | D158: Cali | E158: TAT | F158: Ana Rosa Lopera | G158: Licores baratillo | H158: 3187914323 | I158: Marques 3años Botella + Can Agte | J158: CR 26U # 122 94 | K158: 94300252 | O158: 21 | P158: 28 | Q158: 21 | R158: 6 | S158: 21 | T158: 56 | U158: 125 | V158: 68 | W158: 60 | X158: 135 | Y158: 135
B159: SI | C159: 156 | D159: Cali | E159: TAT | F159: Ana Rosa Lopera | G159: Giovanny duque | H159: 3153471142 | I159: Marques 3años Botella + Can Agte | J159: CR 23 12.ª 03 | K159: 98391364 | O159: 0 | P159: 0 | Q159: 0 | R159: 3 | S159: 5 | T159: 8 | U159: 3 | V159: 0 | W159: 12 | X159: 3 | Y159: 0
B160: SI | C160: 157 | D160: Cali | E160: TAT | F160: Ana Rosa Lopera | G160: Dulceria y licores JL | H160: 3218729505 | I160: Marques 3años Botella + Can Agte | J160: CLL 11 # 8 19 | K160: 1113522977 | O160: 0 | P160: 0 | Q160: 21 | R160: 25 | S160: 23 | T160: 25 | U160: 0 | V160: 8 | W160: 15 | X160: 0 | Y160: 50
B161: SI | C161: 158 | D161: Palmira | E161: Mayorista | F161: Katherine Rengifo | G161: miscelanea San Agustin | H161: 2734001 | I161: Marques 3 años + caneca agte-marques botella pague 2 lleve 3 - marques caneca 3 años pague 2 lleve 3 | J161: Cra 28 # 35 - 43 | N161: 60 | O161: 120 | P161: 216 | Q161: 240 | R161: 300 | S161: 360 | T161: 600 | U161: 360 | V161: 360 | W161: 348 | X161: 120 | Y161: 480
B162: SI | C162: 159 | D162: Ginebra | E162: Mayorista | F162: Katherine Rengifo | G162: Estanco Luz | H162: 2561280 | I162: Marques 3 años + caneca agte-marques botella pague 2 lleve 3 - marques caneca 3 años pague 2 lleve 3 | J162: Calle 4 # 3 - 58 | N162: 12 | O162: 120 | P162: 120 | Q162: 180 | R162: 192 | S162: 240 | T162: 360 | U162: 276 | V162: 348 | W162: 288 | X162: 120 | Y162: 180
B163: SI | C163: 160 | D163: Villagorgona | E163: Mayorista | F163: Katherine Rengifo | G163: Comercializadora La Berraquera | H163: 2607952 | I163: oferta ron marques 3 años + caneca de aguardiente | J163: Calle 16 # 10 - 16 | O163: 120 | P163: 180 | Q163: 300 | R163: 360 | S163: 420 | T163: 600 | U163: 420 | V163: 480 | W163: 540 | X163: 264 | Y163: 480
B164: SI | C164: 161 | D164: Buga | E164: Mayorista | F164: Lina Colonia | G164: Licores La 21 | H164: 316 7156198 | J164: Calle 21 # 13 - 04 | O164: 24 | P164: 24 | Q164: 24 | R164: 24 | S164: 21 | T164: 28 | U164: 24 | V164: 26 | W164: 24 | X164: 24 | Y164: 28
B165: SI | C165: 162 | D165: Buga | E165: Mayorista | F165: Lina Colonia | G165: Licores Estambul | H165: 316 6154526 | J165: Calle 11 # 11-18 | R165: 90 | S165: 114 | T165: 132 | U165: 120 | V165: 88 | W165: 96 | X165: 72 | Y165: 60
B166: SI | C166: 163 | D166: Buga | E166: Mayorista | F166: Lina Colonia | G166: Distrikopas | S166: 84 | T166: 108 | U166: 84 | V166: 96 | W166: 72 | X166: 144 | Y166: 132
B167: SI | C167: 164 | D167: La Paila | E167: Mayorista | F167: Jhenny Romero | G167: Miscelanea Melany | H167: 3022880752 | J167: Carrera 4 # 12-61 | T167: 60 | U167: 60 | V167: 45 | W167: 50 | X167: 20 | Y167: 24
B168: SI | C168: 165 | D168: Alcalá | E168: Mayorista | F168: Jhenny Romero | G168: Rapitienda Ruta del Café | H168: 3147628822 | J168: Carrera 8 # 5-17 | T168: 60 | U168: 45 | V168: 40 | W168: 48 | X168: 50 | Y168: 45
B169: SI | C169: 166 | D169: Cali | E169: TAT | F169: Ana Rosa Lopera | G169: Autoservicio Monterrey | H169: 4205905 | J169: Carrera 27 # 96- 259 | K169: 17673977 | X169: 0 | Y169: 0 | AA169: NUEVO
B170: SI | C170: 167 | D170: Cali | E170: TAT | F170: Ana Rosa Lopera | G170: Tienda y Licores Alejo | H170: 3178187438 | J170: Cra 1a5 - # 76 -05 | K170: 16535715 | X170: 0 | Y170: 0 | AA170: NUEVO
B171: SI | C171: 168 | D171: Cali | E171: TAT | F171: Ana Rosa Lopera | G171: Arnaldo Monte. Super Tienda la sorpresa | H171: 4412223 | J171: cra 15 # 35 -19 | K171: 94489212 | X171: 0 | Y171: 0 | AA171: NUEVO
B172: SI | C172: 169 | D172: Cali | E172: TAT | F172: Ana Rosa Lopera | G172: Carlos Gonzales Supermerke valle del lili | H172: 3480941 | J172: cra 91 # 42 - 111 | K172: 1144097848 | X172: 5 | Y172: 0 | AA172: NUEVO
B173: SI | C173: 170 | D173: Cali | E173: TAT | F173: Ana Rosa Lopera | G173: comercialziadora el gangazo | H173: 8895541 | J173: calle 23 # 11- 03 | K173: 901295269 | X173: 0 | Y173: 10 | AA173: NUEVO
B174: SI | C174: 171 | D174: Cali | E174: TAT | F174: Ana Rosa Lopera | G174: Duque Garcia alirio - Tienda Mixta | H174: 3122232832 | J174: cra 42 # 26 b 68 | K174: 70353049 | X174: 0 | Y174: 0 | AA174: NUEVO
B175: SI | C175: 172 | D175: Cali | E175: TAT | F175: Ana Rosa Lopera | G175: Edgar Andres Bedoya cano - Licores la 22 | H175: 3167405422 | J175: cra 22 # 1 - 44 | K175: 94486415 | X175: 0 | Y175: 0 | AA175: NUEVO
B176: SI | C176: 173 | D176: Cali | E176: TAT | F176: Ana Rosa Lopera | G176: Torres jirafa alonso de jesus - Tienda la 75 | H176: 3238702 | J176: cra 75 # 1bis 45oeste | K176: 16738410 | X176: 0 | Y176: 0 | AA176: NUEVO
B177: SI | C177: 174 | D177: Cali | E177: TAT | F177: Ana Rosa Lopera | G177: Lopez Yepes Juan franciso - Miscelanea Yepes | H177: 3073246 | J177: cra 70 # 2b - 06 | K177: 94251074 | X177: 0 | Y177: 0 | AA177: NUEVO
B178: SI | C178: 175 | D178: Cali | E178: TAT | F178: Ana Rosa Lopera | G178: Daza Mercado eviliana - Tienda mixta | H178: 3174386915 | J178: Av 7 n # 53 -01 | K178: 1130676973 | X178: 0 | Y178: 0 | AA178: NUEVO
B179: SI | C179: 176 | D179: Cali | E179: TAT | F179: Ana Rosa Lopera | G179: Cocha Aide - Licores Dila | H179: 3104254005 | J179: calle 102g - # 23 - 100 | K179: 48570066 | X179: 0 | Y179: 0 | AA179: NUEVO
B180: SI | C180: 177 | D180: Cali | E180: TAT | F180: Ana Rosa Lopera | G180: Jurado Guzman Carlos Andres - Tienda la Mona | H180: 3005082848 | J180: calle 10 oeste #2a - 16 | K180: 94064783 | X180: 0 | Y180: 0 | AA180: NUEVO
B181: SI | C181: 178 | D181: Cali | E181: TAT | F181: Ana Rosa Lopera | G181: Widelmar mafla - Tienda la Familia | H181: 3116092604 | J181: cra 3a 0este # 9- 270 | K181: 94453297 | X181: 0 | Y181: 0 | AA181: NUEVO
B182: SI | C182: 179 | D182: Cali | E182: TAT | F182: Ana Rosa Lopera | G182: Robledo Garcia Lina Maria Licores JM | H182: 3182222546 | J182: CRA 13 #5-23 | K182: 66914653 | X182: 0 | Y182: 0 | AA182: NUEVO
B183: SI | C183: 180 | D183: Cali | E183: TAT | F183: Ana Rosa Lopera | G183: Nlfy Fonseca Polo | H183: 3206540970 | J183: cra 6 N 42 a 03 | K183: 40772818 | X183: 90 | Y183: 90 | AA183: NUEVO
B184: SI | C184: 181 | D184: Tuluá | E184: Licorera | F184: Lina Colonia | G184: Licores VIP | H184: 3216605343 | J184: Calle 40 # 24 - 78 | AA184: NUEVO

Sheet Resumen
B2: Volumen en unidades de 750cc
B3: Red Aliados de la Alegría
B4: Equipo | C4: Responsable | D4: Celuar | E4: Zona | F4: Canal | G4: # Aliados | H4: Vol Sem 1 | I4: Vol Sem 2 | J4: Vol Sem 3 | K4: Vol Sem 4 | L4: Vol Sem 5 | M4: Vol Sem 6 | N4: Vol Sem 7 | O4: Vol Sem 8 | P4: Vol Sem 9 | Q4: Vol Sem 10 | R4: Vol Sem 11 | S4: Vol Sem 12 | T4: Vol Sem 13 | U4: Vol Sem 14 | V4: Vol Sem 15
B5: Lider Cadenas | C5: Ana Rosa Lopera | D5: 3223929958 | E5: Valle | F5: Supermercado | G5: 4 | I5: =+Ruta!M7+Ruta!M8+Ruta!M9 -> 273 | J5: =+Ruta!N7+Ruta!N8+Ruta!N9 -> 0 | K5: =+Ruta!O7+Ruta!O8+Ruta!O9 -> 0 | L5: =+Ruta!P7+Ruta!P8+Ruta!P9 -> 0 | M5: =+Ruta!Q7+Ruta!Q8+Ruta!Q9 -> 0 | N5: =+Ruta!R7+Ruta!R8+Ruta!R9 -> 0 | O5: =+Ruta!S7+Ruta!S8+Ruta!S9 -> 0 | P5: =+Ruta!T7+Ruta!T8+Ruta!T9 -> 0 | Q5: =+Ruta!U7+Ruta!U8+Ruta!U9 -> 0 | R5: =+Ruta!V7+Ruta!V8+Ruta!V9 -> 0 | S5: =+Ruta!W7+Ruta!W8+Ruta!W9 -> 0 | T5: =+Ruta!X7+Ruta!X8+Ruta!X9 -> 0 | U5: =+Ruta!Y7+Ruta!Y8+Ruta!Y9 -> 0 | V5: =+Ruta!AA7+Ruta!AA8+Ruta!AA9 -> 0
B6: Lider Mayorista | C6: Edwin Polanco | D6: 3234918326 | E6: Cali | F6: Mayoristas | G6: 13 | H6: 2,916 | I6: =+Ruta!M10+Ruta!M11+Ruta!M12+Ruta!M13+Ruta!M14+Ruta!M15+Ruta!M16+Ruta!M17+Ruta!M18+Ruta!M19+Ruta!M20 -> 5,292 | J6: =+Ruta!N10+Ruta!N11+Ruta!N12+Ruta!N13+Ruta!N14+Ruta!N15+Ruta!N16+Ruta!N17+Ruta!N18+Ruta!N19+Ruta!N20 -> 5,448 | K6: =+Ruta!O10+Ruta!O11+Ruta!O12+Ruta!O13+Ruta!O14+Ruta!O15+Ruta!O16+Ruta!O17+Ruta!O18+Ruta!O19+Ruta!O20 -> 12,900 | L6: =+Ruta!P10+Ruta!P11+Ruta!P12+Ruta!P13+Ruta!P14+Ruta!P15+Ruta!P16+Ruta!P17+Ruta!P18+Ruta!P19+Ruta!P20 -> 12,060 | M6: =+Ruta!Q10+Ruta!Q11+Ruta!Q12+Ruta!Q13+Ruta!Q14+Ruta!Q15+Ruta!Q16+Ruta!Q17+Ruta!Q18+Ruta!Q19+Ruta!Q20 -> 11,184 | N6: =+Ruta!R10+Ruta!R11+Ruta!R12+Ruta!R13+Ruta!R14+Ruta!R15+Ruta!R16+Ruta!R17+Ruta!R18+Ruta!R19+Ruta!R20 -> 12,420 | O6: =+Ruta!S10+Ruta!S11+Ruta!S12+Ruta!S13+Ruta!S14+Ruta!S15+Ruta!S16+Ruta!S17+Ruta!S18+Ruta!S19+Ruta!S20 -> 12,264 | P6: =+Ruta!T10+Ruta!T11+Ruta!T12+Ruta!T13+Ruta!T14+Ruta!T15+Ruta!T16+Ruta!T17+Ruta!T18+Ruta!T19+Ruta!T20 -> 11,904 | Q6: =+Ruta!U10+Ruta!U11+Ruta!U12+Ruta!U13+Ruta!U14+Ruta!U15+Ruta!U16+Ruta!U17+Ruta!U18+Ruta!U19+Ruta!U20 -> 15,900 | R6: =+Ruta!V10+Ruta!V11+Ruta!V12+Ruta!V13+Ruta!V14+Ruta!V15+Ruta!V16+Ruta!V17+Ruta!V18+Ruta!V19+Ruta!V20 -> 14,820 | S6: =+Ruta!W10+Ruta!W11+Ruta!W12+Ruta!W13+Ruta!W14+Ruta!W15+Ruta!W16+Ruta!W17+Ruta!W18+Ruta!W19+Ruta!W20 -> 6,312 | T6: =+Ruta!X10+Ruta!X11+Ruta!X12+Ruta!X13+Ruta!X14+Ruta!X15+Ruta!X16+Ruta!X17+Ruta!X18+Ruta!X19+Ruta!X20 -> 11,964 | U6: =+Ruta!Y10+Ruta!Y11+Ruta!Y12+Ruta!Y13+Ruta!Y14+Ruta!Y15+Ruta!Y16+Ruta!Y17+Ruta!Y18+Ruta!Y19+Ruta!Y20 -> 15,180 | V6: =+Ruta!AA10+Ruta!AA11+Ruta!AA12+Ruta!AA13+Ruta!AA14+Ruta!AA15+Ruta!AA16+Ruta!AA17+Ruta!AA18+Ruta!AA19+Ruta!AA20 -> 0
B7: Lider Zona | C7: Henry Arbelaez | D7: 3152536672 | E7: BuenaVentura | F7: Mayoristas | G7: 2 | H7: 204 | I7: =+Ruta!M21+Ruta!M22 -> 720 | J7: =+Ruta!N21+Ruta!N22 -> 912 | K7: =+Ruta!O21+Ruta!O22 -> 2,724 | L7: =+Ruta!P21+Ruta!P22 -> 3,000 | M7: =+Ruta!Q21+Ruta!Q22 -> 2,580 | N7: =+Ruta!R21+Ruta!R22 -> 2,568 | O7: =+Ruta!S21+Ruta!S22 -> 4,380 | P7: =+Ruta!T21+Ruta!T22 -> 3,240 | Q7: =+Ruta!U21+Ruta!U22 -> 3,660 | R7: =+Ruta!V21+Ruta!V22 -> 2,880 | S7: =+Ruta!W21+Ruta!W22 -> 804 | T7: =+Ruta!X21+Ruta!X22 -> 2,580 | U7: =+Ruta!Y21+Ruta!Y22 -> 2,580 | V7: =+Ruta!AA21+Ruta!AA22 -> 0
B8: Líder Zona | C8: Jhenny Romero | D8: 3147936241 | E8: Norte | F8: Licorera | G8: 2 | H8: 46 | I8: =+Ruta!M117+Ruta!M120 -> 58 | J8: =+Ruta!N117+Ruta!N120 -> 65 | K8: =+Ruta!O117+Ruta!O120 -> 46 | L8: =+Ruta!P117+Ruta!P120 -> 60 | M8: =+Ruta!Q117+Ruta!Q120 -> 80 | N8: =+Ruta!R117+Ruta!R120 -> 73 | O8: =+Ruta!S117+Ruta!S120 -> 92 | P8: =+Ruta!T117+Ruta!T120 -> 145 | Q8: =+Ruta!U117+Ruta!U120 -> 100 | R8: =+Ruta!V117+Ruta!V120 -> 96 | S8: =+Ruta!W117+Ruta!W120 -> 90 | T8: =+Ruta!X117+Ruta!X120 -> 80 | U8: =+Ruta!Y117+Ruta!Y120 -> 80 | V8: =+Ruta!AA117+Ruta!AA120 -> 0
B9: Líder Zona | C9: Jhenny Romero | D9: 3147936241 | E9: Norte | F9: Mayorista | G9: 8 | H9: 410 | I9: =+Ruta!M114+Ruta!M115+Ruta!M116+Ruta!M118+Ruta!M119+Ruta!M121 -> 423 | J9: =+Ruta!N114+Ruta!N115+Ruta!N116+Ruta!N118+Ruta!N119+Ruta!N121 -> 506 | K9: =+Ruta!O114+Ruta!O115+Ruta!O116+Ruta!O118+Ruta!O119+Ruta!O121 -> 489 | L9: =+Ruta!P114+Ruta!P115+Ruta!P116+Ruta!P118+Ruta!P119+Ruta!P121 -> 642 | M9: =+Ruta!Q114+Ruta!Q115+Ruta!Q116+Ruta!Q118+Ruta!Q119+Ruta!Q121 -> 815 | N9: =+Ruta!R114+Ruta!R115+Ruta!R116+Ruta!R118+Ruta!R119+Ruta!R121 -> 635 | O9: =+Ruta!S114+Ruta!S115+Ruta!S116+Ruta!S118+Ruta!S119+Ruta!S121 -> 1,042 | P9: =+Ruta!T114+Ruta!T115+Ruta!T116+Ruta!T118+Ruta!T119+Ruta!T121+Ruta!T167+Ruta!T168 -> 1,556 | Q9: =+Ruta!U114+Ruta!U115+Ruta!U116+Ruta!U118+Ruta!U119+Ruta!U121+Ruta!U167+Ruta!U168 -> 1,090 | R9: =+Ruta!V114+Ruta!V115+Ruta!V116+Ruta!V118+Ruta!V119+Ruta!V121+Ruta!V167+Ruta!V168 -> 1,055 | S9: =+Ruta!W114+Ruta!W115+Ruta!W116+Ruta!W118+Ruta!W119+Ruta!W121+Ruta!W167+Ruta!W168 -> 1,158 | T9: =+Ruta!X114+Ruta!X115+Ruta!X116+Ruta!X118+Ruta!X119+Ruta!X121+Ruta!X167+Ruta!X168 -> 1,041 | U9: =+Ruta!Y114+Ruta!Y115+Ruta!Y116+Ruta!Y118+Ruta!Y119+Ruta!Y121+Ruta!Y167+Ruta!Y168 -> 1,029 | V9: =+Ruta!AA114+Ruta!AA115+Ruta!AA116+Ruta!AA118+Ruta!AA119+Ruta!AA121+Ruta!AA167+Ruta!AA168 -> 0
B10: Líder Zona | C10: Jhenny Romero | D10: 3147936241 | E10: Norte | F10: Supermercado | G10: 1 | I10: =+Ruta!M4 -> 8 | J10: =+Ruta!N4 -> 6 | K10: =+Ruta!O4 -> 8 | L10: =+Ruta!P4 -> 7 | M10: =+Ruta!Q4 -> 6 | N10: =+Ruta!R4 -> 6 | O10: =+Ruta!S4 -> 8 | P10: =+Ruta!T4 -> 12 | Q10: =+Ruta!U4 -> 4 | R10: =+Ruta!V4 -> 3 | S10: =+Ruta!W4 -> 2 | T10: =+Ruta!X4 -> 4 | U10: =+Ruta!Y4 -> 3 | V10: =+Ruta!AA4 -> 0
B11: Líder Zona | C11: Lina Colonia | D11: 3176672375 | E11: Centro | F11: Licorera | G11: 4 | H11: 504 | I11: =+Ruta!M26+Ruta!M31+Ruta!M32+Ruta!M35+Ruta!M36 -> 1,188 | J11: =+Ruta!N26+Ruta!N31+Ruta!N32+Ruta!N35+Ruta!N36 -> 1,654 | K11: =+Ruta!O26+Ruta!O31+Ruta!O32+Ruta!O35+Ruta!O36 -> 1,810 | L11: =+Ruta!P26+Ruta!P31+Ruta!P32+Ruta!P35+Ruta!P36 -> 1,780 | M11: =+Ruta!Q26+Ruta!Q31+Ruta!Q32+Ruta!Q35+Ruta!Q36 -> 1,602 | N11: =+Ruta!R26+Ruta!R31+Ruta!R32+Ruta!R35+Ruta!R36 -> 1,770 | O11: =+Ruta!S26+Ruta!S31+Ruta!S32+Ruta!S35+Ruta!S36 -> 1,498 | P11: =+Ruta!T26+Ruta!T31+Ruta!T32+Ruta!T35+Ruta!T36 -> 2,160 | Q11: =+Ruta!U26+Ruta!U31+Ruta!U32+Ruta!U35+Ruta!U36 -> 1,985 | R11: =+Ruta!V26+Ruta!V31+Ruta!V32+Ruta!V35+Ruta!V36 -> 2,292 | S11: =+Ruta!W26+Ruta!W31+Ruta!W32+Ruta!W35+Ruta!W36 -> 2,492 | T11: =+Ruta!X26+Ruta!X31+Ruta!X32+Ruta!X35+Ruta!X36 -> 2,280 | U11: =+Ruta!Y26+Ruta!Y31+Ruta!Y32+Ruta!Y35+Ruta!Y36+Ruta!Y184 -> 2,400 | V11: =+Ruta!Z26+Ruta!Z31+Ruta!Z32+Ruta!Z35+Ruta!Z36+Ruta!Z184 -> 0
B12: Líder Zona | C12: Lina Colonia | D12: 3176672375 | E12: Centro | F12: Mayorista | G12: 16 | H12: 580 | I12: =+Ruta!M24+Ruta!M25+Ruta!M27+Ruta!M28+Ruta!M29+Ruta!M30+Ruta!M33+Ruta!M133+Ruta!M134+Ruta!M135+Ruta!M136+Ruta!M137+Ruta!M138+Ruta!M139 -> 4,164 | J12: =+Ruta!N24+Ruta!N25+Ruta!N27+Ruta!N28+Ruta!N29+Ruta!N30+Ruta!N33+Ruta!N133+Ruta!N134+Ruta!N135+Ruta!N136+Ruta!N137+Ruta!N138+Ruta!N139 -> 6,704 | K12: =+Ruta!O24+Ruta!O25+Ruta!O27+Ruta!O28+Ruta!O29+Ruta!O30+Ruta!O33+Ruta!O133+Ruta!O134+Ruta!O135+Ruta!O136+Ruta!O137+Ruta!O138+Ruta!O139 -> 6,740 | L12: =+Ruta!P24+Ruta!P25+Ruta!P27+Ruta!P28+Ruta!P29+Ruta!P30+Ruta!P33+Ruta!P133+Ruta!P134+Ruta!P135+Ruta!P136+Ruta!P137+Ruta!P138+Ruta!P139 -> 6,109 | M12: =+Ruta!Q24+Ruta!Q25+Ruta!Q27+Ruta!Q28+Ruta!Q29+Ruta!Q30+Ruta!Q33+Ruta!Q133+Ruta!Q134+Ruta!Q135+Ruta!Q136+Ruta!Q137+Ruta!Q138+Ruta!Q139 -> 5,517 | N12: =+Ruta!R24+Ruta!R25+Ruta!R27+Ruta!R28+Ruta!R29+Ruta!R30+Ruta!R33+Ruta!R133+Ruta!R134+Ruta!R135+Ruta!R136+Ruta!R137+Ruta!R138+Ruta!R139+Ruta!R164+Ruta!R165 -> 6,200 | O12: =+Ruta!S24+Ruta!S25+Ruta!S27+Ruta!S28+Ruta!S29+Ruta!S30+Ruta!S33+Ruta!S133+Ruta!S134+Ruta!S135+Ruta!S136+Ruta!S137+Ruta!S138+Ruta!S139+Ruta!S164+Ruta!S165 -> 6,999 | P12: =+Ruta!T24+Ruta!T25+Ruta!T27+Ruta!T28+Ruta!T29+Ruta!T30+Ruta!T33+Ruta!T133+Ruta!T134+Ruta!T135+Ruta!T136+Ruta!T137+Ruta!T138+Ruta!T139+Ruta!T164+Ruta!T165+Ruta!T166 -> 10,503 | Q12: =+Ruta!U24+Ruta!U25+Ruta!U27+Ruta!U28+Ruta!U29+Ruta!U30+Ruta!U33+Ruta!U133+Ruta!U134+Ruta!U135+Ruta!U136+Ruta!U137+Ruta!U138+Ruta!U139+Ruta!U164+Ruta!U165+Ruta!U166 -> 8,528 | R12: =+Ruta!V24+Ruta!V25+Ruta!V27+Ruta!V28+Ruta!V29+Ruta!V30+Ruta!V33+Ruta!V133+Ruta!V134+Ruta!V135+Ruta!V136+Ruta!V137+Ruta!V138+Ruta!V139+Ruta!V164+Ruta!V165+Ruta!V166 -> 9,050 | S12: =+Ruta!W24+Ruta!W25+Ruta!W27+Ruta!W28+Ruta!W29+Ruta!W30+Ruta!W33+Ruta!W133+Ruta!W134+Ruta!W135+Ruta!W136+Ruta!W137+Ruta!W138+Ruta!W139+Ruta!W164+Ruta!W165+Ruta!W166 -> 7,596 | T12: =+Ruta!X24+Ruta!X25+Ruta!X27+Ruta!X28+Ruta!X29+Ruta!X30+Ruta!X33+Ruta!X133+Ruta!X134+Ruta!X135+Ruta!X136+Ruta!X137+Ruta!X138+Ruta!X139+Ruta!X164+Ruta!X165+Ruta!X166 -> 9,030 | U12: =+Ruta!Y24+Ruta!Y25+Ruta!Y27+Ruta!Y28+Ruta!Y29+Ruta!Y30+Ruta!Y33+Ruta!Y133+Ruta!Y134+Ruta!Y135+Ruta!Y136+Ruta!Y137+Ruta!Y138+Ruta!Y139+Ruta!Y164+Ruta!Y165+Ruta!Y166 -> 8,128 | V12: =+Ruta!AA24+Ruta!AA25+Ruta!AA27+Ruta!AA28+Ruta!AA29+Ruta!AA30+Ruta!AA33+Ruta!AA133+Ruta!AA134+Ruta!AA135+Ruta!AA136+Ruta!AA137+Ruta!AA138+Ruta!AA139+Ruta!AA164+Ruta!AA165+Ruta!AA166 -> 0
B13: Líder Zona | C13: Lina Colonia | D13: 3176672375 | E13: Centro | F13: Supermercado | G13: 2 | I13: =+Ruta!M23+Ruta!M34+Ruta!M99+Ruta!M100+Ruta!M101+Ruta!M102+Ruta!M103 -> 122 | J13: =+Ruta!N23+Ruta!N34+Ruta!N99+Ruta!N100+Ruta!N101+Ruta!N102+Ruta!N103 -> 26 | K13: =+Ruta!O23+Ruta!O34+Ruta!O99+Ruta!O100+Ruta!O101+Ruta!O102+Ruta!O103 -> 48 | L13: =+Ruta!P23+Ruta!P34+Ruta!P99+Ruta!P100+Ruta!P101+Ruta!P102+Ruta!P103 -> 42 | M13: =+Ruta!Q23+Ruta!Q34+Ruta!Q99+Ruta!Q100+Ruta!Q101+Ruta!Q102+Ruta!Q103 -> 37 | N13: =+Ruta!R23+Ruta!R34+Ruta!R99+Ruta!R100+Ruta!R101+Ruta!R102+Ruta!R103 -> 48 | O13: =+Ruta!S23+Ruta!S34+Ruta!S99+Ruta!S100+Ruta!S101+Ruta!S102+Ruta!S103 -> 48 | P13: =+Ruta!T23+Ruta!T34+Ruta!T99+Ruta!T100+Ruta!T101+Ruta!T102+Ruta!T103 -> 52 | Q13: =+Ruta!U23+Ruta!U34+Ruta!U99+Ruta!U100+Ruta!U101+Ruta!U102+Ruta!U103 -> 33 | R13: =+Ruta!V23+Ruta!V34+Ruta!V99+Ruta!V100+Ruta!V101+Ruta!V102+Ruta!V103 -> 47 | S13: =+Ruta!W23+Ruta!W34+Ruta!W99+Ruta!W100+Ruta!W101+Ruta!W102+Ruta!W103 -> 64 | T13: =+Ruta!X23+Ruta!X34+Ruta!X99+Ruta!X100+Ruta!X101+Ruta!X102+Ruta!X103 -> 50 | U13: =+Ruta!Y23+Ruta!Y34+Ruta!Y99+Ruta!Y100+Ruta!Y101+Ruta!Y102+Ruta!Y103 -> 53 | V13: =+Ruta!AA23+Ruta!AA34+Ruta!AA99+Ruta!AA100+Ruta!AA101+Ruta!AA102+Ruta!AA103 -> 0
B14: Lider TAT | C14: Jhon Jairo Ortiz | D14: 3234918301 | E14: Cali | F14: TAT | G14: 66 | H14: =+Ruta!L37+Ruta!L38+Ruta!L39+Ruta!L40+Ruta!L41+Ruta!L42+Ruta!L43+Ruta!L44+Ruta!L45+Ruta!L46+Ruta!L47+Ruta!L48+Ruta!L49+Ruta!L50+Ruta!L51+Ruta!L53+Ruta!L52+Ruta!L54+Ruta!L55+Ruta!L56+Ruta!L57+Ruta!L58+Ruta!L59+Ruta!L60+Ruta!L61+Ruta!L62+Ruta!L63+Ruta!L64+Ruta!L65+Ruta!L66+Ruta!L67+Ruta!L68+Ruta!L69+Ruta!L70+Ruta!L71+Ruta!L72+Ruta!L73+Ruta!L74+Ruta!L75+Ruta!L76+Ruta!L77+Ruta!L78+Ruta!L79+Ruta!L80+Ruta!L81+Ruta!L82+Ruta!L83+Ruta!L84+Ruta!L85+Ruta!L86+Ruta!L87+Ruta!L88+Ruta!L89+Ruta!L90+Ruta!L91+Ruta!L92+Ruta!L93+Ruta!L94+Ruta!L95+Ruta!L96+Ruta!L97+Ruta!L98 -> 36 | I14: =+Ruta!M37+Ruta!M38+Ruta!M39+Ruta!M40+Ruta!M41+Ruta!M42+Ruta!M43+Ruta!M44+Ruta!M45+Ruta!M46+Ruta!M47+Ruta!M48+Ruta!M49+Ruta!M50+Ruta!M51+Ruta!M53+Ruta!M52+Ruta!M54+Ruta!M55+Ruta!M56+Ruta!M57+Ruta!M58+Ruta!M59+Ruta!M60+Ruta!M61+Ruta!M62+Ruta!M63+Ruta!M64+Ruta!M65+Ruta!M66+Ruta!M67+Ruta!M68+Ruta!M69+Ruta!M70+Ruta!M71+Ruta!M72+Ruta!M73+Ruta!M74+Ruta!M75+Ruta!M76+Ruta!M77+Ruta!M78+Ruta!M79+Ruta!M80+Ruta!M81+Ruta!M82+Ruta!M83+Ruta!M84+Ruta!M85+Ruta!M86+Ruta!M87+Ruta!M88+Ruta!M89+Ruta!M90+Ruta!M91+Ruta!M92+Ruta!M93+Ruta!M94+Ruta!M95+Ruta!M96+Ruta!M97+Ruta!M98 -> 122 | J14: =+Ruta!N37+Ruta!N38+Ruta!N39+Ruta!N40+Ruta!N41+Ruta!N42+Ruta!N43+Ruta!N44+Ruta!N45+Ruta!N46+Ruta!N47+Ruta!N48+Ruta!N49+Ruta!N50+Ruta!N51+Ruta!N53+Ruta!N52+Ruta!N54+Ruta!N55+Ruta!N56+Ruta!N57+Ruta!N58+Ruta!N59+Ruta!N60+Ruta!N61+Ruta!N62+Ruta!N63+Ruta!N64+Ruta!N65+Ruta!N66+Ruta!N67+Ruta!N68+Ruta!N69+Ruta!N70+Ruta!N71+Ruta!N72+Ruta!N73+Ruta!N74+Ruta!N75+Ruta!N76+Ruta!N77+Ruta!N78+Ruta!N79+Ruta!N80+Ruta!N81+Ruta!N82+Ruta!N83+Ruta!N84+Ruta!N85+Ruta!N86+Ruta!N87+Ruta!N88+Ruta!N89+Ruta!N90+Ruta!N91+Ruta!N92+Ruta!N93+Ruta!N94+Ruta!N95+Ruta!N96+Ruta!N97+Ruta!N98+SUM(Ruta!N141:N160) -> 315 | K14: =+Ruta!O37+Ruta!O38+Ruta!O39+Ruta!O40+Ruta!O41+Ruta!O42+Ruta!O43+Ruta!O44+Ruta!O45+Ruta!O46+Ruta!O47+Ruta!O48+Ruta!O49+Ruta!O50+Ruta!O51+Ruta!O53+Ruta!O52+Ruta!O54+Ruta!O55+Ruta!O56+Ruta!O57+Ruta!O58+Ruta!O59+Ruta!O60+Ruta!O61+Ruta!O62+Ruta!O63+Ruta!O64+Ruta!O65+Ruta!O66+Ruta!O67+Ruta!O68+Ruta!O69+Ruta!O70+Ruta!O71+Ruta!O72+Ruta!O73+Ruta!O74+Ruta!O75+Ruta!O76+Ruta!O77+Ruta!O78+Ruta!O79+Ruta!O80+Ruta!O81+Ruta!O82+Ruta!O83+Ruta!O84+Ruta!O85+Ruta!O86+Ruta!O87+Ruta!O88+Ruta!O89+Ruta!O90+Ruta!O91+Ruta!O92+Ruta!O93+Ruta!O94+Ruta!O95+Ruta!O96+Ruta!O97+Ruta!O98+SUM(Ruta!O141:O160) -> 439 | L14: =+Ruta!P37+Ruta!P38+Ruta!P39+Ruta!P40+Ruta!P41+Ruta!P42+Ruta!P43+Ruta!P44+Ruta!P45+Ruta!P46+Ruta!P47+Ruta!P48+Ruta!P49+Ruta!P50+Ruta!P51+Ruta!P53+Ruta!P52+Ruta!P54+Ruta!P55+Ruta!P56+Ruta!P57+Ruta!P58+Ruta!P59+Ruta!P60+Ruta!P61+Ruta!P62+Ruta!P63+Ruta!P64+Ruta!P65+Ruta!P66+Ruta!P67+Ruta!P68+Ruta!P69+Ruta!P70+Ruta!P71+Ruta!P72+Ruta!P73+Ruta!P74+Ruta!P75+Ruta!P76+Ruta!P77+Ruta!P78+Ruta!P79+Ruta!P80+Ruta!P81+Ruta!P82+Ruta!P83+Ruta!P84+Ruta!P85+Ruta!P86+Ruta!P87+Ruta!P88+Ruta!P89+Ruta!P90+Ruta!P91+Ruta!P92+Ruta!P93+Ruta!P94+Ruta!P95+Ruta!P96+Ruta!P97+Ruta!P98+SUM(Ruta!P141:P160) -> 509 | M14: =+Ruta!Q37+Ruta!Q38+Ruta!Q39+Ruta!Q40+Ruta!Q41+Ruta!Q42+Ruta!Q43+Ruta!Q44+Ruta!Q45+Ruta!Q46+Ruta!Q47+Ruta!Q48+Ruta!Q49+Ruta!Q50+Ruta!Q51+Ruta!Q53+Ruta!Q52+Ruta!Q54+Ruta!Q55+Ruta!Q56+Ruta!Q57+Ruta!Q58+Ruta!Q59+Ruta!Q60+Ruta!Q61+Ruta!Q62+Ruta!Q63+Ruta!Q64+Ruta!Q65+Ruta!Q66+Ruta!Q67+Ruta!Q68+Ruta!Q69+Ruta!Q70+Ruta!Q71+Ruta!Q72+Ruta!Q73+Ruta!Q74+Ruta!Q75+Ruta!Q76+Ruta!Q77+Ruta!Q78+Ruta!Q79+Ruta!Q80+Ruta!Q81+Ruta!Q82+Ruta!Q83+Ruta!Q84+Ruta!Q85+Ruta!Q86+Ruta!Q87+Ruta!Q88+Ruta!Q89+Ruta!Q90+Ruta!Q91+Ruta!Q92+Ruta!Q93+Ruta!Q94+Ruta!Q95+Ruta!Q96+Ruta!Q97+Ruta!Q98+SUM(Ruta!Q141:Q160) -> 337 | N14: =+Ruta!R37+Ruta!R38+Ruta!R39+Ruta!R40+Ruta!R41+Ruta!R42+Ruta!R43+Ruta!R44+Ruta!R45+Ruta!R46+Ruta!R47+Ruta!R48+Ruta!R49+Ruta!R50+Ruta!R51+Ruta!R53+Ruta!R52+Ruta!R54+Ruta!R55+Ruta!R56+Ruta!R57+Ruta!R58+Ruta!R59+Ruta!R60+Ruta!R61+Ruta!R62+Ruta!R63+Ruta!R64+Ruta!R65+Ruta!R66+Ruta!R67+Ruta!R68+Ruta!R69+Ruta!R70+Ruta!R71+Ruta!R72+Ruta!R73+Ruta!R74+Ruta!R75+Ruta!R76+Ruta!R77+Ruta!R78+Ruta!R79+Ruta!R80+Ruta!R81+Ruta!R82+Ruta!R83+Ruta!R84+Ruta!R85+Ruta!R86+Ruta!R87+Ruta!R88+Ruta!R89+Ruta!R90+Ruta!R91+Ruta!R92+Ruta!R93+Ruta!R94+Ruta!R95+Ruta!R96+Ruta!R97+Ruta!R98+SUM(Ruta!R141:R160) -> 445 | O14: =+Ruta!S37+Ruta!S38+Ruta!S39+Ruta!S40+Ruta!S41+Ruta!S42+Ruta!S43+Ruta!S44+Ruta!S45+Ruta!S46+Ruta!S47+Ruta!S48+Ruta!S49+Ruta!S50+Ruta!S51+Ruta!S53+Ruta!S52+Ruta!S54+Ruta!S55+Ruta!S56+Ruta!S57+Ruta!S58+Ruta!S59+Ruta!S60+Ruta!S61+Ruta!S62+Ruta!S63+Ruta!S64+Ruta!S65+Ruta!S66+Ruta!S67+Ruta!S68+Ruta!S69+Ruta!S70+Ruta!S71+Ruta!S72+Ruta!S73+Ruta!S74+Ruta!S75+Ruta!S76+Ruta!S77+Ruta!S78+Ruta!S79+Ruta!S80+Ruta!S81+Ruta!S82+Ruta!S83+Ruta!S84+Ruta!S85+Ruta!S86+Ruta!S87+Ruta!S88+Ruta!S89+Ruta!S90+Ruta!S91+Ruta!S92+Ruta!S93+Ruta!S94+Ruta!S95+Ruta!S96+Ruta!S97+Ruta!S98+SUM(Ruta!S141:S160) -> 594 | P14: =+Ruta!T37+Ruta!T38+Ruta!T39+Ruta!T40+Ruta!T41+Ruta!T42+Ruta!T43+Ruta!T44+Ruta!T45+Ruta!T46+Ruta!T47+Ruta!T48+Ruta!T49+Ruta!T50+Ruta!T51+Ruta!T53+Ruta!T52+Ruta!T54+Ruta!T55+Ruta!T56+Ruta!T57+Ruta!T58+Ruta!T59+Ruta!T60+Ruta!T61+Ruta!T62+Ruta!T63+Ruta!T64+Ruta!T65+Ruta!T66+Ruta!T67+Ruta!T68+Ruta!T69+Ruta!T70+Ruta!T71+Ruta!T72+Ruta!T73+Ruta!T74+Ruta!T75+Ruta!T76+Ruta!T77+Ruta!T78+Ruta!T79+Ruta!T80+Ruta!T81+Ruta!T82+Ruta!T83+Ruta!T84+Ruta!T85+Ruta!T86+Ruta!T87+Ruta!T88+Ruta!T89+Ruta!T90+Ruta!T91+Ruta!T92+Ruta!T93+Ruta!T94+Ruta!T95+Ruta!T96+Ruta!T97+Ruta!T98+SUM(Ruta!T141:T160) -> 1,214 | Q14: =+Ruta!U37+Ruta!U38+Ruta!U39+Ruta!U40+Ruta!U41+Ruta!U42+Ruta!U43+Ruta!U44+Ruta!U45+Ruta!U46+Ruta!U47+Ruta!U48+Ruta!U49+Ruta!U50+Ruta!U51+Ruta!U53+Ruta!U52+Ruta!U54+Ruta!U55+Ruta!U56+Ruta!U57+Ruta!U58+Ruta!U59+Ruta!U60+Ruta!U61+Ruta!U62+Ruta!U63+Ruta!U64+Ruta!U65+Ruta!U66+Ruta!U67+Ruta!U68+Ruta!U69+Ruta!U70+Ruta!U71+Ruta!U72+Ruta!U73+Ruta!U74+Ruta!U75+Ruta!U76+Ruta!U77+Ruta!U78+Ruta!U79+Ruta!U80+Ruta!U81+Ruta!U82+Ruta!U83+Ruta!U84+Ruta!U85+Ruta!U86+Ruta!U87+Ruta!U88+Ruta!U89+Ruta!U90+Ruta!U91+Ruta!U92+Ruta!U93+Ruta!U94+Ruta!U95+Ruta!U96+Ruta!U97+Ruta!U98+SUM(Ruta!U141:U160) -> 1,279 | R14: =+Ruta!V37+Ruta!V38+Ruta!V39+Ruta!V40+Ruta!V41+Ruta!V42+Ruta!V43+Ruta!V44+Ruta!V45+Ruta!V46+Ruta!V47+Ruta!V48+Ruta!V49+Ruta!V50+Ruta!V51+Ruta!V53+Ruta!V52+Ruta!V54+Ruta!V55+Ruta!V56+Ruta!V57+Ruta!V58+Ruta!V59+Ruta!V60+Ruta!V61+Ruta!V62+Ruta!V63+Ruta!V64+Ruta!V65+Ruta!V66+Ruta!V67+Ruta!V68+Ruta!V69+Ruta!V70+Ruta!V71+Ruta!V72+Ruta!V73+Ruta!V74+Ruta!V75+Ruta!V76+Ruta!V77+Ruta!V78+Ruta!V79+Ruta!V80+Ruta!V81+Ruta!V82+Ruta!V83+Ruta!V84+Ruta!V85+Ruta!V86+Ruta!V87+Ruta!V88+Ruta!V89+Ruta!V90+Ruta!V91+Ruta!V92+Ruta!V93+Ruta!V94+Ruta!V95+Ruta!V96+Ruta!V97+Ruta!V98+SUM(Ruta!V141:V160) -> 1,289 | S14: =+Ruta!W37+Ruta!W38+Ruta!W39+Ruta!W40+Ruta!W41+Ruta!W42+Ruta!W43+Ruta!W44+Ruta!W45+Ruta!W46+Ruta!W47+Ruta!W48+Ruta!W49+Ruta!W50+Ruta!W51+Ruta!W53+Ruta!W52+Ruta!W54+Ruta!W55+Ruta!W56+Ruta!W57+Ruta!W58+Ruta!W59+Ruta!W60+Ruta!W61+Ruta!W62+Ruta!W63+Ruta!W64+Ruta!W65+Ruta!W66+Ruta!W67+Ruta!W68+Ruta!W69+Ruta!W70+Ruta!W71+Ruta!W72+Ruta!W73+Ruta!W74+Ruta!W75+Ruta!W76+Ruta!W77+Ruta!W78+Ruta!W79+Ruta!W80+Ruta!W81+Ruta!W82+Ruta!W83+Ruta!W84+Ruta!W85+Ruta!W86+Ruta!W87+Ruta!W88+Ruta!W89+Ruta!W90+Ruta!W91+Ruta!W92+Ruta!W93+Ruta!W94+Ruta!W95+Ruta!W96+Ruta!W97+Ruta!W98+SUM(Ruta!W141:W160) -> 1,293 | T14: =+Ruta!X37+Ruta!X38+Ruta!X39+Ruta!X40+Ruta!X41+Ruta!X42+Ruta!X43+Ruta!X44+Ruta!X45+Ruta!X46+Ruta!X47+Ruta!X48+Ruta!X49+Ruta!X50+Ruta!X51+Ruta!X53+Ruta!X52+Ruta!X54+Ruta!X55+Ruta!X56+Ruta!X57+Ruta!X58+Ruta!X59+Ruta!X60+Ruta!X61+Ruta!X62+Ruta!X63+Ruta!X64+Ruta!X65+Ruta!X66+Ruta!X67+Ruta!X68+Ruta!X69+Ruta!X70+Ruta!X71+Ruta!X72+Ruta!X73+Ruta!X74+Ruta!X75+Ruta!X76+Ruta!X77+Ruta!X78+Ruta!X79+Ruta!X80+Ruta!X81+Ruta!X82+Ruta!X83+Ruta!X84+Ruta!X85+Ruta!X86+Ruta!X87+Ruta!X88+Ruta!X89+Ruta!X90+Ruta!X91+Ruta!X92+Ruta!X93+Ruta!X94+Ruta!X95+Ruta!X96+Ruta!X97+Ruta!X98+SUM(Ruta!X141:X160)+SUM(Ruta!X169:X183) -> 1,862 | U14: =+Ruta!Y37+Ruta!Y38+Ruta!Y39+Ruta!Y40+Ruta!Y41+Ruta!Y42+Ruta!Y43+Ruta!Y44+Ruta!Y45+Ruta!Y46+Ruta!Y47+Ruta!Y48+Ruta!Y49+Ruta!Y50+Ruta!Y51+Ruta!Y53+Ruta!Y52+Ruta!Y54+Ruta!Y55+Ruta!Y56+Ruta!Y57+Ruta!Y58+Ruta!Y59+Ruta!Y60+Ruta!Y61+Ruta!Y62+Ruta!Y63+Ruta!Y64+Ruta!Y65+Ruta!Y66+Ruta!Y67+Ruta!Y68+Ruta!Y69+Ruta!Y70+Ruta!Y71+Ruta!Y72+Ruta!Y73+Ruta!Y74+Ruta!Y75+Ruta!Y76+Ruta!Y77+Ruta!Y78+Ruta!Y79+Ruta!Y80+Ruta!Y81+Ruta!Y82+Ruta!Y83+Ruta!Y84+Ruta!Y85+Ruta!Y86+Ruta!Y87+Ruta!Y88+Ruta!Y89+Ruta!Y90+Ruta!Y91+Ruta!Y92+Ruta!Y93+Ruta!Y94+Ruta!Y95+Ruta!Y96+Ruta!Y97+Ruta!Y98+SUM(Ruta!Y141:Y160)+SUM(Ruta!Y169:Y183) -> 2,216 | V14: =+Ruta!AA37+Ruta!AA38+Ruta!AA39+Ruta!AA40+Ruta!AA41+Ruta!AA42+Ruta!AA43+Ruta!AA44+Ruta!AA45+Ruta!AA46+Ruta!AA47+Ruta!AA48+Ruta!AA49+Ruta!AA50+Ruta!AA51+Ruta!AA53+Ruta!AA52+Ruta!AA54+Ruta!AA55+Ruta!AA56+Ruta!AA57+Ruta!AA58+Ruta!AA59+Ruta!AA60+Ruta!AA61+Ruta!AA62+Ruta!AA63+Ruta!AA64+Ruta!AA65+Ruta!AA66+Ruta!AA67+Ruta!AA68+Ruta!AA69+Ruta!AA70+Ruta!AA71+Ruta!AA72+Ruta!AA73+Ruta!AA74+Ruta!AA75+Ruta!AA76+Ruta!AA77+Ruta!AA78+Ruta!AA79+Ruta!AA80+Ruta!AA81+Ruta!AA82+Ruta!AA83+Ruta!AA84+Ruta!AA85+Ruta!AA86+Ruta!AA87+Ruta!AA88+Ruta!AA89+Ruta!AA90+Ruta!AA91+Ruta!AA92+Ruta!AA93+Ruta!AA94+Ruta!AA95+Ruta!AA96+Ruta!AA97+Ruta!AA98+SUM(Ruta!AA141:AA160)+SUM(Ruta!AA169:AA183) -> 0
B15: Líder Zona | C15: Katherine Rengifo | D15: 3234918324 | E15: Palmira | F15: Licorera | G15: 3 | H15: 216 | I15: =+Ruta!M5+Ruta!M124+Ruta!M125 -> 276 | J15: =+Ruta!N5+Ruta!N124+Ruta!N125 -> 300 | K15: =+Ruta!O5+Ruta!O124+Ruta!O125 -> 780 | L15: =+Ruta!P5+Ruta!P124+Ruta!P125 -> 1,200 | M15: =+Ruta!Q5+Ruta!Q124+Ruta!Q125 -> 1,560 | N15: =+Ruta!R5+Ruta!R124+Ruta!R125 -> 1,500 | O15: =+Ruta!S5+Ruta!S124+Ruta!S125 -> 1,860 | P15: =+Ruta!T5+Ruta!T124+Ruta!T125 -> 2,340 | Q15: =+Ruta!U5+Ruta!U124+Ruta!U125 -> 1,260 | R15: =+Ruta!V5+Ruta!V124+Ruta!V125 -> 1,320 | S15: =+Ruta!W5+Ruta!W124+Ruta!W125 -> 1,620 | T15: =+Ruta!X5+Ruta!X124+Ruta!X125 -> 564 | U15: =+Ruta!Y5+Ruta!Y124+Ruta!Y125 -> 1,152 | V15: =+Ruta!AA5+Ruta!AA124+Ruta!AA125 -> 0
B16: Líder Zona | C16: Katherine Rengifo | D16: 3234918324 | E16: Palmira | F16: Mayorista | G16: 9 | H16: 348 | I16: =+Ruta!M6+Ruta!M122+Ruta!M123+Ruta!M127+Ruta!M128+Ruta!M140 -> 460 | J16: =+Ruta!N6+Ruta!N122+Ruta!N123+Ruta!N127+Ruta!N128+Ruta!N140+Ruta!N161+Ruta!N162+Ruta!N163 -> 740 | K16: =+Ruta!O6+Ruta!O122+Ruta!O123+Ruta!O127+Ruta!O128+Ruta!O140+Ruta!O161+Ruta!O162+Ruta!O163 -> 1,776 | L16: =+Ruta!P6+Ruta!P122+Ruta!P123+Ruta!P127+Ruta!P128+Ruta!P140+Ruta!P161+Ruta!P162+Ruta!P163 -> 2,544 | M16: =+Ruta!Q6+Ruta!Q122+Ruta!Q123+Ruta!Q127+Ruta!Q128+Ruta!Q140+Ruta!Q161+Ruta!Q162+Ruta!Q163 -> 3,300 | N16: =+Ruta!R6+Ruta!R122+Ruta!R123+Ruta!R127+Ruta!R128+Ruta!R140+Ruta!R161+Ruta!R162+Ruta!R163 -> 3,732 | O16: =+Ruta!S6+Ruta!S122+Ruta!S123+Ruta!S127+Ruta!S128+Ruta!S140+Ruta!S161+Ruta!S162+Ruta!S163 -> 5,160 | P16: =+Ruta!T6+Ruta!T122+Ruta!T123+Ruta!T127+Ruta!T128+Ruta!T140+Ruta!T161+Ruta!T162+Ruta!T163 -> 7,500 | Q16: =+Ruta!U6+Ruta!U122+Ruta!U123+Ruta!U127+Ruta!U128+Ruta!U140+Ruta!U161+Ruta!U162+Ruta!U163 -> 5,436 | R16: =+Ruta!V6+Ruta!V122+Ruta!V123+Ruta!V127+Ruta!V128+Ruta!V140+Ruta!V161+Ruta!V162+Ruta!V163 -> 6,192 | S16: =+Ruta!W6+Ruta!W122+Ruta!W123+Ruta!W127+Ruta!W128+Ruta!W140+Ruta!W161+Ruta!W162+Ruta!W163 -> 5,316 | T16: =+Ruta!X6+Ruta!X122+Ruta!X123+Ruta!X127+Ruta!X128+Ruta!X140+Ruta!X161+Ruta!X162+Ruta!X163 -> 2,592 | U16: =+Ruta!Y6+Ruta!Y122+Ruta!Y123+Ruta!Y127+Ruta!Y128+Ruta!Y140+Ruta!Y161+Ruta!Y162+Ruta!Y163 -> 6,144 | V16: =+Ruta!AA6+Ruta!AA122+Ruta!AA123+Ruta!AA127+Ruta!AA128+Ruta!AA140+Ruta!AA161+Ruta!AA162+Ruta!AA163 -> 0
B17: Líder Zona | C17: Katherine Rengifo | D17: 3234918324 | E17: Palmira | F17: Supermercado | G17: 4 | I17: =+Ruta!M104+Ruta!M126+Ruta!M129+Ruta!M130+Ruta!M131+Ruta!M132 -> 312 | J17: =+Ruta!N104+Ruta!N126+Ruta!N129+Ruta!N130+Ruta!N131+Ruta!N132 -> 365 | K17: =+Ruta!O104+Ruta!O126+Ruta!O129+Ruta!O130+Ruta!O131+Ruta!O132 -> 780 | L17: =+Ruta!P104+Ruta!P126+Ruta!P129+Ruta!P130+Ruta!P131+Ruta!P132 -> 348 | M17: =+Ruta!Q104+Ruta!Q126+Ruta!Q129+Ruta!Q130+Ruta!Q131+Ruta!Q132 -> 744 | N17: =+Ruta!R104+Ruta!R126+Ruta!R129+Ruta!R130+Ruta!R131+Ruta!R132 -> 684 | O17: =+Ruta!S104+Ruta!S126+Ruta!S129+Ruta!S130+Ruta!S131+Ruta!S132 -> 924 | P17: =+Ruta!T104+Ruta!T126+Ruta!T129+Ruta!T130+Ruta!T131+Ruta!T132 -> 1,212 | Q17: =+Ruta!U104+Ruta!U126+Ruta!U129+Ruta!U130+Ruta!U131+Ruta!U132 -> 804 | R17: =+Ruta!V104+Ruta!V126+Ruta!V129+Ruta!V130+Ruta!V131+Ruta!V132 -> 684 | S17: =+Ruta!W104+Ruta!W126+Ruta!W129+Ruta!W130+Ruta!W131+Ruta!W132 -> 612 | T17: =+Ruta!X104+Ruta!X126+Ruta!X129+Ruta!X130+Ruta!X131+Ruta!X132 -> 348 | U17: =+Ruta!Y104+Ruta!Y126+Ruta!Y129+Ruta!Y130+Ruta!Y131+Ruta!Y132 -> 672 | V17: =+Ruta!AA104+Ruta!AA126+Ruta!AA129+Ruta!AA130+Ruta!AA131+Ruta!AA132 -> 0
F18: Total | G18: =SUM(G5:G17) -> 134 | H18: 5,260 | I18: 13,418 | J18: 17,041 | K18: 28,540 | L18: 28,301 | M18: 27,762 | N18: 30,081 | O18: =SUM(O5:O17) -> 34,869 | P18: 41,838 | Q18: =SUM(Q5:Q17) -> 40,079 | R18: 39,728 | S18: =SUM(S5:S17) -> 27,359 | T18: 32,395 | U18: =SUM(U5:U17) -> 39,637 | V18: 0
F20: Canal | G20: Aliados | H20: Uds 750cc S1 | I20: Uds 750cc S2 | J20: Uds 750cc S3 | K20: Uds 750cc S4 | L20: Uds 750cc S5 | M20: Uds 750cc S6 | N20: Uds 750cc S7 | O20: Uds 750cc S8 | P20: Uds 750cc S9 | Q20: Uds 750cc S10 | R20: Uds 750cc S11 | S20: Uds 750cc S12 | T20: Uds 750cc S13 | U20: Uds 750cc S14 | V20: Uds 750cc S15
F21: Supermercados | G21: =+G5+G10+G13+G17 -> 11 | H21: 0 | I21: 715 | J21: 397 | K21: 836 | L21: 397 | M21: =+M5+M10+M13+M17 -> 787 | N21: 738 | O21: =+O5+O10+O13+O17 -> 980 | P21: 1,276 | Q21: =+Q5+Q10+Q13+Q17 -> 841 | R21: 734 | S21: =+S5+S10+S13+S17 -> 678 | T21: 402 | U21: =+U5+U10+U13+U17 -> 728 | V21: 0
F22: Mayoristas | G22: =+G6+G9+G12+G16+G7 -> 48 | H22: 4,458 | I22: 11,059 | J22: 14,310 | K22: 24,629 | L22: 24,355 | M22: =+M6+M9+M12+M16+M7 -> 23,396 | N22: 25,555 | O22: =+O6+O9+O12+O16+O7 -> 29,845 | P22: 34,703 | Q22: =+Q6+Q9+Q12+Q16+Q7 -> 34,614 | R22: 33,997 | S22: =+S6+S9+S12+S16+S7 -> 21,186 | T22: 27,207 | U22: =+U6+U9+U12+U16+U7 -> 33,061 | V22: 0
F23: Licoreras | G23: =+G8+G11+G15 -> 9 | H23: 766 | I23: 1,522 | J23: 2,019 | K23: 2,636 | L23: 3,040 | M23: =+M8+M11+M15 -> 3,242 | N23: 3,343 | O23: =+O8+O11+O15 -> 3,450 | P23: 4,645 | Q23: =+Q8+Q11+Q15 -> 3,345 | R23: 3,708 | S23: =+S8+S11+S15 -> 4,202 | T23: 2,924 | U23: =+U8+U11+U15 -> 3,632 | V23: 0
F24: TAT | G24: =+G14 -> 66 | H24: 36 | I24: 122 | J24: 315 | K24: 439 | L24: 509 | M24: =+M14 -> 337 | N24: 445 | O24: =+O14 -> 594 | P24: 1,214 | Q24: =+Q14 -> 1,279 | R24: 1,289 | S24: =+S14 -> 1,293 | T24: 1,862 | U24: =+U14 -> 2,216 | V24: 0
F25: Total | G25: =SUM(G21:G24) -> 134 | H25: 5,260 | I25: 13,418 | J25: 17,041 | K25: 28,540 | L25: 28,301 | M25: 27,762 | N25: 30,081 | O25: =SUM(O21:O24) -> 34,869 | P25: 41,838 | Q25: =SUM(Q21:Q24) -> 40,079 | R25: 39,728 | S25: =SUM(S21:S24) -> 27,359 | T25: 32,395 | U25: =SUM(U21:U24) -> 39,637 | V25: 0

Sheet Promociones
O1: Unidades | P1: Unidades | Q1: Unidades | R1: Unidades | S1: Unidades | T1: Unidades | U1: Unidades | V1: Unidades
B2: Aliados Red de la Alegría | N2: Participacion | O2: Parques | P2: Parques | Q2: Escalera | R2: Pirinola | S2: Pirinola | T2: Shots | U2: Shot | V2: Vasos RMV 8 años
B3: Activo | C3: # | D3: Ciudad | E3: Canal | F3: Responsable | G3: Cliente | H3: Línea Domicilio | I3: Promoción | J3: Dirección | K3: Nit | L3: Uds Sem 1 | M3: Uds Sem 7 | N3: Partiipación | O3: 1000 | P3: Asignación | Q3: =+P3 -> Asignación | R3: 3000 | S3: Asignación | T3: 10000 | U3: Asignación | V3: Asignación
B4: =+Ruta!B4 -> SI | C4: =+Ruta!C4 -> 1 | D4: =+Ruta!D4 -> La Unión | E4: =+Ruta!E4 -> Supermercado | F4: =+Ruta!F4 -> Jhenny Romero | G4: =+Ruta!G4 -> Supermercado MercaPlaza | H4: =+Ruta!H4 -> 2023491 | I4: =+Ruta!I4 -> Marques 3años Botella + Can Agte | J4: =+Ruta!J4 -> Calle 14 # 15 - 13 | K4: =+Ruta!K4 -> 0 | M4: =+Ruta!R4 -> 6 | N4: 0.02% | O4: =+O$3*N4 -> 0 | P4: 3 | Q4: 3 | R4: =+R$3*N4 -> 1 | S4: =+P4*3 -> 9 | T4: =+T$3*N4 -> 2 | U4: =+Q4*10 -> 30 | V4: =+S4 -> 9
B5: =+Ruta!B5 -> SI | C5: =+Ruta!C5 -> 2 | D5: =+Ruta!D5 -> Rozo | E5: =+Ruta!E5 -> Licorera | F5: =+Ruta!F5 -> Katherine Rengifo | G5: =+Ruta!G5 -> Estanco Blanco del Valle | H5: =+Ruta!H5 -> 3122475697 | I5: =+Ruta!I5 -> Marques 3años Botella + Can Agte | J5: =+Ruta!J5 -> Calle 10 # 9A- 29 | K5: =+Ruta!K5 -> 0 | L5: =4*12 -> 48 | M5: =+Ruta!R5 -> 360 | N5: 1.20% | O5: =+O$3*N5 -> 12 | P5: 10 | Q5: 10 | R5: =+R$3*N5 -> 36 | S5: =+P5*3 -> 30 | T5: =+T$3*N5 -> 120 | U5: =+Q5*10 -> 100 | V5: =+S5 -> 30
B6: =+Ruta!B6 -> SI | C6: =+Ruta!C6 -> 3 | D6: =+Ruta!D6 -> Guacarí | E6: =+Ruta!E6 -> Mayorista | F6: =+Ruta!F6 -> Katherine Rengifo | G6: =+Ruta!G6 -> Licores Los Paisas | H6: =+Ruta!H6 -> 3216537169 | I6: =+Ruta!I6 -> Marques 3años Botella + Can Agte | J6: =+Ruta!J6 -> Carrera 7 # 4 - 80 | K6: =+Ruta!K6 -> 0 | L6: 0 | M6: =+Ruta!R6 -> 600 | N6: 1.99% | O6: 20 | P6: 10 | Q6: 10 | R6: 60 | S6: 60 | T6: 199 | U6: 180 | V6: 60
B7: =+Ruta!B7 -> NO | C7: =+Ruta!C7 -> 4 | D7: =+Ruta!D7 -> Valle | E7: =+Ruta!E7 -> Supermercado | F7: =+Ruta!F7 -> Miriam Mejia | G7: =+Ruta!G7 -> SurtiFamiliar | H7: =+Ruta!H7 -> 4873041 | I7: =+Ruta!I7 -> Marques 3años Botella + Can Agte - Marques 3años Botella + Can Marques 3años -Marques Bot 3años P2 x 3 - Marques Can P2 X3 - | J7: =+Ruta!J7 -> 0 | K7: =+Ruta!K7 -> 0 | M7: =+Ruta!R7 -> 0 | N7: 0.00% | O7: 0 | Q7: 0 | R7: 0 | S7: 0 | T7: 0 | U7: =+Q7*10 -> 0 | V7: 0
B8: =+Ruta!B8 -> NO | C8: =+Ruta!C8 -> 5 | D8: =+Ruta!D8 -> Cali | E8: =+Ruta!E8 -> Supermercado | F8: =+Ruta!F8 -> Miriam Mejia | G8: =+Ruta!G8 -> Supermercados Galerías Plaza | H8: =+Ruta!H8 -> 3041365780 | I8: =+Ruta!I8 -> 0 | J8: =+Ruta!J8 -> Cl. 19 Oe. #4 A 11 | K8: =+Ruta!K8 -> 0 | M8: =+Ruta!R8 -> 0 | N8: 0.00% | O8: 0 | Q8: 0 | R8: 0 | S8: 0 | T8: 0 | U8: 0 | V8: 0
B9: =+Ruta!B9 -> NO | C9: =+Ruta!C9 -> 6 | D9: =+Ruta!D9 -> Valle | E9: =+Ruta!E9 -> Supermercado | F9: =+Ruta!F9 -> Miriam Mejia | G9: =+Ruta!G9 -> Confandi | H9: =+Ruta!H9 -> 3176365583 | I9: =+Ruta!I9 -> Marques 3años Botella + Can Agte - Marques 3años Botella + Can Marques 3años -Marques Bot 3años P2 x 3 - Marques Can P2 X3 - | J9: =+Ruta!J9 -> 0 | K9: =+Ruta!K9 -> 0 | M9: =+Ruta!R9 -> 0 | N9: 0.00% | O9: 0 | Q9: 0 | R9: 0 | S9: 0 | T9: 0 | U9: 0 | V9: 0
B10: =+Ruta!B10 -> SI | C10: =+Ruta!C10 -> 7 | D10: =+Ruta!D10 -> Cali | E10: =+Ruta!E10 -> Mayorista | F10: =+Ruta!F10 -> Edwin Polanco | G10: =+Ruta!G10 -> Los Paisas de la 44 | H10: =+Ruta!H10 -> 4415918 - 3113078334 | I10: =+Ruta!I10 -> Marques 3años Botella + Can Agte - Marques 3años Botella + Can Marques 3años | J10: =+Ruta!J10 -> calle 44 # 14-62 | K10: =+Ruta!K10 -> 0 | L10: 360 | M10: =+Ruta!R10 -> 720 | N10: 2.39% | O10: 24 | P10: 20 | Q10: 20 | R10: 72 | S10: 65 | T10: 239 | U10: 200 | V10: 65
B11: =+Ruta!B11 -> SI | C11: =+Ruta!C11 -> 8 | D11: =+Ruta!D11 -> Cali | E11: =+Ruta!E11 -> Mayorista | F11: =+Ruta!F11 -> Edwin Polanco | G11: =+Ruta!G11 -> Brisas de Juanchito | H11: =+Ruta!H11 -> 6560777 - 3153158897 | I11: =+Ruta!I11 -> Marques 3años Botella + Can Agte - Marques 3años Botella + Can Marques 3años -Marques Bot 3años P2 x 3 - Marques Can P2 X3 | J11: =+Ruta!J11 -> Carrera 8 #72-04 | K11: =+Ruta!K11 -> 0 | L11: 480 | M11: =+Ruta!R11 -> 1320 | N11: 4.39% | O11: 44 | P11: 35 | Q11: 35 | R11: 132 | S11: 100 | T11: 439 | U11: 330 | V11: 100
B12: =+Ruta!B12 -> SI | C12: =+Ruta!C12 -> 9 | D12: =+Ruta!D12 -> Cali | E12: =+Ruta!E12 -> Mayorista | F12: =+Ruta!F12 -> Edwin Polanco | G12: =+Ruta!G12 -> La 66 | H12: =+Ruta!H12 -> 3314763 - 3176095207 | I12: =+Ruta!I12 -> Marques 3años Botella + Can Agte - Marques 3años Botella + Can Marques 3años -Marques Bot 3años P2 x 3 - Marques Can P2 X3 - Marques 8años + Can 3 años - shot x Bot s,a - 2shock por Garrafa | J12: =+Ruta!J12 -> Carrera 66 #10-12 | K12: =+Ruta!K12 -> 0 | L12: 540 | M12: =+Ruta!R12 -> 1140 | N12: 3.79% | O12: 38 | P12: 35 | Q12: 35 | R12: 114 | S12: 100 | T12: 379 | U12: 330 | V12: 100
B13: =+Ruta!B13 -> SI | C13: =+Ruta!C13 -> 10 | D13: =+Ruta!D13 -> Cali | E13: =+Ruta!E13 -> Mayorista | F13: =+Ruta!F13 -> Edwin Polanco | G13: =+Ruta!G13 -> Villa del Lago | H13: =+Ruta!H13 -> 6627676 | I13: =+Ruta!I13 -> Marques 3años Botella + Can Agte - Marques 3años Botella + Can Marques 3años | J13: =+Ruta!J13 -> Diagonal 70 # 25e-10 | K13: =+Ruta!K13 -> 0 | L13: 300 | M13: =+Ruta!R13 -> 840 | N13: 2.79% | O13: 28 | P13: 20 | Q13: 20 | R13: 84 | S13: 60 | T13: 279 | U13: 200 | V13: 60
B14: =+Ruta!B14 -> SI | C14: =+Ruta!C14 -> 11 | D14: =+Ruta!D14 -> Cali | E14: =+Ruta!E14 -> Mayorista | F14: =+Ruta!F14 -> Edwin Polanco | G14: =+Ruta!G14 -> Los Panchos | H14: =+Ruta!H14 -> 6629305 | I14: =+Ruta!I14 -> Marques 3años Botella + Can Agte - Marques 3años Botella + Can Marques 3años | J14: =+Ruta!J14 -> calle 73 # 7tbII2-38 | K14: =+Ruta!K14 -> 0 | L14: =26*12 -> 312 | M14: =+Ruta!R14 -> 1200 | N14: 3.99% | O14: 40 | P14: 35 | Q14: 35 | R14: 120 | S14: 95 | T14: 399 | U14: 320 | V14: 95
B15: =+Ruta!B15 -> SI | C15: =+Ruta!C15 -> 12 | D15: =+Ruta!D15 -> Cali | E15: =+Ruta!E15 -> Mayorista | F15: =+Ruta!F15 -> Edwin Polanco | G15: =+Ruta!G15 -> La Mayorista | H15: =+Ruta!H15 -> 4416350 | I15: =+Ruta!I15 -> Marques 3años Botella + Can Agte - Marques 3años Botella + Can Marques 3años | J15: =+Ruta!J15 -> Carera 27 dg 28b -93 | K15: =+Ruta!K15 -> 0 | L15: 384 | M15: =+Ruta!R15 -> 600 | N15: 1.99% | O15: 20 | P15: 16 | Q15: 16 | R15: 60 | S15: 45 | T15: 199 | U15: 160 | V15: 45
B16: =+Ruta!B16 -> SI | C16: =+Ruta!C16 -> 13 | D16: =+Ruta!D16 -> Cali | E16: =+Ruta!E16 -> Mayorista | F16: =+Ruta!F16 -> Edwin Polanco | G16: =+Ruta!G16 -> El Poblado | H16: =+Ruta!H16 -> 4263073 | I16: =+Ruta!I16 -> Marques 3años Botella + Can Agte - Marques 3años Botella + Can Marques 3años - Marques Can P2 X3 | J16: =+Ruta!J16 -> Calle 72u # 28-47 | K16: =+Ruta!K16 -> 0 | L16: =26*12 -> 312 | M16: =+Ruta!R16 -> 1140 | N16: 3.79% | O16: 38 | P16: 35 | Q16: 35 | R16: 114 | S16: 90 | T16: 379 | U16: 300 | V16: 90
B17: =+Ruta!B17 -> SI | C17: =+Ruta!C17 -> 14 | D17: =+Ruta!D17 -> Cali | E17: =+Ruta!E17 -> Mayorista | F17: =+Ruta!F17 -> Edwin Polanco | G17: =+Ruta!G17 -> Licores La Amistad | H17: =+Ruta!H17 -> 4471825 | I17: =+Ruta!I17 -> Marques 3años Botella + Can Agte - Marques 3años Botella + Can Marques 3años -Marques Bot 3años P2 x 3 - Marques Can P2 X3 - Marques 8años + Can 3 años - shot x Bot s,a - 2shot por Garrafa | J17: =+Ruta!J17 -> Calle 46c # 5-01 | K17: =+Ruta!K17 -> 0 | L17: 1200 | M17: =+Ruta!R17 -> 2280 | N17: 7.58% | O17: 76 | P17: 64 | Q17: 64 | R17: 227 | S17: 150 | T17: 758 | U17: 565 | V17: 150
B18: =+Ruta!B18 -> SI | C18: =+Ruta!C18 -> 15 | D18: =+Ruta!D18 -> Cali | E18: =+Ruta!E18 -> Mayorista | F18: =+Ruta!F18 -> Edwin Polanco | G18: =+Ruta!G18 -> Los Gemelos | H18: =+Ruta!H18 -> 4489216 | I18: =+Ruta!I18 -> Marques 3años Botella + Can Agte - Marques 3años Botella + Can Marques 3años - Marques Can P2 X3 | J18: =+Ruta!J18 -> Calle 44 # 6n-57 | K18: =+Ruta!K18 -> 0 | L18: 720 | M18: =+Ruta!R18 -> 1260 | N18: 4.19% | O18: 42 | P18: 40 | Q18: 40 | R18: 126 | S18: 100 | T18: 419 | U18: 350 | V18: 100
B19: =+Ruta!B19 -> SI | C19: =+Ruta!C19 -> 16 | D19: =+Ruta!D19 -> Cali | E19: =+Ruta!E19 -> Mayorista | F19: =+Ruta!F19 -> Edwin Polanco | G19: =+Ruta!G19 -> El amigo de la Noche | H19: =+Ruta!H19 -> App | I19: =+Ruta!I19 -> Marques 3años Botella + Can Agte - Marques 3años Botella + Can Marques 3años -Marques Bot 3años P2 x 3 - Marques Can P2 X3 - Marques 8años + Can 3 años - shot x Bot s,a - 2shock por Garrafa | J19: =+Ruta!J19 -> App | K19: =+Ruta!K19 -> 0 | L19: 144 | M19: =+Ruta!R19 -> 480 | N19: 1.60% | O19: 16 | P19: 20 | Q19: 20 | R19: 48 | S19: 50 | T19: 160 | U19: 160 | V19: 50
B20: =+Ruta!B20 -> SI | C20: =+Ruta!C20 -> 17 | D20: =+Ruta!D20 -> Cali | E20: =+Ruta!E20 -> Mayorista | F20: =+Ruta!F20 -> Edwin Polanco | G20: =+Ruta!G20 -> La Rebaja | H20: =+Ruta!H20 -> App | I20: =+Ruta!I20 -> Marques 3años Botella + Can Agte - Marques 3años Botella + Can Marques 3años - Marques Can P2 X3 - shock x Bot s,a - 2shot por Garrafa | J20: =+Ruta!J20 -> Carrera 15 #33b-30 | K20: =+Ruta!K20 -> 0 | L20: 264 | M20: =+Ruta!R20 -> 1440 | N20: 4.79% | O20: 48 | P20: 50 | Q20: 50 | R20: 144 | S20: 120 | T20: 479 | U20: 450 | V20: 120
B21: =+Ruta!B21 -> SI | C21: =+Ruta!C21 -> 18 | D21: =+Ruta!D21 -> Buenaventura | E21: =+Ruta!E21 -> Mayorista | F21: =+Ruta!F21 -> Edwin Polanco | G21: =+Ruta!G21 -> Casablanca | H21: =+Ruta!H21 -> 2433412 | I21: =+Ruta!I21 -> Marques 3años Botella + Can Agte - Marques 3años Botella + Can Marques 3años -Marques Bot 3años P2 x 3 - Marques Can P2 X3 - Marques 8años + Can 3 años | J21: =+Ruta!J21 -> calle 3 # 18-42 | K21: =+Ruta!K21 -> 0 | L21: 576 | M21: =+Ruta!R21 -> 2400 | N21: 7.98% | O21: 80 | P21: 50 | Q21: 50 | R21: =+R$3*N21 -> 239 | S21: 160 | T21: 798 | U21: 550 | V21: 160
B22: =+Ruta!B22 -> SI | C22: =+Ruta!C22 -> 19 | D22: =+Ruta!D22 -> Buenaventura | E22: =+Ruta!E22 -> Mayorista | F22: =+Ruta!F22 -> Edwin Polanco | G22: =+Ruta!G22 -> La Rebajona | H22: =+Ruta!H22 -> 2416300 | I22: =+Ruta!I22 -> Marques 3años Botella + Can Agte - Marques 3años Botella + Can Marques 3años | J22: =+Ruta!J22 -> carrera 6 # 4a-54 | K22: =+Ruta!K22 -> 0 | L22: 144 | M22: =+Ruta!R22 -> 168 | N22: 0.56% | O22: 6 | P22: 15 | Q22: 15 | R22: 17 | S22: 15 | T22: 56 | U22: 50 | V22: 15
B23: =+Ruta!B23 -> SI | C23: =+Ruta!C23 -> 20 | D23: =+Ruta!D23 -> Tuluá | E23: =+Ruta!E23 -> Supermercado | F23: =+Ruta!F23 -> Lina Colonia | G23: =+Ruta!G23 -> Autoservicio Mi Barrio | H23: =+Ruta!H23 -> 312 806 22 21 | I23: =+Ruta!I23 -> 0 | J23: =+Ruta!J23 -> Carrera 24 # 36 - 04 | K23: =+Ruta!K23 -> 0 | L23: 12 | M23: =+Ruta!R23 -> 36 | N23: 0.12% | O23: 1 | P23: 3 | Q23: 3 | R23: 4 | S23: 9 | T23: 12 | U23: 30 | V23: 9
B24: =+Ruta!B24 -> SI | C24: =+Ruta!C24 -> 21 | D24: =+Ruta!D24 -> Tuluá | E24: =+Ruta!E24 -> Mayorista | F24: =+Ruta!F24 -> Lina Colonia | G24: =+Ruta!G24 -> Bodega La Esperanza | H24: =+Ruta!H24 -> 316 253 5816 | I24: =+Ruta!I24 -> Marques 3años Botella + Can Agte -Marques Bot 3años P2 x 3 | J24: =+Ruta!J24 -> Carrera 23 # 29-04 | K24: =+Ruta!K24 -> 0 | L24: 72 | M24: =+Ruta!R24 -> 230 | N24: 0.76% | O24: 8 | P24: 9 | Q24: 9 | R24: 23 | S24: 30 | T24: 76 | U24: 76 | V24: 30 | W24: =+V24/24 -> 1.25
B25: =+Ruta!B25 -> SI | C25: =+Ruta!C25 -> 22 | D25: =+Ruta!D25 -> Tuluá | E25: =+Ruta!E25 -> Mayorista | F25: =+Ruta!F25 -> Lina Colonia | G25: =+Ruta!G25 -> Distribuidora Farallón | H25: =+Ruta!H25 -> 311 334 1151 | I25: =+Ruta!I25 -> Marques 3años Botella + Can Agte | J25: =+Ruta!J25 -> Carrera 22 Calle 28 | K25: =+Ruta!K25 -> 0 | L25: 100 | M25: =+Ruta!R25 -> 3000 | N25: 9.97% | O25: 100 | P25: 80 | Q25: 80 | R25: 299 | S25: 210 | T25: 997 | U25: 700 | V25: 210 | W25: =+V25/24 -> 8.75
B26: =+Ruta!B26 -> SI | C26: =+Ruta!C26 -> 23 | D26: =+Ruta!D26 -> Tuluá | E26: =+Ruta!E26 -> Licorera | F26: =+Ruta!F26 -> Lina Colonia | G26: =+Ruta!G26 -> Licores Junior La 28 | H26: =+Ruta!H26 -> 2320073 | I26: =+Ruta!I26 -> 0 | J26: =+Ruta!J26 -> Calle 28 # 22-56 | K26: =+Ruta!K26 -> 0 | L26: 36 | M26: =+Ruta!R26 -> 240 | N26: 0.80% | O26: 8 | P26: 9 | Q26: 9 | R26: 24 | S26: 27 | T26: 80 | U26: 89 | V26: 27
B27: =+Ruta!B27 -> SI | C27: =+Ruta!C27 -> 24 | D27: =+Ruta!D27 -> Tuluá | E27: =+Ruta!E27 -> Mayorista | F27: =+Ruta!F27 -> Lina Colonia | G27: =+Ruta!G27 -> Distribuidora La Madeja | H27: =+Ruta!H27 -> 317 789 75 09 | I27: =+Ruta!I27 -> Marques 3años Botella + Can Agte | J27: =+Ruta!J27 -> Calle 29 # 22-36 | K27: =+Ruta!K27 -> 0 | L27: =9*12 -> 108 | M27: =+Ruta!R27 -> 165 | N27: 0.55% | O27: 5 | P27: 6 | Q27: 6 | R27: 16 | S27: 18 | T27: 55 | U27: 61 | V27: 18
B28: =+Ruta!B28 -> SI | C28: =+Ruta!C28 -> 25 | D28: =+Ruta!D28 -> Buga | E28: =+Ruta!E28 -> Mayorista | F28: =+Ruta!F28 -> Lina Colonia | G28: =+Ruta!G28 -> Distribuidora El Madejón | H28: =+Ruta!H28 -> 310 413 95 50 | I28: =+Ruta!I28 -> Marques 3años Botella + Can Agte - Marques 3años Botella + Can Marques 3años - Marques Can P2 X3 | J28: =+Ruta!J28 -> Calle 9 # 12 - 10 | K28: =+Ruta!K28 -> 0 | L28: =15*12 -> 180 | M28: =+Ruta!R28 -> 500 | N28: 1.66% | O28: 17 | P28: 18 | Q28: 18 | R28: 50 | S28: 50 | T28: 166 | U28: 166 | V28: 50 | W28: =+V28/24 -> 2.083333333
B29: =+Ruta!B29 -> SI | C29: =+Ruta!C29 -> 26 | D29: =+Ruta!D29 -> Andalucía | E29: =+Ruta!E29 -> Mayorista | F29: =+Ruta!F29 -> Lina Colonia | G29: =+Ruta!G29 -> Distribuidora Central de Andalucía | H29: =+Ruta!H29 -> 314 761 70 13 | I29: =+Ruta!I29 -> Marques 3años Botella + Can Agte - Marques 3años Botella + Can Marques 3años - Marques Can P2 X3 | J29: =+Ruta!J29 -> Carrera 5 # 12 - 67 | K29: =+Ruta!K29 -> 0 | L29: =3*12 -> 36 | M29: =+Ruta!R29 -> 750 | N29: 2.49% | O29: 25 | P29: 20 | Q29: 20 | R29: 75 | S29: 60 | T29: 249 | U29: 200 | V29: 60
B30: =+Ruta!B30 -> SI | C30: =+Ruta!C30 -> 27 | D30: =+Ruta!D30 -> Tuluá | E30: =+Ruta!E30 -> Mayorista | F30: =+Ruta!F30 -> Lina Colonia | G30: =+Ruta!G30 -> Autoservicio El Campesino | H30: =+Ruta!H30 -> 224 4272 | I30: =+Ruta!I30 -> Marques 3años Botella + Can Agte | J30: =+Ruta!J30 -> Carrera 22 Calle 29 | K30: =+Ruta!K30 -> 0 | L30: =5*12 -> 60 | M30: =+Ruta!R30 -> 230 | N30: 0.76% | O30: 8 | P30: 9 | Q30: 9 | R30: 23 | S30: 28 | T30: 76 | U30: 89 | V30: 28
B31: =+Ruta!B31 -> NO | C31: =+Ruta!C31 -> 28 | D31: =+Ruta!D31 -> Tuluá | E31: =+Ruta!E31 -> Licorera | F31: =+Ruta!F31 -> Lina Colonia | G31: =+Ruta!G31 -> Licorera del Parque | H31: =+Ruta!H31 -> 317 550 3193 | I31: =+Ruta!I31 -> Marques 3años Botella + Can Agte | J31: =+Ruta!J31 -> Calle 25 # 26-15 | K31: =+Ruta!K31 -> 0 | L31: 0 | M31: =+Ruta!R31 -> 0 | N31: 0.00% | O31: 0 | Q31: 0 | R31: 0 | S31: 0 | T31: 0 | U31: 0 | V31: 0
B32: =+Ruta!B32 -> SI | C32: =+Ruta!C32 -> 29 | D32: =+Ruta!D32 -> Trujillo | E32: =+Ruta!E32 -> Licorera | F32: =+Ruta!F32 -> Lina Colonia | G32: =+Ruta!G32 -> Licorera El Alambique | H32: =+Ruta!H32 -> 312 736 9212 | I32: =+Ruta!I32 -> Marques 3años Botella + Can Agte | J32: =+Ruta!J32 -> Carrera 19 # 19-22 | K32: =+Ruta!K32 -> 0 | L32: =5*12 -> 60 | M32: =+Ruta!R32 -> 155 | N32: 0.52% | O32: 5 | P32: 6 | Q32: 6 | R32: =+R$3*N32 -> 15 | S32: 18 | T32: 52 | U32: 50 | V32: 18
B33: =+Ruta!B33 -> SI | C33: =+Ruta!C33 -> 30 | D33: =+Ruta!D33 -> San Pedro | E33: =+Ruta!E33 -> Mayorista | F33: =+Ruta!F33 -> Lina Colonia | G33: =+Ruta!G33 -> Distribuidora San Pedro | H33: =+Ruta!H33 -> 311 393 5295 | I33: =+Ruta!I33 -> Marques 3años Botella + Can Agte | J33: =+Ruta!J33 -> Calle 5 Parque Principal | K33: =+Ruta!K33 -> 0 | L33: =2*12 -> 24 | M33: =+Ruta!R33 -> 175 | N33: 0.58% | O33: 6 | P33: 6 | Q33: 6 | R33: 17 | S33: 19 | T33: 58 | U33: 55 | V33: 19
B34: =+Ruta!B34 -> SI | C34: =+Ruta!C34 -> 31 | D34: =+Ruta!D34 -> Tuluá | E34: =+Ruta!E34 -> Supermercado | F34: =+Ruta!F34 -> Lina Colonia | G34: =+Ruta!G34 -> Mauro Market | H34: =+Ruta!H34 -> 323 423 8848 | I34: =+Ruta!I34 -> Botella $36.000, Marques 3años Botella + Can Agte | J34: =+Ruta!J34 -> Calle 34 Carrera 34 | K34: =+Ruta!K34 -> 0 | L34: 6 | M34: =+Ruta!R34 -> 12 | N34: 0.04% | O34: 0 | P34: 3 | Q34: 3 | R34: 1 | S34: 9 | T34: 4 | U34: 30 | V34: 9
B35: =+Ruta!B35 -> SI | C35: =+Ruta!C35 -> 32 | D35: =+Ruta!D35 -> Tuluá | E35: =+Ruta!E35 -> Licorera | F35: =+Ruta!F35 -> Lina Colonia | G35: =+Ruta!G35 -> Licores El Estanco | H35: =+Ruta!H35 -> 305 372 46 39 | I35: =+Ruta!I35 -> 0 | J35: =+Ruta!J35 -> Transv 12 # 24-46 | K35: =+Ruta!K35 -> 0 | L35: =4*12 -> 48 | M35: =+Ruta!R35 -> 175 | N35: 0.58% | O35: 6 | P35: 6 | Q35: 6 | R35: 17 | S35: 18 | T35: 58 | U35: 61 | V35: 18
B36: =+Ruta!B36 -> SI | C36: =+Ruta!C36 -> 33 | D36: =+Ruta!D36 -> Buga | E36: =+Ruta!E36 -> Licorera | F36: =+Ruta!F36 -> Lina Colonia | G36: =+Ruta!G36 -> Licores La 4ta Avenida | H36: =+Ruta!H36 -> 3167142019 | I36: =+Ruta!I36 -> Marques 3años Botella + Can Agte -Marques Bot 3años P2 x 3 - Marques 8años + Can 3 años | J36: =+Ruta!J36 -> Calle 4 # 6 - 06 | K36: =+Ruta!K36 -> 0 | L36: =30*12 -> 360 | M36: =+Ruta!R36 -> 1200 | N36: 3.99% | O36: 40 | P36: 30 | Q36: 30 | R36: 120 | S36: 100 | T36: 399 | U36: 350 | V36: 100 | W36: =+V36/24 -> 4.166666667
B37: =+Ruta!B37 -> SI | C37: =+Ruta!C37 -> 34 | D37: =+Ruta!D37 -> Cali | E37: =+Ruta!E37 -> TAT | F37: =+Ruta!F37 -> Ana Rosa Lopera | G37: =+Ruta!G37 -> Supermercado Tarzan | H37: =+Ruta!H37 -> 3143874179 | I37: =+Ruta!I37 -> Marques 3años Botella + Can Agte | J37: =+Ruta!J37 -> Carrera 82 #5-97 | K37: =+Ruta!K37 -> 901235591 | L37: 0 | M37: =+Ruta!R37 -> 18 | N37: 0.06% | O37: 1 | P37: 3 | Q37: 3 | R37: 2 | S37: 9 | T37: 6 | U37: 30 | V37: 9
B38: =+Ruta!B38 -> NO | C38: =+Ruta!C38 -> 35 | D38: =+Ruta!D38 -> Cali | E38: =+Ruta!E38 -> TAT | F38: =+Ruta!F38 -> Ana Rosa Lopera | G38: =+Ruta!G38 -> Miscelanea Viejo Willi | H38: =+Ruta!H38 -> 3298558 | I38: =+Ruta!I38 -> Marques 3años Botella + Can Agte | J38: =+Ruta!J38 -> Sector alabama la buitrera | K38: =+Ruta!K38 -> 16587698 | L38: 0 | M38: =+Ruta!R38 -> 0 | N38: 0.00% | O38: 0 | P38: 0 | Q38: 0 | R38: 0 | S38: 0 | T38: 0 | U38: 0 | V38: 0
B39: =+Ruta!B39 -> SI | C39: =+Ruta!C39 -> 36 | D39: =+Ruta!D39 -> Cali | E39: =+Ruta!E39 -> TAT | F39: =+Ruta!F39 -> Ana Rosa Lopera | G39: =+Ruta!G39 -> Licores La Perla | H39: =+Ruta!H39 -> 5216031 | I39: =+Ruta!I39 -> Marques 3años Botella + Can Agte | J39: =+Ruta!J39 -> Polvorines vía ppal | K39: =+Ruta!K39 -> 1032363617 | L39: 0 | M39: =+Ruta!R39 -> 30 | N39: 0.10% | O39: 1 | P39: 3 | Q39: 3 | R39: 3 | S39: 9 | T39: 10 | U39: 30 | V39: 9
B40: =+Ruta!B40 -> NO | C40: =+Ruta!C40 -> 37 | D40: =+Ruta!D40 -> Cali | E40: =+Ruta!E40 -> TAT | F40: =+Ruta!F40 -> Ana Rosa Lopera | G40: =+Ruta!G40 -> Licores Martha | H40: =+Ruta!H40 -> 1130669277 | I40: =+Ruta!I40 -> Marques 3años Botella + Can Agte | J40: =+Ruta!J40 -> Carrera 39 #46-10 | K40: =+Ruta!K40 -> 1130669277 | L40: 0 | M40: =+Ruta!R40 -> 0 | N40: 0.00% | O40: 0 | Q40: 0 | R40: 0 | S40: 0 | T40: 0 | U40: 0 | V40: 0
B41: =+Ruta!B41 -> SI | C41: =+Ruta!C41 -> 38 | D41: =+Ruta!D41 -> Cali | E41: =+Ruta!E41 -> TAT | F41: =+Ruta!F41 -> Ana Rosa Lopera | G41: =+Ruta!G41 -> Licores Helen | H41: =+Ruta!H41 -> 3022491892 | I41: =+Ruta!I41 -> Marques 3años Botella + Can Agte | J41: =+Ruta!J41 -> Carrera 25 #19-02 | K41: =+Ruta!K41 -> 31971928 | L41: 20 | M41: =+Ruta!R41 -> 38 | N41: 0.13% | O41: 1 | P41: 3 | Q41: 3 | R41: 4 | S41: 9 | T41: 13 | U41: 30 | V41: 9
B42: =+Ruta!B42 -> SI | C42: =+Ruta!C42 -> 39 | D42: =+Ruta!D42 -> Cali | E42: =+Ruta!E42 -> TAT | F42: =+Ruta!F42 -> Ana Rosa Lopera | G42: =+Ruta!G42 -> Mini Market 7 | H42: =+Ruta!H42 -> 3134661206 | I42: =+Ruta!I42 -> Marques 3años Botella + Can Agte | J42: =+Ruta!J42 -> Calle 7 #31-09 | K42: =+Ruta!K42 -> 1088006300 | L42: 0 | M42: =+Ruta!R42 -> 10 | N42: 0.03% | O42: 0 | P42: 3 | Q42: 3 | R42: 1 | S42: 9 | T42: 3 | U42: 30 | V42: 9
B43: =+Ruta!B43 -> SI | C43: =+Ruta!C43 -> 40 | D43: =+Ruta!D43 -> Cali | E43: =+Ruta!E43 -> TAT | F43: =+Ruta!F43 -> Ana Rosa Lopera | G43: =+Ruta!G43 -> Alvaro Prado | H43: =+Ruta!H43 -> 4207110 | I43: =+Ruta!I43 -> Marques 3años Botella + Can Agte | J43: =+Ruta!J43 -> Carrera 26 u #122=94 | K43: =+Ruta!K43 -> 94300252 | L43: 0 | M43: =+Ruta!R43 -> 26 | N43: 0.09% | O43: 1 | P43: 3 | Q43: 3 | R43: 3 | S43: 9 | T43: 9 | U43: 30 | V43: 9
B44: =+Ruta!B44 -> SI | C44: =+Ruta!C44 -> 41 | D44: =+Ruta!D44 -> Cali | E44: =+Ruta!E44 -> TAT | F44: =+Ruta!F44 -> Ana Rosa Lopera | G44: =+Ruta!G44 -> Carlos Lopez | H44: =+Ruta!H44 -> 4201897 | I44: =+Ruta!I44 -> Marques 3años Botella + Can Agte | J44: =+Ruta!J44 -> Carrera 25 c # 123-01 | K44: =+Ruta!K44 -> 70829838 | L44: 0 | M44: =+Ruta!R44 -> 26 | N44: 0.09% | O44: 1 | P44: 3 | Q44: 3 | R44: 3 | S44: 9 | T44: 9 | U44: 30 | V44: 9
B45: =+Ruta!B45 -> NO | C45: =+Ruta!C45 -> 42 | D45: =+Ruta!D45 -> Cali | E45: =+Ruta!E45 -> TAT | F45: =+Ruta!F45 -> Ana Rosa Lopera | G45: =+Ruta!G45 -> Licores El Calidoso | H45: =+Ruta!H45 -> 4056996 | I45: =+Ruta!I45 -> Marques 3años Botella + Can Agte | J45: =+Ruta!J45 -> Carrera 26L 123 06 | K45: =+Ruta!K45 -> 16833231 | L45: 0 | M45: =+Ruta!R45 -> 0 | N45: 0.00% | O45: 0 | Q45: 0 | R45: 0 | S45: 0 | T45: 0 | U45: 0 | V45: 0
B46: =+Ruta!B46 -> SI | C46: =+Ruta!C46 -> 43 | D46: =+Ruta!D46 -> Cali | E46: =+Ruta!E46 -> TAT | F46: =+Ruta!F46 -> Ana Rosa Lopera | G46: =+Ruta!G46 -> Granero y Estanco Martinez | H46: =+Ruta!H46 -> 4306553 | I46: =+Ruta!I46 -> Marques 3años Botella + Can Agte | J46: =+Ruta!J46 -> Carrera 4 A #60 - 82 | K46: =+Ruta!K46 -> 42116594 | L46: 10 | M46: =+Ruta!R46 -> 18 | N46: 0.06% | O46: 1 | P46: 3 | Q46: 3 | R46: 2 | S46: 9 | T46: 6 | U46: 30 | V46: 9
B47: =+Ruta!B47 -> NO | C47: =+Ruta!C47 -> 44 | D47: =+Ruta!D47 -> Cali | E47: =+Ruta!E47 -> TAT | F47: =+Ruta!F47 -> Ana Rosa Lopera | G47: =+Ruta!G47 -> Grupo Empresarial JF | H47: =+Ruta!H47 -> 5529929 | I47: =+Ruta!I47 -> Marques 3años Botella + Can Agte | J47: =+Ruta!J47 -> Carrera 95 # 3-20 | K47: =+Ruta!K47 -> 901133087 | L47: 0 | M47: =+Ruta!R47 -> 0 | N47: 0.00% | O47: 0 | Q47: 0 | R47: 0 | S47: 0 | T47: 0 | U47: 0 | V47: 0
B48: =+Ruta!B48 -> NO | C48: =+Ruta!C48 -> 45 | D48: =+Ruta!D48 -> Cali | E48: =+Ruta!E48 -> TAT | F48: =+Ruta!F48 -> Ana Rosa Lopera | G48: =+Ruta!G48 -> Giovanny Molina | H48: =+Ruta!H48 -> 4035308 | I48: =+Ruta!I48 -> Marques 3años Botella + Can Agte | J48: =+Ruta!J48 -> Carrera 94 A # 2 A 102 | K48: =+Ruta!K48 -> 4722270 | L48: 0 | M48: =+Ruta!R48 -> 0 | N48: 0.00% | O48: 0 | Q48: 0 | R48: 0 | S48: 0 | T48: 0 | U48: 0 | V48: 0
B49: =+Ruta!B49 -> SI | C49: =+Ruta!C49 -> 46 | D49: =+Ruta!D49 -> Cali | E49: =+Ruta!E49 -> TAT | F49: =+Ruta!F49 -> Ana Rosa Lopera | G49: =+Ruta!G49 -> Supertienda Carvajal | H49: =+Ruta!H49 -> 3015493138 | I49: =+Ruta!I49 -> Marques 3años Botella + Can Agte | J49: =+Ruta!J49 -> Calle 13 # 34 - 33 | K49: =+Ruta!K49 -> 1144040229 | L49: 0 | M49: =+Ruta!R49 -> 8 | N49: 0.03% | O49: 0 | P49: 3 | Q49: 3 | R49: 1 | S49: 9 | T49: 3 | U49: 30 | V49: 9
B50: =+Ruta!B50 -> SI | C50: =+Ruta!C50 -> 47 | D50: =+Ruta!D50 -> Cali | E50: =+Ruta!E50 -> TAT | F50: =+Ruta!F50 -> Ana Rosa Lopera | G50: =+Ruta!G50 -> Licores La Sucursal | H50: =+Ruta!H50 -> 4482670 | I50: =+Ruta!I50 -> Marques 3años Botella + Can Agte | J50: =+Ruta!J50 -> Calle 44 #5-26 | K50: =+Ruta!K50 -> 1107103712 | L50: 0 | M50: =+Ruta!R50 -> 25 | N50: 0.08% | O50: 1 | P50: 3 | Q50: 3 | R50: 2 | S50: 9 | T50: 8 | U50: 30 | V50: 9
B51: =+Ruta!B51 -> NO | C51: =+Ruta!C51 -> 48 | D51: =+Ruta!D51 -> Cali | E51: =+Ruta!E51 -> TAT | F51: =+Ruta!F51 -> Ana Rosa Lopera | G51: =+Ruta!G51 -> Richard Cundar Benavides | H51: =+Ruta!H51 -> 3153399094 | I51: =+Ruta!I51 -> 0 | J51: =+Ruta!J51 -> Cll54#47-05 | K51: =+Ruta!K51 -> 1082657940 | L51: 0 | M51: =+Ruta!R51 -> 0 | N51: 0.00% | O51: 0 | Q51: 0 | R51: 0 | S51: 0 | T51: 0 | U51: 0 | V51: 0
B52: =+Ruta!B52 -> SI | C52: =+Ruta!C52 -> 49 | D52: =+Ruta!D52 -> Cali | E52: =+Ruta!E52 -> TAT | F52: =+Ruta!F52 -> Ana Rosa Lopera | G52: =+Ruta!G52 -> Mercaplaza Mariano | H52: =+Ruta!H52 -> 374330575 | I52: =+Ruta!I52 -> Marques 3años Botella + Can Agte | J52: =+Ruta!J52 -> CLL 46 # 49-03 | K52: =+Ruta!K52 -> 1143836583 | L52: 0 | M52: =+Ruta!R52 -> 14 | N52: 0.05% | O52: 0 | P52: 3 | Q52: 3 | R52: 1 | S52: 9 | T52: 5 | U52: 30 | V52: 9
B53: =+Ruta!B53 -> NO | C53: =+Ruta!C53 -> 50 | D53: =+Ruta!D53 -> Cali | E53: =+Ruta!E53 -> TAT | F53: =+Ruta!F53 -> Ana Rosa Lopera | G53: =+Ruta!G53 -> Licores Yeya | H53: =+Ruta!H53 -> 3178465387 | I53: =+Ruta!I53 -> Marques 3años Botella + Can Agte | J53: =+Ruta!J53 -> CR 49A # 43-85 | K53: =+Ruta!K53 -> 51693168 | L53: 0 | M53: =+Ruta!R53 -> 0 | N53: 0.00% | O53: 0 | Q53: 0 | R53: 0 | S53: 0 | T53: 0 | U53: 0 | V53: 0
B54: =+Ruta!B54 -> NO | C54: =+Ruta!C54 -> 51 | D54: =+Ruta!D54 -> Cali | E54: =+Ruta!E54 -> TAT | F54: =+Ruta!F54 -> Ana Rosa Lopera | G54: =+Ruta!G54 -> supermercado Marce | H54: =+Ruta!H54 -> 3113684406 | I54: =+Ruta!I54 -> Marques 3años Botella + Can Agte | J54: =+Ruta!J54 -> CLL 83C # 20-74 | K54: =+Ruta!K54 -> 44007376 | L54: 0 | M54: =+Ruta!R54 -> 0 | N54: 0.00% | O54: 0 | Q54: 0 | R54: 0 | S54: 0 | T54: 0 | U54: 0 | V54: 0
B55: =+Ruta!B55 -> NO | C55: =+Ruta!C55 -> 52 | D55: =+Ruta!D55 -> Cali | E55: =+Ruta!E55 -> TAT | F55: =+Ruta!F55 -> Ana Rosa Lopera | G55: =+Ruta!G55 -> Granero Rey | H55: =+Ruta!H55 -> 3750248 | I55: =+Ruta!I55 -> Marques 3años Botella + Can Agte | J55: =+Ruta!J55 -> CLL 81A # 22-134 | K55: =+Ruta!K55 -> 94399540 | L55: 0 | M55: =+Ruta!R55 -> 0 | N55: 0.00% | O55: 0 | Q55: 0 | R55: 0 | S55: 0 | T55: 0 | U55: 0 | V55: 0
B56: =+Ruta!B56 -> SI | C56: =+Ruta!C56 -> 53 | D56: =+Ruta!D56 -> Cali | E56: =+Ruta!E56 -> TAT | F56: =+Ruta!F56 -> Ana Rosa Lopera | G56: =+Ruta!G56 -> supermercado Nuevo Progreso | H56: =+Ruta!H56 -> 3760861 | I56: =+Ruta!I56 -> Marques 3años Botella + Can Agte | J56: =+Ruta!J56 -> CR 34 # 26A-03 | K56: =+Ruta!K56 -> 15905205 | L56: 0 | M56: =+Ruta!R56 -> 14 | N56: 0.05% | O56: 0 | P56: 3 | Q56: 3 | R56: 1 | S56: 9 | T56: 5 | U56: 30 | V56: 9
B57: =+Ruta!B57 -> SI | C57: =+Ruta!C57 -> 54 | D57: =+Ruta!D57 -> Cali | E57: =+Ruta!E57 -> TAT | F57: =+Ruta!F57 -> Ana Rosa Lopera | G57: =+Ruta!G57 -> Rapitienda Caldas | H57: =+Ruta!H57 -> 3137974910 | I57: =+Ruta!I57 -> Marques 3años Botella + Can Agte | J57: =+Ruta!J57 -> CLL 26A # 38-09 | K57: =+Ruta!K57 -> 79887872 | L57: 0 | M57: =+Ruta!R57 -> 14 | N57: 0.05% | O57: 0 | P57: 3 | Q57: 3 | R57: 1 | S57: 9 | T57: 5 | U57: 30 | V57: 9
B58: =+Ruta!B58 -> NO | C58: =+Ruta!C58 -> 55 | D58: =+Ruta!D58 -> Cali | E58: =+Ruta!E58 -> TAT | F58: =+Ruta!F58 -> Ana Rosa Lopera | G58: =+Ruta!G58 -> Supermercado El Oasis | H58: =+Ruta!H58 -> 4469845 | I58: =+Ruta!I58 -> Marques 3años Botella + Can Agte | J58: =+Ruta!J58 -> CR 7N # 67N-42 | K58: =+Ruta!K58 -> 4485384 | L58: 0 | M58: =+Ruta!R58 -> 0 | N58: 0.00% | O58: 0 | Q58: 0 | R58: 0 | S58: 0 | T58: 0 | U58: 0 | V58: 0
B59: =+Ruta!B59 -> SI | C59: =+Ruta!C59 -> 56 | D59: =+Ruta!D59 -> Cali | E59: =+Ruta!E59 -> TAT | F59: =+Ruta!F59 -> Ana Rosa Lopera | G59: =+Ruta!G59 -> Nicolas Elias | H59: =+Ruta!H59 -> 6662306 | I59: =+Ruta!I59 -> Marques 3años Botella + Can Agte | J59: =+Ruta!J59 -> AV 3 E # 47C-20 | K59: =+Ruta!K59 -> 71371926 | L59: 0 | M59: =+Ruta!R59 -> 7 | N59: 0.02% | O59: 0 | P59: 3 | Q59: 3 | R59: 1 | S59: 9 | T59: 2 | U59: 30 | V59: 9
B60: =+Ruta!B60 -> SI | C60: =+Ruta!C60 -> 57 | D60: =+Ruta!D60 -> Cali | E60: =+Ruta!E60 -> TAT | F60: =+Ruta!F60 -> Ana Rosa Lopera | G60: =+Ruta!G60 -> Minarket 1000 y Mas | H60: =+Ruta!H60 -> 3178814634 | I60: =+Ruta!I60 -> Marques 3años Botella + Can Agte | J60: =+Ruta!J60 -> CLL 44N # 3-111 | K60: =+Ruta!K60 -> 16943799 | L60: 0 | M60: =+Ruta!R60 -> 14 | N60: 0.05% | O60: 0 | P60: 3 | Q60: 3 | R60: 1 | S60: 9 | T60: 5 | U60: 30 | V60: 9
B61: =+Ruta!B61 -> SI | C61: =+Ruta!C61 -> 58 | D61: =+Ruta!D61 -> Cali | E61: =+Ruta!E61 -> TAT | F61: =+Ruta!F61 -> Ana Rosa Lopera | G61: =+Ruta!G61 -> Brandon Carvajal | H61: =+Ruta!H61 -> 3136372746 | I61: =+Ruta!I61 -> Marques 3años Botella + Can Agte | J61: =+Ruta!J61 -> CLL 27 # 41C-37 | K61: =+Ruta!K61 -> 1107074996 | L61: 0 | M61: =+Ruta!R61 -> 0 | N61: 0.00% | O61: 0 | Q61: 0 | R61: 0 | S61: 0 | T61: 0 | U61: 0 | V61: 0
B62: =+Ruta!B62 -> SI | C62: =+Ruta!C62 -> 59 | D62: =+Ruta!D62 -> Cali | E62: =+Ruta!E62 -> TAT | F62: =+Ruta!F62 -> Ana Rosa Lopera | G62: =+Ruta!G62 -> Carolina Espinosa | H62: =+Ruta!H62 -> 3132614285 | I62: =+Ruta!I62 -> Marques 3años Botella + Can Agte | J62: =+Ruta!J62 -> CR 67 # 1A 0STE 07 | K62: =+Ruta!K62 -> 38644553 | L62: 0 | M62: =+Ruta!R62 -> 0 | N62: 0.00% | O62: 0 | Q62: 0 | R62: 0 | S62: 0 | T62: 0 | U62: 0 | V62: 0
B63: =+Ruta!B63 -> SI | C63: =+Ruta!C63 -> 60 | D63: =+Ruta!D63 -> Cali | E63: =+Ruta!E63 -> TAT | F63: =+Ruta!F63 -> Ana Rosa Lopera | G63: =+Ruta!G63 -> Licores Los Cerros | H63: =+Ruta!H63 -> 3204796646 | I63: =+Ruta!I63 -> Marques 3años Botella + Can Agte | J63: =+Ruta!J63 -> CLL1 #69-44 | K63: =+Ruta!K63 -> 94543390 | L63: 0 | M63: =+Ruta!R63 -> 21 | N63: 0.07% | O63: 1 | Q63: 0 | R63: 2 | S63: 9 | T63: 7 | U63: 30 | V63: 9
B64: =+Ruta!B64 -> SI | C64: =+Ruta!C64 -> 61 | D64: =+Ruta!D64 -> Cali | E64: =+Ruta!E64 -> TAT | F64: =+Ruta!F64 -> Ana Rosa Lopera | G64: =+Ruta!G64 -> La Rebajona | H64: =+Ruta!H64 -> 3734192 | I64: =+Ruta!I64 -> Marques 3años Botella + Can Agte | J64: =+Ruta!J64 -> CL 14A 53 03 | K64: =+Ruta!K64 -> 9855053 | L64: 0 | M64: =+Ruta!R64 -> 7 | N64: 0.02% | O64: 0 | P64: 3 | Q64: 3 | R64: 1 | S64: 9 | T64: 2 | U64: 30 | V64: 9
B65: =+Ruta!B65 -> NO | C65: =+Ruta!C65 -> 62 | D65: =+Ruta!D65 -> Cali | E65: =+Ruta!E65 -> TAT | F65: =+Ruta!F65 -> Ana Rosa Lopera | G65: =+Ruta!G65 -> Willian Urrea | H65: =+Ruta!H65 -> 3776919 | I65: =+Ruta!I65 -> Marques 3años Botella + Can Agte | J65: =+Ruta!J65 -> Kra 44 # 18 32 | K65: =+Ruta!K65 -> 10115498 | L65: 0 | M65: =+Ruta!R65 -> 0 | N65: 0.00% | O65: 0 | Q65: 0 | R65: 0 | S65: 0 | T65: 0 | U65: 0 | V65: 0
B66: =+Ruta!B66 -> SI | C66: =+Ruta!C66 -> 63 | D66: =+Ruta!D66 -> Cali | E66: =+Ruta!E66 -> TAT | F66: =+Ruta!F66 -> Ana Rosa Lopera | G66: =+Ruta!G66 -> Licores El Baratisimo | H66: =+Ruta!H66 -> 4339595 | I66: =+Ruta!I66 -> Marques 3años Botella + Can Agte | J66: =+Ruta!J66 -> Kra 1 kn # 80 74 | K66: =+Ruta!K66 -> 1118296911 | L66: 2 | M66: =+Ruta!R66 -> 14 | N66: 0.05% | O66: 0 | P66: 3 | Q66: 3 | R66: 1 | S66: 9 | T66: 5 | U66: 30 | V66: 9
B67: =+Ruta!B67 -> NO | C67: =+Ruta!C67 -> 64 | D67: =+Ruta!D67 -> Cali | E67: =+Ruta!E67 -> TAT | F67: =+Ruta!F67 -> Ana Rosa Lopera | G67: =+Ruta!G67 -> Licores El Progreso | H67: =+Ruta!H67 -> 3185227444 | I67: =+Ruta!I67 -> Marques 3años Botella + Can Agte | J67: =+Ruta!J67 -> Kra 1D # 74 25 | K67: =+Ruta!K67 -> 0 | L67: 0 | M67: =+Ruta!R67 -> 0 | N67: 0.00% | O67: 0 | Q67: 0 | R67: 0 | S67: 0 | T67: 0 | U67: 0 | V67: 0
B68: =+Ruta!B68 -> SI | C68: =+Ruta!C68 -> 65 | D68: =+Ruta!D68 -> Cali | E68: =+Ruta!E68 -> TAT | F68: =+Ruta!F68 -> Ana Rosa Lopera | G68: =+Ruta!G68 -> Marco Tulio Giraldo | H68: =+Ruta!H68 -> 4333355 | I68: =+Ruta!I68 -> Marques 3años Botella + Can Agte | J68: =+Ruta!J68 -> Cl 76A # 1D 03 | K68: =+Ruta!K68 -> 70830067 | L68: 0 | M68: =+Ruta!R68 -> 7 | N68: 0.02% | O68: 0 | P68: 3 | Q68: 3 | R68: 1 | S68: 9 | T68: 2 | U68: 30 | V68: 9
B69: =+Ruta!B69 -> SI | C69: =+Ruta!C69 -> 66 | D69: =+Ruta!D69 -> Cali | E69: =+Ruta!E69 -> TAT | F69: =+Ruta!F69 -> Ana Rosa Lopera | G69: =+Ruta!G69 -> Licores Sanchez | H69: =+Ruta!H69 -> 3184662902 | I69: =+Ruta!I69 -> Marques 3años Botella + Can Agte | J69: =+Ruta!J69 -> Kra 27 # 33 E 39 | K69: =+Ruta!K69 -> 66818508 | L69: 0 | M69: =+Ruta!R69 -> 0 | N69: 0.00% | O69: =+O$3*N69 -> 0 | P69: 3 | Q69: 3 | R69: =+R$3*N69 -> 0 | S69: =+P69*3 -> 9 | T69: =+T$3*N69 -> 0 | U69: =+Q69*10 -> 30 | V69: =+S69 -> 9
B70: =+Ruta!B70 -> SI | C70: =+Ruta!C70 -> 67 | D70: =+Ruta!D70 -> Cali | E70: =+Ruta!E70 -> TAT | F70: =+Ruta!F70 -> Ana Rosa Lopera | G70: =+Ruta!G70 -> Granero El Buen Precio | H70: =+Ruta!H70 -> 4412666 | I70: =+Ruta!I70 -> Marques 3años Botella + Can Agte | J70: =+Ruta!J70 -> CLL 34 # 25A-03 | K70: =+Ruta!K70 -> 6162317 | L70: 0 | M70: =+Ruta!R70 -> 5 | N70: 0.02% | O70: 0 | P70: 3 | Q70: 3 | R70: 0 | S70: 9 | T70: 2 | U70: 30 | V70: 9
B71: =+Ruta!B71 -> NO | C71: =+Ruta!C71 -> 68 | D71: =+Ruta!D71 -> Cali | E71: =+Ruta!E71 -> TAT | F71: =+Ruta!F71 -> Ana Rosa Lopera | G71: =+Ruta!G71 -> Clara Esperanza Ardila | H71: =+Ruta!H71 -> 4441530 | I71: =+Ruta!I71 -> Marques 3años Botella + Can Agte | J71: =+Ruta!J71 -> Kra 24# 43 65 | K71: =+Ruta!K71 -> 31272995 | L71: 0 | M71: =+Ruta!R71 -> 0 | N71: 0.00% | O71: 0 | Q71: 0 | R71: 0 | S71: 0 | T71: 0 | U71: 0 | V71: 0
B72: =+Ruta!B72 -> NO | C72: =+Ruta!C72 -> 69 | D72: =+Ruta!D72 -> Cali | E72: =+Ruta!E72 -> TAT | F72: =+Ruta!F72 -> Ana Rosa Lopera | G72: =+Ruta!G72 -> Licores Las Morochas | H72: =+Ruta!H72 -> 4454407 | I72: =+Ruta!I72 -> Marques 3años Botella + Can Agte | J72: =+Ruta!J72 -> CL 50# 28 A 28 | K72: =+Ruta!K72 -> 41474010 | L72: 0 | M72: =+Ruta!R72 -> 0 | N72: 0.00% | O72: 0 | Q72: 0 | R72: 0 | S72: 0 | T72: 0 | U72: 0 | V72: 0
B73: =+Ruta!B73 -> SI | C73: =+Ruta!C73 -> 70 | D73: =+Ruta!D73 -> Cali | E73: =+Ruta!E73 -> TAT | F73: =+Ruta!F73 -> Ana Rosa Lopera | G73: =+Ruta!G73 -> Licores La Abundancia | H73: =+Ruta!H73 -> 3154673318 | I73: =+Ruta!I73 -> Marques 3años Botella + Can Agte | J73: =+Ruta!J73 -> CL 72B# 28D3- 123 | K73: =+Ruta!K73 -> 31988790 | L73: 0 | M73: =+Ruta!R73 -> 7 | N73: 0.02% | O73: 0 | P73: 3 | Q73: 3 | R73: 1 | S73: 9 | T73: 2 | U73: 30 | V73: 9
B74: =+Ruta!B74 -> NO | C74: =+Ruta!C74 -> 71 | D74: =+Ruta!D74 -> Cali | E74: =+Ruta!E74 -> TAT | F74: =+Ruta!F74 -> Ana Rosa Lopera | G74: =+Ruta!G74 -> Campo Alegre | H74: =+Ruta!H74 -> 3174705696 | I74: =+Ruta!I74 -> Marques 3años Botella + Can Agte | J74: =+Ruta!J74 -> CL 12 OESTE #36-42 | K74: =+Ruta!K74 -> 967023320 | L74: 0 | M74: =+Ruta!R74 -> 0 | N74: 0.00% | O74: 0 | Q74: 0 | R74: 0 | S74: 0 | T74: 0 | U74: 0 | V74: 0
B75: =+Ruta!B75 -> SI | C75: =+Ruta!C75 -> 72 | D75: =+Ruta!D75 -> Cali | E75: =+Ruta!E75 -> TAT | F75: =+Ruta!F75 -> Ana Rosa Lopera | G75: =+Ruta!G75 -> Tienda Rojo y Verde | H75: =+Ruta!H75 -> 3113630033 | I75: =+Ruta!I75 -> Marques 3años Botella + Can Agte | J75: =+Ruta!J75 -> oeste santa teresita, Av. 2 Oe | K75: =+Ruta!K75 -> 16713789 | L75: 0 | M75: =+Ruta!R75 -> 7 | N75: 0.02% | O75: 0 | P75: 3 | Q75: 3 | R75: 1 | S75: 9 | T75: 2 | U75: 30 | V75: 9
B76: =+Ruta!B76 -> SI | C76: =+Ruta!C76 -> 73 | D76: =+Ruta!D76 -> Poblado Campestre | E76: =+Ruta!E76 -> TAT | F76: =+Ruta!F76 -> Ana Rosa Lopera | G76: =+Ruta!G76 -> Tienda y Licores Mas Barato | H76: =+Ruta!H76 -> 3006673631 | I76: =+Ruta!I76 -> Marques 3años Botella + Can Agte | J76: =+Ruta!J76 -> MANZANA 28 CASA 22-05 | K76: =+Ruta!K76 -> 1130679015 | L76: 0 | M76: =+Ruta!R76 -> 7 | N76: 0.02% | O76: 0 | P76: 3 | Q76: 3 | R76: 1 | S76: 9 | T76: 2 | U76: 30 | V76: 9
B77: =+Ruta!B77 -> SI | C77: =+Ruta!C77 -> 74 | D77: =+Ruta!D77 -> Poblado Campestre | E77: =+Ruta!E77 -> TAT | F77: =+Ruta!F77 -> Ana Rosa Lopera | G77: =+Ruta!G77 -> Minimarket El Majo | H77: =+Ruta!H77 -> 3174559610 | I77: =+Ruta!I77 -> Marques 3años Botella + Can Agte | J77: =+Ruta!J77 -> Calle 22 con carrera 41 oeste, manzana 30 casa 24, | K77: =+Ruta!K77 -> 66993437 | L77: 0 | M77: =+Ruta!R77 -> 3 | N77: 0.01% | O77: 0 | P77: 3 | Q77: 3 | R77: 0 | S77: 9 | T77: 1 | U77: 30 | V77: 9
B78: =+Ruta!B78 -> SI | C78: =+Ruta!C78 -> 75 | D78: =+Ruta!D78 -> Poblado Campestre | E78: =+Ruta!E78 -> TAT | F78: =+Ruta!F78 -> Ana Rosa Lopera | G78: =+Ruta!G78 -> Rendimercado Las 2 Palmas | H78: =+Ruta!H78 -> 3122879341 | I78: =+Ruta!I78 -> Marques 3años Botella + Can Agte | J78: =+Ruta!J78 -> Carrera 4 #9-09 | K78: =+Ruta!K78 -> 10389034 | L78: 0 | M78: =+Ruta!R78 -> 0 | N78: 0.00% | O78: 0 | P78: 3 | Q78: 3 | R78: 0 | S78: 9 | T78: 0 | U78: 30 | V78: 9
B79: =+Ruta!B79 -> NO | C79: =+Ruta!C79 -> 76 | D79: =+Ruta!D79 -> Cali | E79: =+Ruta!E79 -> TAT | F79: =+Ruta!F79 -> Ana Rosa Lopera | G79: =+Ruta!G79 -> Rapitienda Leonardo | H79: =+Ruta!H79 -> 3122765236 | I79: =+Ruta!I79 -> Marques 3años Botella + Can Agte | J79: =+Ruta!J79 -> Cll 1oeste #52-380 | K79: =+Ruta!K79 -> 67013451 | L79: 0 | M79: =+Ruta!R79 -> 0 | N79: 0.00% | O79: 0 | Q79: 0 | R79: 0 | S79: 0 | T79: 0 | U79: 0 | V79: 0
B80: =+Ruta!B80 -> NO | C80: =+Ruta!C80 -> 77 | D80: =+Ruta!D80 -> Cali | E80: =+Ruta!E80 -> TAT | F80: =+Ruta!F80 -> Ana Rosa Lopera | G80: =+Ruta!G80 -> Rancho y Llicores El Regalon | H80: =+Ruta!H80 -> 5528043 | I80: =+Ruta!I80 -> Marques 3años Botella + Can Agte | J80: =+Ruta!J80 -> Dg 51 #4oeste 47 | K80: =+Ruta!K80 -> 94507583 | L80: 0 | M80: =+Ruta!R80 -> 0 | N80: 0.00% | O80: 0 | Q80: 0 | R80: 0 | S80: 0 | T80: 0 | U80: 0 | V80: 0
B81: =+Ruta!B81 -> NO | C81: =+Ruta!C81 -> 78 | D81: =+Ruta!D81 -> Cali | E81: =+Ruta!E81 -> TAT | F81: =+Ruta!F81 -> Ana Rosa Lopera | G81: =+Ruta!G81 -> Rapitienda Rivera Express | H81: =+Ruta!H81 -> 3153169323 | I81: =+Ruta!I81 -> Marques 3años Botella + Can Agte | J81: =+Ruta!J81 -> Cra 54 cll1d esquina | K81: =+Ruta!K81 -> 66983025 | L81: 0 | M81: =+Ruta!R81 -> 0 | N81: 0.00% | O81: 0 | Q81: 0 | R81: 0 | S81: 0 | T81: 0 | U81: 0 | V81: 0
B82: =+Ruta!B82 -> NO | C82: =+Ruta!C82 -> 79 | D82: =+Ruta!D82 -> Cali | E82: =+Ruta!E82 -> TAT | F82: =+Ruta!F82 -> Ana Rosa Lopera | G82: =+Ruta!G82 -> Mercatoño | H82: =+Ruta!H82 -> 5523530 | I82: =+Ruta!I82 -> Marques 3años Botella + Can Agte | J82: =+Ruta!J82 -> Dg 50 oeste 5 119 | K82: =+Ruta!K82 -> 1130591583 | L82: 0 | M82: =+Ruta!R82 -> 3 | N82: 0.01% | O82: 0 | Q82: 0 | R82: 0 | S82: 9 | T82: 1 | U82: 30 | V82: 9
B83: =+Ruta!B83 -> NO | C83: =+Ruta!C83 -> 80 | D83: =+Ruta!D83 -> Cali | E83: =+Ruta!E83 -> TAT | F83: =+Ruta!F83 -> Ana Rosa Lopera | G83: =+Ruta!G83 -> Rapitienda El Sol | H83: =+Ruta!H83 -> 5524171 | I83: =+Ruta!I83 -> Marques 3años Botella + Can Agte | J83: =+Ruta!J83 -> Cra 39 2 37 | K83: =+Ruta!K83 -> 94517200 | L83: 0 | M83: =+Ruta!R83 -> 0 | N83: 0.00% | O83: 0 | Q83: 0 | R83: 0 | S83: 0 | T83: 0 | U83: 0 | V83: 0
B84: =+Ruta!B84 -> NO | C84: =+Ruta!C84 -> 81 | D84: =+Ruta!D84 -> Cali | E84: =+Ruta!E84 -> TAT | F84: =+Ruta!F84 -> Ana Rosa Lopera | G84: =+Ruta!G84 -> Rapiexpress | H84: =+Ruta!H84 -> 5132654 | I84: =+Ruta!I84 -> Marques 3años Botella + Can Agte | J84: =+Ruta!J84 -> Cra 55 6a09 | K84: =+Ruta!K84 -> 31220703 | L84: 0 | M84: =+Ruta!R84 -> 0 | N84: 0.00% | O84: 0 | Q84: 0 | R84: 0 | S84: 0 | T84: 0 | U84: 0 | V84: 0
B85: =+Ruta!B85 -> SI | C85: =+Ruta!C85 -> 82 | D85: =+Ruta!D85 -> Cali | E85: =+Ruta!E85 -> TAT | F85: =+Ruta!F85 -> Ana Rosa Lopera | G85: =+Ruta!G85 -> Autoservicio y Panadería Caribe | H85: =+Ruta!H85 -> 5136160 | I85: =+Ruta!I85 -> Marques 3años Botella + Can Agte | J85: =+Ruta!J85 -> Cra 56 1.ª 16 oeste | K85: =+Ruta!K85 -> 6102380 | L85: 0 | M85: =+Ruta!R85 -> 0 | N85: 0.00% | O85: 0 | P85: 3 | Q85: 3 | R85: 0 | S85: 9 | T85: 0 | U85: 30 | V85: 9
B86: =+Ruta!B86 -> NO | C86: =+Ruta!C86 -> 83 | D86: =+Ruta!D86 -> Cali | E86: =+Ruta!E86 -> TAT | F86: =+Ruta!F86 -> Ana Rosa Lopera | G86: =+Ruta!G86 -> Autoservicio El Único | H86: =+Ruta!H86 -> 3157691554 | I86: =+Ruta!I86 -> Marques 3años Botella + Can Agte | J86: =+Ruta!J86 -> Mz D casa 24 sector la sirena | K86: =+Ruta!K86 -> 1117016699 | L86: 0 | M86: =+Ruta!R86 -> 0 | N86: 0.00% | O86: 0 | Q86: 0 | R86: 0 | S86: 0 | T86: 0 | U86: 0 | V86: 0
B87: =+Ruta!B87 -> NO | C87: =+Ruta!C87 -> 84 | D87: =+Ruta!D87 -> Cali | E87: =+Ruta!E87 -> TAT | F87: =+Ruta!F87 -> Ana Rosa Lopera | G87: =+Ruta!G87 -> Merca Bien | H87: =+Ruta!H87 -> 3122226944 | I87: =+Ruta!I87 -> Marques 3años Botella + Can Agte | J87: =+Ruta!J87 -> Mz D casa 24 sector la sirena | K87: =+Ruta!K87 -> 1117016699 | L87: 0 | M87: =+Ruta!R87 -> 0 | N87: 0.00% | O87: 0 | Q87: 0 | R87: 0 | S87: 0 | T87: 0 | U87: 0 | V87: 0
B88: =+Ruta!B88 -> SI | C88: =+Ruta!C88 -> 85 | D88: =+Ruta!D88 -> Cali | E88: =+Ruta!E88 -> TAT | F88: =+Ruta!F88 -> Ana Rosa Lopera | G88: =+Ruta!G88 -> Supermercado La Ganguita | H88: =+Ruta!H88 -> 4468365 | I88: =+Ruta!I88 -> Marques 3años Botella + Can Agte | J88: =+Ruta!J88 -> Cra 1c4 64A 14 bloque 15 | K88: =+Ruta!K88 -> 12985122 | L88: 0 | M88: =+Ruta!R88 -> 0 | N88: 0.00% | O88: 0 | P88: 3 | Q88: 3 | R88: 0 | S88: 9 | T88: 0 | U88: 30 | V88: 9
B89: =+Ruta!B89 -> NO | C89: =+Ruta!C89 -> 86 | D89: =+Ruta!D89 -> Cali | E89: =+Ruta!E89 -> TAT | F89: =+Ruta!F89 -> Ana Rosa Lopera | G89: =+Ruta!G89 -> Supermercado Mega Líder | H89: =+Ruta!H89 -> 3726226 | I89: =+Ruta!I89 -> Marques 3años Botella + Can Agte | J89: =+Ruta!J89 -> Cll 66 1bis 70 | K89: =+Ruta!K89 -> 6548730 | L89: 0 | M89: =+Ruta!R89 -> 0 | N89: 0.00% | O89: 0 | Q89: 0 | R89: 0 | S89: 0 | T89: 0 | U89: 0 | V89: 0
B90: =+Ruta!B90 -> NO | C90: =+Ruta!C90 -> 87 | D90: =+Ruta!D90 -> Cali | E90: =+Ruta!E90 -> TAT | F90: =+Ruta!F90 -> Ana Rosa Lopera | G90: =+Ruta!G90 -> Megalider Veracruz | H90: =+Ruta!H90 -> 3217340706 | I90: =+Ruta!I90 -> Marques 3años Botella + Can Agte | J90: =+Ruta!J90 -> Cra 1b1 58.ª 09 | K90: =+Ruta!K90 -> 1130656816 | L90: 4 | M90: =+Ruta!R90 -> 0 | N90: 0.00% | O90: 0 | Q90: 0 | R90: 0 | S90: 0 | T90: 0 | U90: 0 | V90: 0
B91: =+Ruta!B91 -> NO | C91: =+Ruta!C91 -> 88 | D91: =+Ruta!D91 -> Cali | E91: =+Ruta!E91 -> TAT | F91: =+Ruta!F91 -> Ana Rosa Lopera | G91: =+Ruta!G91 -> Autoservicio El Vencedor | H91: =+Ruta!H91 -> 3780230 | I91: =+Ruta!I91 -> Marques 3años Botella + Can Agte | J91: =+Ruta!J91 -> CR 25b 25 05 | K91: =+Ruta!K91 -> 31987561 | L91: 0 | M91: =+Ruta!R91 -> 0 | N91: 0.00% | O91: 0 | Q91: 0 | R91: 0 | S91: 0 | T91: 0 | U91: 0 | V91: 0
B92: =+Ruta!B92 -> SI | C92: =+Ruta!C92 -> 89 | D92: =+Ruta!D92 -> Cali | E92: =+Ruta!E92 -> TAT | F92: =+Ruta!F92 -> Ana Rosa Lopera | G92: =+Ruta!G92 -> Rapitienda La Esperanza | H92: =+Ruta!H92 -> 3137849701 | I92: =+Ruta!I92 -> Marques 3años Botella + Can Agte | J92: =+Ruta!J92 -> Cll 27 29b 18 | K92: =+Ruta!K92 -> 38671009 | L92: 0 | M92: =+Ruta!R92 -> 0 | N92: 0.00% | O92: 0 | P92: 3 | Q92: 3 | R92: 0 | S92: 9 | T92: 0 | U92: 30 | V92: 9
B93: =+Ruta!B93 -> NO | C93: =+Ruta!C93 -> 90 | D93: =+Ruta!D93 -> Cali | E93: =+Ruta!E93 -> TAT | F93: =+Ruta!F93 -> Ana Rosa Lopera | G93: =+Ruta!G93 -> Granero el Progreso | H93: =+Ruta!H93 -> 3348473 | I93: =+Ruta!I93 -> Marques 3años Botella + Can Agte | J93: =+Ruta!J93 -> CR 31.ª 34 02 | K93: =+Ruta!K93 -> 15903476 | L93: 0 | M93: =+Ruta!R93 -> 0 | N93: 0.00% | O93: 0 | Q93: 0 | R93: 0 | S93: 0 | T93: 0 | U93: 0 | V93: 0
B94: =+Ruta!B94 -> NO | C94: =+Ruta!C94 -> 91 | D94: =+Ruta!D94 -> Cali | E94: =+Ruta!E94 -> TAT | F94: =+Ruta!F94 -> Ana Rosa Lopera | G94: =+Ruta!G94 -> Estanco Medallo | H94: =+Ruta!H94 -> 3937543 | I94: =+Ruta!I94 -> Marques 3años Botella + Can Agte | J94: =+Ruta!J94 -> Cll 112 27g 24 | K94: =+Ruta!K94 -> 16759330 | L94: 0 | M94: =+Ruta!R94 -> 0 | N94: 0.00% | O94: 0 | Q94: 0 | R94: 0 | S94: 0 | T94: 0 | U94: 0 | V94: 0
B95: =+Ruta!B95 -> NO | C95: =+Ruta!C95 -> 92 | D95: =+Ruta!D95 -> Cali | E95: =+Ruta!E95 -> TAT | F95: =+Ruta!F95 -> Ana Rosa Lopera | G95: =+Ruta!G95 -> Autoservicio Monterrey | H95: =+Ruta!H95 -> 4205905 | I95: =+Ruta!I95 -> Marques 3años Botella + Can Agte | J95: =+Ruta!J95 -> CR 43.ª 56b07 | K95: =+Ruta!K95 -> 94192456 | L95: 0 | M95: =+Ruta!R95 -> 0 | N95: 0.00% | O95: 0 | Q95: 0 | R95: 0 | S95: 0 | T95: 0 | U95: 0 | V95: 0
B96: =+Ruta!B96 -> SI | C96: =+Ruta!C96 -> 93 | D96: =+Ruta!D96 -> Cali | E96: =+Ruta!E96 -> TAT | F96: =+Ruta!F96 -> Ana Rosa Lopera | G96: =+Ruta!G96 -> El Rebajon | H96: =+Ruta!H96 -> 5579626 | I96: =+Ruta!I96 -> Marques 3años Botella + Can Agte | J96: =+Ruta!J96 -> Cll 9e 22a12 | K96: =+Ruta!K96 -> 9850773 | L96: 0 | M96: =+Ruta!R96 -> 0 | N96: 0.00% | O96: 0 | P96: 3 | Q96: 3 | R96: 0 | S96: 9 | T96: 0 | U96: 30 | V96: 9
B97: =+Ruta!B97 -> NO | C97: =+Ruta!C97 -> 94 | D97: =+Ruta!D97 -> Cali | E97: =+Ruta!E97 -> TAT | F97: =+Ruta!F97 -> Ana Rosa Lopera | G97: =+Ruta!G97 -> Minimarket La Fortuna | H97: =+Ruta!H97 -> 3207002704 | I97: =+Ruta!I97 -> Marques 3años Botella + Can Agte | J97: =+Ruta!J97 -> CL 10 # 18-61 | K97: =+Ruta!K97 -> 16712936 | L97: 0 | M97: =+Ruta!R97 -> 0 | N97: 0.00% | O97: 0 | Q97: 0 | R97: 0 | S97: 0 | T97: 0 | U97: 0 | V97: 0
B98: =+Ruta!B98 -> SI | C98: =+Ruta!C98 -> 95 | D98: =+Ruta!D98 -> Cali | E98: =+Ruta!E98 -> TAT | F98: =+Ruta!F98 -> Ana Rosa Lopera | G98: =+Ruta!G98 -> Minimarket Matecaña | H98: =+Ruta!H98 -> 5582197 | I98: =+Ruta!I98 -> Marques 3años Botella + Can Agte | J98: =+Ruta!J98 -> CR 23 12.ª 03 | K98: =+Ruta!K98 -> 98391364 | L98: 0 | M98: =+Ruta!R98 -> 0 | N98: 0.00% | O98: 0 | Q98: 0 | R98: 0 | S98: 0 | T98: 0 | U98: 0 | V98: 0
B99: =+Ruta!B99 -> NO | C99: =+Ruta!C99 -> 96 | D99: =+Ruta!D99 -> Tulua | E99: =+Ruta!E99 -> Supermercado | F99: =+Ruta!F99 -> Lina Colonia | G99: =+Ruta!G99 -> Tulua Centro Surtifamiliar | H99: =+Ruta!H99 -> 3108461826 | I99: =+Ruta!I99 -> Marques 3años Botella + Can Agte - Marques 3años Botella + Can Marques 3años -Marques Bot 3años P2 x 3 - Marques Can P2 X3 - | J99: =+Ruta!J99 -> CRA 21N° 25 – 76 | K99: =+Ruta!K99 -> 0 | M99: =+Ruta!R99 -> 0 | N99: 0.00% | O99: 0 | Q99: 0 | R99: 0 | S99: 0 | T99: 0 | U99: 0 | V99: 0
B100: =+Ruta!B100 -> NO | C100: =+Ruta!C100 -> 97 | D100: =+Ruta!D100 -> Tulua | E100: =+Ruta!E100 -> Supermercado | F100: =+Ruta!F100 -> Lina Colonia | G100: =+Ruta!G100 -> Tulua Porveir Surtifamiliar | H100: =+Ruta!H100 -> 3207178634 | I100: =+Ruta!I100 -> Marques 3años Botella + Can Agte - Marques 3años Botella + Can Marques 3años -Marques Bot 3años P2 x 3 - Marques Can P2 X3 - | J100: =+Ruta!J100 -> DIAG. 23N° 9 – 28 | K100: =+Ruta!K100 -> 0 | M100: =+Ruta!R100 -> 0 | N100: 0.00% | O100: 0 | Q100: 0 | R100: 0 | S100: 0 | T100: 0 | U100: 0 | V100: 0
B101: =+Ruta!B101 -> NO | C101: =+Ruta!C101 -> 98 | D101: =+Ruta!D101 -> Buga | E101: =+Ruta!E101 -> Supermercado | F101: =+Ruta!F101 -> Lina Colonia | G101: =+Ruta!G101 -> Buga Centro Surtifamiliar | H101: =+Ruta!H101 -> 3108461821 | I101: =+Ruta!I101 -> Marques 3años Botella + Can Agte - Marques 3años Botella + Can Marques 3años -Marques Bot 3años P2 x 3 - Marques Can P2 X3 - | J101: =+Ruta!J101 -> CRA 12N° 8 – 34 | K101: =+Ruta!K101 -> 0 | M101: =+Ruta!R101 -> 0 | N101: 0.00% | O101: 0 | Q101: 0 | R101: 0 | S101: 0 | T101: 0 | U101: 0 | V101: 0
B102: =+Ruta!B102 -> NO | C102: =+Ruta!C102 -> 99 | D102: =+Ruta!D102 -> Buga | E102: =+Ruta!E102 -> Supermercado | F102: =+Ruta!F102 -> Lina Colonia | G102: =+Ruta!G102 -> Buga Valle real Surtifamiliar | H102: =+Ruta!H102 -> 3108497538 | I102: =+Ruta!I102 -> Marques 3años Botella + Can Agte - Marques 3años Botella + Can Marques 3años -Marques Bot 3años P2 x 3 - Marques Can P2 X3 - | J102: =+Ruta!J102 -> CRA 30N° 12 – 64 | K102: =+Ruta!K102 -> 0 | M102: =+Ruta!R102 -> 0 | N102: 0.00% | O102: 0 | Q102: 0 | R102: 0 | S102: 0 | T102: 0 | U102: 0 | V102: 0
B103: =+Ruta!B103 -> NO | C103: =+Ruta!C103 -> 100 | D103: =+Ruta!D103 -> Guacarí | E103: =+Ruta!E103 -> Supermercado | F103: =+Ruta!F103 -> Lina Colonia | G103: =+Ruta!G103 -> Guacari Surtifamiliar | H103: =+Ruta!H103 -> 3202545256 | I103: =+Ruta!I103 -> Marques 3años Botella + Can Agte - Marques 3años Botella + Can Marques 3años -Marques Bot 3años P2 x 3 - Marques Can P2 X3 - | J103: =+Ruta!J103 -> CRA 7 N° 6 – 52 | K103: =+Ruta!K103 -> 0 | M103: =+Ruta!R103 -> 0 | N103: 0.00% | O103: 0 | Q103: 0 | R103: 0 | S103: 0 | T103: 0 | U103: 0 | V103: 0
B104: =+Ruta!B104 -> NO | C104: =+Ruta!C104 -> 101 | D104: =+Ruta!D104 -> Cerrito | E104: =+Ruta!E104 -> Supermercado | F104: =+Ruta!F104 -> Katherine Rengifo | G104: =+Ruta!G104 -> SurtiFamiliar | H104: =+Ruta!H104 -> 3113580948 | I104: =+Ruta!I104 -> Marques 3años Botella + Can Agte - Marques 3años Botella + Can Marques 3años -Marques Bot 3años P2 x 3 - Marques Can P2 X3 - | J104: =+Ruta!J104 -> CALLE 8N° 13 – 52 | K104: =+Ruta!K104 -> 0 | M104: =+Ruta!R104 -> 0 | N104: 0.00% | O104: 0 | Q104: 0 | R104: 0 | S104: 0 | T104: 0 | U104: 0 | V104: 0
B105: =+Ruta!B105 -> NO | C105: =+Ruta!C105 -> 102 | D105: =+Ruta!D105 -> Vijes | E105: =+Ruta!E105 -> Supermercado | F105: =+Ruta!F105 -> Miriam Mejia | G105: =+Ruta!G105 -> SurtiFamiliar | H105: =+Ruta!H105 -> 3207162674 | I105: =+Ruta!I105 -> Marques 3años Botella + Can Agte - Marques 3años Botella + Can Marques 3años -Marques Bot 3años P2 x 3 - Marques Can P2 X3 - | J105: =+Ruta!J105 -> CALLE 7 N°4 – 80 ESQUINA | K105: =+Ruta!K105 -> 0 | M105: =+Ruta!R105 -> 0 | N105: 0.00% | O105: 0 | Q105: 0 | R105: 0 | S105: 0 | T105: 0 | U105: 0 | V105: 0
B106: =+Ruta!B106 -> NO | C106: =+Ruta!C106 -> 103 | D106: =+Ruta!D106 -> Acopi | E106: =+Ruta!E106 -> Supermercado | F106: =+Ruta!F106 -> Miriam Mejia | G106: =+Ruta!G106 -> SurtiFamiliar | H106: =+Ruta!H106 -> 3136709023 | I106: =+Ruta!I106 -> Marques 3años Botella + Can Agte - Marques 3años Botella + Can Marques 3años -Marques Bot 3años P2 x 3 - Marques Can P2 X3 - | J106: =+Ruta!J106 -> CRA 40N° 12A – 237 | K106: =+Ruta!K106 -> 0 | M106: =+Ruta!R106 -> 0 | N106: 0.00% | O106: 0 | Q106: 0 | R106: 0 | S106: 0 | T106: 0 | U106: 0 | V106: 0
B107: =+Ruta!B107 -> NO | C107: =+Ruta!C107 -> 104 | D107: =+Ruta!D107 -> Alcazres | E107: =+Ruta!E107 -> Supermercado | F107: =+Ruta!F107 -> Miriam Mejia | G107: =+Ruta!G107 -> SurtiFamiliar | H107: =+Ruta!H107 -> 3206931192 | I107: =+Ruta!I107 -> Marques 3años Botella + Can Agte - Marques 3años Botella + Can Marques 3años -Marques Bot 3años P2 x 3 - Marques Can P2 X3 - | J107: =+Ruta!J107 -> CRA 1A5N° 71 – 46 | K107: =+Ruta!K107 -> 0 | M107: =+Ruta!R107 -> 0 | N107: 0.00% | O107: 0 | Q107: 0 | R107: 0 | S107: 0 | T107: 0 | U107: 0 | V107: 0
B108: =+Ruta!B108 -> NO | C108: =+Ruta!C108 -> 105 | D108: =+Ruta!D108 -> Alameda | E108: =+Ruta!E108 -> Supermercado | F108: =+Ruta!F108 -> Miriam Mejia | G108: =+Ruta!G108 -> SurtiFamiliar | H108: =+Ruta!H108 -> 3217007997 | I108: =+Ruta!I108 -> Marques 3años Botella + Can Agte - Marques 3años Botella + Can Marques 3años -Marques Bot 3años P2 x 3 - Marques Can P2 X3 - | J108: =+Ruta!J108 -> CL 9 B 23 C 65 | K108: =+Ruta!K108 -> 0 | M108: =+Ruta!R108 -> 0 | N108: 0.00% | O108: 0 | Q108: 0 | R108: 0 | S108: 0 | T108: 0 | U108: 0 | V108: 0
B109: =+Ruta!B109 -> NO | C109: =+Ruta!C109 -> 106 | D109: =+Ruta!D109 -> Caney | E109: =+Ruta!E109 -> Supermercado | F109: =+Ruta!F109 -> Miriam Mejia | G109: =+Ruta!G109 -> SurtiFamiliar | H109: =+Ruta!H109 -> 3216249142 | I109: =+Ruta!I109 -> Marques 3años Botella + Can Agte - Marques 3años Botella + Can Marques 3años -Marques Bot 3años P2 x 3 - Marques Can P2 X3 - | J109: =+Ruta!J109 -> CALLE 48N° – 83E ESQUINA | K109: =+Ruta!K109 -> 0 | M109: =+Ruta!R109 -> 0 | N109: 0.00% | O109: 0 | Q109: 0 | R109: 0 | S109: 0 | T109: 0 | U109: 0 | V109: 0
B110: =+Ruta!B110 -> NO | C110: =+Ruta!C110 -> 107 | D110: =+Ruta!D110 -> Cali | E110: =+Ruta!E110 -> Supermercado | F110: =+Ruta!F110 -> Miriam Mejia | G110: =+Ruta!G110 -> comfandi Guadalupe | H110: =+Ruta!H110 -> 3176365583 | I110: =+Ruta!I110 -> Marques 3años Botella + Can Agte - Marques 3años Botella + Can Marques 3años -Marques Bot 3años P2 x 3 - Marques Can P2 X3 - | J110: =+Ruta!J110 -> Cl. 10 ##56, | K110: =+Ruta!K110 -> 0 | M110: =+Ruta!R110 -> 0 | N110: 0.00% | O110: 0 | Q110: 0 | R110: 0 | S110: 0 | T110: 0 | U110: 0 | V110: 0
B111: =+Ruta!B111 -> NO | C111: =+Ruta!C111 -> 108 | D111: =+Ruta!D111 -> Cali | E111: =+Ruta!E111 -> Supermercado | F111: =+Ruta!F111 -> Miriam Mejia | G111: =+Ruta!G111 -> comfandi torres | H111: =+Ruta!H111 -> 3184153685 | I111: =+Ruta!I111 -> Marques 3años Botella + Can Agte - Marques 3años Botella + Can Marques 3años -Marques Bot 3años P2 x 3 - Marques Can P2 X3 - | J111: =+Ruta!J111 -> Cra. 1 #56-20 | K111: =+Ruta!K111 -> 0 | M111: =+Ruta!R111 -> 0 | N111: 0.00% | O111: 0 | Q111: 0 | R111: 0 | S111: 0 | T111: 0 | U111: 0 | V111: 0
B112: =+Ruta!B112 -> NO | C112: =+Ruta!C112 -> 109 | D112: =+Ruta!D112 -> Cali | E112: =+Ruta!E112 -> Supermercado | F112: =+Ruta!F112 -> Miriam Mejia | G112: =+Ruta!G112 -> comfandi san fernando | H112: =+Ruta!H112 -> 3174284930 | I112: =+Ruta!I112 -> Marques 3años Botella + Can Agte - Marques 3años Botella + Can Marques 3años -Marques Bot 3años P2 x 3 - Marques Can P2 X3 - | J112: =+Ruta!J112 -> Cra. 36 #68 | K112: =+Ruta!K112 -> 0 | M112: =+Ruta!R112 -> 0 | N112: 0.00% | O112: 0 | Q112: 0 | R112: 0 | S112: 0 | T112: 0 | U112: 0 | V112: 0
B113: =+Ruta!B113 -> NO | C113: =+Ruta!C113 -> 110 | D113: =+Ruta!D113 -> Cali | E113: =+Ruta!E113 -> Supermercado | F113: =+Ruta!F113 -> Miriam Mejia | G113: =+Ruta!G113 -> super A | H113: =+Ruta!H113 -> 3172930374 | I113: =+Ruta!I113 -> 0 | J113: =+Ruta!J113 -> oeste santa teresita, Av. 2 Oe | K113: =+Ruta!K113 -> 0 | M113: =+Ruta!R113 -> 0 | N113: 0.00% | O113: 0 | Q113: 0 | R113: 0 | S113: 0 | T113: 0 | U113: 0 | V113: 0
B114: =+Ruta!B114 -> SI | C114: =+Ruta!C114 -> 111 | D114: =+Ruta!D114 -> Cartago | E114: =+Ruta!E114 -> Mayorista | F114: =+Ruta!F114 -> Jhenny Romero | G114: =+Ruta!G114 -> Garces | H114: =+Ruta!H114 -> 2133333 | I114: =+Ruta!I114 -> 0 | J114: =+Ruta!J114 -> Carrera 4 # 19-38 | K114: =+Ruta!K114 -> 0 | L114: 36 | M114: =+Ruta!R114 -> 60 | N114: 0.20% | O114: 2 | P114: 3 | Q114: 3 | R114: 6 | S114: 9 | T114: 20 | U114: 30 | V114: 9
B115: =+Ruta!B115 -> SI | C115: =+Ruta!C115 -> 112 | D115: =+Ruta!D115 -> Zarzal | E115: =+Ruta!E115 -> Mayorista | F115: =+Ruta!F115 -> Jhenny Romero | G115: =+Ruta!G115 -> Cigarrería La Andina | H115: =+Ruta!H115 -> 3152228870 | I115: =+Ruta!I115 -> Marques 3años Botella + Can Agte | J115: =+Ruta!J115 -> Calle 9 # 8 - 76 | K115: =+Ruta!K115 -> 0 | L115: 50 | M115: =+Ruta!R115 -> 66 | N115: 0.22% | O115: 2 | P115: 3 | Q115: 3 | R115: 7 | S115: 9 | T115: 22 | U115: 30 | V115: 9
B116: =+Ruta!B116 -> SI | C116: =+Ruta!C116 -> 113 | D116: =+Ruta!D116 -> Cartago | E116: =+Ruta!E116 -> Mayorista | F116: =+Ruta!F116 -> Jhenny Romero | G116: =+Ruta!G116 -> Licores Raulette | H116: =+Ruta!H116 -> 2125411 | I116: =+Ruta!I116 -> Marques 3años Botella + Can Agte | J116: =+Ruta!J116 -> Carrera 4 # 11-30 | K116: =+Ruta!K116 -> 0 | L116: 120 | M116: =+Ruta!R116 -> 86 | N116: 0.29% | O116: 3 | P116: 3 | Q116: 3 | R116: 9 | S116: 9 | T116: 29 | U116: 29 | V116: 9
B117: =+Ruta!B117 -> SI | C117: =+Ruta!C117 -> 114 | D117: =+Ruta!D117 -> La Unión | E117: =+Ruta!E117 -> Licorera | F117: =+Ruta!F117 -> Jhenny Romero | G117: =+Ruta!G117 -> Estanquillo La 16 | H117: =+Ruta!H117 -> 2292935 | I117: =+Ruta!I117 -> Marques 3años Botella + Can Agte | J117: =+Ruta!J117 -> Carrera 16 # 17 - 44 | K117: =+Ruta!K117 -> 0 | L117: 36 | M117: =+Ruta!R117 -> 70 | N117: 0.23% | O117: 2 | P117: 3 | Q117: 3 | R117: 7 | S117: 9 | T117: 23 | U117: 30 | V117: 9
B118: =+Ruta!B118 -> SI | C118: =+Ruta!C118 -> 115 | D118: =+Ruta!D118 -> Roldanillo | E118: =+Ruta!E118 -> Mayorista | F118: =+Ruta!F118 -> Jhenny Romero | G118: =+Ruta!G118 -> Estanquillo Muñoz | H118: =+Ruta!H118 -> 2297172 | I118: =+Ruta!I118 -> Marques 3años Botella + Can Agte - Marques 3años Botella + Can Marques 3años -Marques Bot 3años P2 x 3 - Marques Can P2 X3 - Marques 8años + Can 3 años | J118: =+Ruta!J118 -> Calle 8 # 7 - 67 | K118: =+Ruta!K118 -> 0 | L118: 24 | M118: =+Ruta!R118 -> 68 | N118: 0.23% | O118: 2 | P118: 3 | Q118: 3 | R118: 7 | S118: 9 | T118: 23 | U118: 30 | V118: 9
B119: =+Ruta!B119 -> SI | C119: =+Ruta!C119 -> 116 | D119: =+Ruta!D119 -> Cartago | E119: =+Ruta!E119 -> Mayorista | F119: =+Ruta!F119 -> Jhenny Romero | G119: =+Ruta!G119 -> Comercializadora Don Jimmy | H119: =+Ruta!H119 -> 2139099 | I119: =+Ruta!I119 -> Marques 3años Botella + Can Agte - Marques 3años Botella + Can Marques 3años -Marques Bot 3años P2 x 3 - Marques Can P2 X3 - Marques 8años + Can 3 años | J119: =+Ruta!J119 -> Carrera / # 11-51 | K119: =+Ruta!K119 -> 0 | L119: 60 | M119: =+Ruta!R119 -> 280 | N119: 0.93% | O119: 9 | P119: 11 | Q119: 11 | R119: 28 | S119: 32 | T119: 93 | U119: 90 | V119: 32
B120: =+Ruta!B120 -> NO | C120: =+Ruta!C120 -> 117 | D120: =+Ruta!D120 -> Alcalá | E120: =+Ruta!E120 -> Licorera | F120: =+Ruta!F120 -> Jhenny Romero | G120: =+Ruta!G120 -> Distribuciones El Imán | H120: =+Ruta!H120 -> 3113183498 | I120: =+Ruta!I120 -> Marques 3años Botella + Can Agte | J120: =+Ruta!J120 -> Calle 5 # 8-36 | K120: =+Ruta!K120 -> 0 | L120: 10 | M120: =+Ruta!R120 -> 3 | N120: 0.01% | O120: 0 | P120: 3 | Q120: 3 | R120: 0 | S120: 9 | T120: 1 | U120: 30 | V120: 9
B121: =+Ruta!B121 -> SI | C121: =+Ruta!C121 -> 118 | D121: =+Ruta!D121 -> Cartago | E121: =+Ruta!E121 -> Mayorista | F121: =+Ruta!F121 -> Jhenny Romero | G121: =+Ruta!G121 -> Saloon Licores | H121: =+Ruta!H121 -> 3175131166 | I121: =+Ruta!I121 -> Marques 3años Botella + Can Agte | J121: =+Ruta!J121 -> Calle 10 # 15 - 20 | K121: =+Ruta!K121 -> 0 | L121: 120 | M121: =+Ruta!R121 -> 75 | N121: 0.25% | O121: 2 | P121: 3 | Q121: 3 | R121: 7 | S121: 10 | T121: 25 | U121: 32 | V121: 10
B122: =+Ruta!B122 -> SI | C122: =+Ruta!C122 -> 119 | D122: =+Ruta!D122 -> Palmira | E122: =+Ruta!E122 -> Mayorista | F122: =+Ruta!F122 -> Katherine Rengifo | G122: =+Ruta!G122 -> Licores Palmira | H122: =+Ruta!H122 -> 2859975-3218677680 | I122: =+Ruta!I122 -> Marques 3años Botella + Can Agte - Marques 3años Botella + Can Marques 3años -Marques Bot 3años P2 x 3 - Marques Can P2 X3 - Marques 8años + Can 3 años | J122: =+Ruta!J122 -> Calle 31 # 37 - 56 | K122: =+Ruta!K122 -> 0 | L122: =15*12 -> 180 | M122: =+Ruta!R122 -> 1200 | N122: 3.99% | O122: 40 | P122: 26 | Q122: 26 | R122: 120 | S122: 100 | T122: 399 | U122: 350 | V122: 100
B123: =+Ruta!B123 -> SI | C123: =+Ruta!C123 -> 120 | D123: =+Ruta!D123 -> El Placer | E123: =+Ruta!E123 -> Mayorista | F123: =+Ruta!F123 -> Katherine Rengifo | G123: =+Ruta!G123 -> Granero Los Paisas | H123: =+Ruta!H123 -> 3173171258-2548145 | I123: =+Ruta!I123 -> Marques 3años Botella + Can Agte | J123: =+Ruta!J123 -> Carrera 8 # 6 -12 | K123: =+Ruta!K123 -> 0 | L123: =6*12 -> 72 | M123: =+Ruta!R123 -> 300 | N123: 1.00% | O123: 10 | P123: 9 | Q123: 9 | R123: 30 | S123: 30 | T123: 100 | U123: 100 | V123: 30
B124: =+Ruta!B124 -> SI | C124: =+Ruta!C124 -> 121 | D124: =+Ruta!D124 -> Cerrito | E124: =+Ruta!E124 -> Licorera | F124: =+Ruta!F124 -> Katherine Rengifo | G124: =+Ruta!G124 -> Estanco Punto Blanco | H124: =+Ruta!H124 -> 3146620834 | I124: =+Ruta!I124 -> Marques 3años Botella + Can Agte | J124: =+Ruta!J124 -> Calle 7 # 12 - 08 | K124: =+Ruta!K124 -> 0 | L124: =4*12 -> 48 | M124: =+Ruta!R124 -> 300 | N124: 1.00% | O124: 10 | P124: 9 | Q124: 9 | R124: 30 | S124: 30 | T124: 100 | U124: 100 | V124: 30
B125: =+Ruta!B125 -> SI | C125: =+Ruta!C125 -> 122 | D125: =+Ruta!D125 -> Pradera | E125: =+Ruta!E125 -> Licorera | F125: =+Ruta!F125 -> Katherine Rengifo | G125: =+Ruta!G125 -> El Barril de la 6 | H125: =+Ruta!H125 -> 3163471484-2670572-3187944106 | I125: =+Ruta!I125 -> Marques 3años Botella + Can Agte | J125: =+Ruta!J125 -> Calle 6 # 11-03 | K125: =+Ruta!K125 -> 0 | L125: =10*12 -> 120 | M125: =+Ruta!R125 -> 840 | N125: 2.79% | O125: 28 | P125: 21 | Q125: 21 | R125: 84 | S125: 80 | T125: 279 | U125: 260 | V125: 80
B126: =+Ruta!B126 -> SI | C126: =+Ruta!C126 -> 123 | D126: =+Ruta!D126 -> Pradera | E126: =+Ruta!E126 -> Supermercado | F126: =+Ruta!F126 -> Katherine Rengifo | G126: =+Ruta!G126 -> Mercapava | H126: =+Ruta!H126 -> 2834030 | I126: =+Ruta!I126 -> Marques 3años Botella + Can Agte | J126: =+Ruta!J126 -> Calle 7 # 9-59 | K126: =+Ruta!K126 -> 0 | M126: =+Ruta!R126 -> 420 | N126: 1.40% | O126: 14 | P126: 4 | Q126: 4 | R126: 42 | S126: 40 | T126: 140 | U126: 120 | V126: 40
B127: =+Ruta!B127 -> SI | C127: =+Ruta!C127 -> 124 | D127: =+Ruta!D127 -> Candelaria | E127: =+Ruta!E127 -> Mayorista | F127: =+Ruta!F127 -> Katherine Rengifo | G127: =+Ruta!G127 -> Estanco y Dulcería Los Paisas | H127: =+Ruta!H127 -> 3136518541 | I127: =+Ruta!I127 -> Marques 3años Botella + Can Agte | J127: =+Ruta!J127 -> Carrera 7 # 4-80 | K127: =+Ruta!K127 -> 0 | L127: =8*12 -> 96 | M127: =+Ruta!R127 -> 240 | N127: 0.80% | O127: 8 | P127: 10 | Q127: 10 | R127: 24 | S127: 30 | T127: 80 | U127: 80 | V127: 30
B128: =+Ruta!B128 -> SI | C128: =+Ruta!C128 -> 125 | D128: =+Ruta!D128 -> Florida | E128: =+Ruta!E128 -> Mayorista | F128: =+Ruta!F128 -> Katherine Rengifo | G128: =+Ruta!G128 -> Distribuidora Cordillera Central | H128: =+Ruta!H128 -> 3117666820 | I128: =+Ruta!I128 -> 0 | J128: =+Ruta!J128 -> Carrera 14 # 8 - 61 | K128: =+Ruta!K128 -> 0 | L128: 0 | M128: =+Ruta!R128 -> 180 | N128: 0.60% | O128: 6 | P128: 3 | Q128: 3 | R128: 18 | S128: 18 | T128: 60 | U128: 50 | V128: 18
B129: =+Ruta!B129 -> SI | C129: =+Ruta!C129 -> 126 | D129: =+Ruta!D129 -> Palmira | E129: =+Ruta!E129 -> Supermercado | F129: =+Ruta!F129 -> Katherine Rengifo | G129: =+Ruta!G129 -> Supermercado La Gran Colombia | H129: =+Ruta!H129 -> 3004377555 | I129: =+Ruta!I129 -> Marques 3años Botella + Can Agte | J129: =+Ruta!J129 -> Carrera 28 # 66A - 86 | K129: =+Ruta!K129 -> 0 | M129: =+Ruta!R129 -> 24 | N129: 0.08% | O129: 1 | P129: 3 | Q129: 3 | R129: 2 | S129: 9 | T129: 8 | U129: 30 | V129: 9
B130: =+Ruta!B130 -> SI | C130: =+Ruta!C130 -> 127 | D130: =+Ruta!D130 -> Palmira | E130: =+Ruta!E130 -> Supermercado | F130: =+Ruta!F130 -> Katherine Rengifo | G130: =+Ruta!G130 -> SuperInter La Cometa | H130: =+Ruta!H130 -> 3113775927 | I130: =+Ruta!I130 -> Marques 3años Botella + Can Agte | J130: =+Ruta!J130 -> Carrera 19 # 42A - 23 | K130: =+Ruta!K130 -> 0 | M130: =+Ruta!R130 -> 120 | N130: 0.40% | O130: 4 | P130: 3 | Q130: 3 | R130: 12 | S130: 8 | T130: 40 | U130: 26 | V130: 8
B131: =+Ruta!B131 -> NO | C131: =+Ruta!C131 -> 128 | D131: =+Ruta!D131 -> Palmira | E131: =+Ruta!E131 -> Supermercado | F131: =+Ruta!F131 -> Katherine Rengifo | G131: =+Ruta!G131 -> SuperInter Centro | H131: =+Ruta!H131 -> 3215638563 | I131: =+Ruta!I131 -> Marques 3años Botella + Can Agte | J131: =+Ruta!J131 -> Calle31 # 27 - 37 | K131: =+Ruta!K131 -> 0 | M131: =+Ruta!R131 -> 0 | N131: 0.00% | O131: 0 | P131: 3 | Q131: 3 | R131: 0 | S131: 8 | T131: 0 | U131: 26 | V131: 8
B132: =+Ruta!B132 -> SI | C132: =+Ruta!C132 -> 129 | D132: =+Ruta!D132 -> Palmira | E132: =+Ruta!E132 -> Supermercado | F132: =+Ruta!F132 -> Katherine Rengifo | G132: =+Ruta!G132 -> Olimpica Versalles | H132: =+Ruta!H132 -> 2896657 | I132: =+Ruta!I132 -> Marques 3años Botella + Can Agte | J132: =+Ruta!J132 -> Calle 42 # 28 Esquina | K132: =+Ruta!K132 -> 0 | M132: =+Ruta!R132 -> 120 | N132: 0.40% | O132: 4 | P132: 3 | Q132: 3 | R132: 12 | S132: 9 | T132: 40 | U132: 30 | V132: 9
B133: =+Ruta!B133 -> SI | C133: =+Ruta!C133 -> 130 | D133: =+Ruta!D133 -> Tuluá | E133: =+Ruta!E133 -> Mayorista | F133: =+Ruta!F133 -> Lina Colonia | G133: =+Ruta!G133 -> Distri Jota SAS | H133: =+Ruta!H133 -> (2) 224 9488 | I133: =+Ruta!I133 -> Marques 3años Botella + Can Agte | J133: =+Ruta!J133 -> Calle 29 # 22-23 | K133: =+Ruta!K133 -> 0 | M133: =+Ruta!R133 -> 80 | N133: 0.27% | O133: =+O$3*N133 -> 3 | P133: 3 | Q133: 3 | R133: =+R$3*N133 -> 8 | S133: =+P133*3 -> 9 | T133: =+T$3*N133 -> 27 | U133: =+Q133*10 -> 30 | V133: =+S133 -> 9
B134: =+Ruta!B134 -> SI | C134: =+Ruta!C134 -> 131 | D134: =+Ruta!D134 -> Tuluá | E134: =+Ruta!E134 -> Mayorista | F134: =+Ruta!F134 -> Lina Colonia | G134: =+Ruta!G134 -> Depósito La Ganga | H134: =+Ruta!H134 -> (2) 225 7742 | I134: =+Ruta!I134 -> Marques 3años Botella + Can Agte | J134: =+Ruta!J134 -> Carrera 22 # 28 - 49 | K134: =+Ruta!K134 -> 0 | L134: =8*12 -> 96 | M134: =+Ruta!R134 -> 270 | N134: 0.90% | O134: 9 | P134: 9 | Q134: 9 | R134: 27 | S134: 27 | T134: 90 | U134: 90 | V134: 27
B135: =+Ruta!B135 -> SI | C135: =+Ruta!C135 -> 132 | D135: =+Ruta!D135 -> Tuluá | E135: =+Ruta!E135 -> Mayorista | F135: =+Ruta!F135 -> Lina Colonia | G135: =+Ruta!G135 -> Cacharrería yDist. JM | H135: =+Ruta!H135 -> 318 369 2722 | I135: =+Ruta!I135 -> Marques 3años Botella + Can Agte | J135: =+Ruta!J135 -> 0 | K135: =+Ruta!K135 -> 0 | M135: =+Ruta!R135 -> 36 | N135: 0.12% | O135: 1 | P135: 3 | Q135: 3 | R135: 4 | S135: 9 | T135: 12 | U135: =+Q135*10 -> 30 | V135: 9
B136: =+Ruta!B136 -> SI | C136: =+Ruta!C136 -> 133 | D136: =+Ruta!D136 -> Tuluá | E136: =+Ruta!E136 -> Mayorista | F136: =+Ruta!F136 -> Lina Colonia | G136: =+Ruta!G136 -> Almacén Ossa | H136: =+Ruta!H136 -> 317 513 4129 | I136: =+Ruta!I136 -> Marques 3años Botella + Can Agte | J136: =+Ruta!J136 -> Carrera 22 # 29A - 04 | K136: =+Ruta!K136 -> 0 | M136: =+Ruta!R136 -> 170 | N136: 0.57% | O136: 6 | P136: 6 | Q136: 6 | R136: 17 | S136: 15 | T136: 57 | U136: 55 | V136: 15
B137: =+Ruta!B137 -> NO | C137: =+Ruta!C137 -> 134 | D137: =+Ruta!D137 -> Buga | E137: =+Ruta!E137 -> Mayorista | F137: =+Ruta!F137 -> Lina Colonia | G137: =+Ruta!G137 -> Licores La Cuarta | H137: =+Ruta!H137 -> 316 714 2019 | I137: =+Ruta!I137 -> Marques 3años Botella + Can Agte | J137: =+Ruta!J137 -> Calle 4 # 6-06 | K137: =+Ruta!K137 -> 0 | M137: =+Ruta!R137 -> 0 | N137: 0.00% | O137: 0 | Q137: 0 | R137: 0 | S137: 0 | T137: 0 | U137: =+Q137*10 -> 0 | V137: 0
B138: =+Ruta!B138 -> SI | C138: =+Ruta!C138 -> 135 | D138: =+Ruta!D138 -> Restrepo | E138: =+Ruta!E138 -> Mayorista | F138: =+Ruta!F138 -> Lina Colonia | G138: =+Ruta!G138 -> Los Paisas | H138: =+Ruta!H138 -> 321 482 7231 | I138: =+Ruta!I138 -> Marques 3años Botella + Can Agte | J138: =+Ruta!J138 -> Carrera 10 # 9-50 Plaza de mercado | K138: =+Ruta!K138 -> 0 | M138: =+Ruta!R138 -> 220 | N138: 0.73% | O138: 7 | P138: 9 | Q138: 9 | R138: 22 | S138: 22 | T138: 73 | U138: 70 | V138: 22
B139: =+Ruta!B139 -> SI | C139: =+Ruta!C139 -> 136 | D139: =+Ruta!D139 -> Buga | E139: =+Ruta!E139 -> Mayorista | F139: =+Ruta!F139 -> Lina Colonia | G139: =+Ruta!G139 -> Depóstito El Triunfo | H139: =+Ruta!H139 -> (2) 227 1824 | I139: =+Ruta!I139 -> Marques 3años Botella + Can Agte | J139: =+Ruta!J139 -> Calle 21 # 12-59 | K139: =+Ruta!K139 -> 0 | M139: =+Ruta!R139 -> 260 | N139: 0.86% | O139: 9 | P139: 9 | Q139: 9 | R139: 26 | S139: 28 | T139: 86 | U139: 80 | V139: 28 | W139: =+V139/24 -> 1.180046487
B140: =+Ruta!B140 -> SI | C140: =+Ruta!C140 -> 137 | D140: =+Ruta!D140 -> Palmira | E140: =+Ruta!E140 -> Mayorista | F140: =+Ruta!F140 -> Katherine Rengifo | G140: =+Ruta!G140 -> Miscelanea La Unión | H140: =+Ruta!H140 -> 3157030966 - 2836460 | I140: =+Ruta!I140 -> Marques 3años Botella + Can Agte | J140: =+Ruta!J140 -> cra 25 #27-44 | K140: =+Ruta!K140 -> 0 | M140: =+Ruta!R140 -> 360 | N140: 1.20% | O140: 12 | Q140: 0 | R140: 36 | S140: 30 | T140: 120 | U140: 100 | V140: 30
B141: =+Ruta!B141 -> SI | C141: =+Ruta!C141 -> 138 | D141: =+Ruta!D141 -> Cali | E141: =+Ruta!E141 -> TAT | F141: =+Ruta!F141 -> Ana Rosa Lopera | G141: =+Ruta!G141 -> Luz marina zuluaga | H141: =+Ruta!H141 -> 3207412307 | I141: =+Ruta!I141 -> Marques 3años Botella + Can Agte | J141: =+Ruta!J141 -> AV 15 OESTE # 7 03 | K141: =+Ruta!K141 -> 31523227 | M141: =+Ruta!R141 -> 0 | N141: 0.00% | O141: 0 | P141: 3 | Q141: 3 | R141: 0 | S141: 9 | T141: 0 | U141: =+Q141*10 -> 30 | V141: 9
B142: =+Ruta!B142 -> SI | C142: =+Ruta!C142 -> 139 | D142: =+Ruta!D142 -> Cali | E142: =+Ruta!E142 -> TAT | F142: =+Ruta!F142 -> Ana Rosa Lopera | G142: =+Ruta!G142 -> Ramon giraldo | H142: =+Ruta!H142 -> 3113754878 | I142: =+Ruta!I142 -> Marques 3años Botella + Can Agte | J142: =+Ruta!J142 -> CLL 12 OESTE # 39-06 | K142: =+Ruta!K142 -> 94422261 | M142: =+Ruta!R142 -> 5 | N142: 0.02% | O142: 0 | P142: 3 | Q142: 3 | R142: 0 | S142: 9 | T142: 2 | U142: 30 | V142: 9
B143: =+Ruta!B143 -> NO | C143: =+Ruta!C143 -> 140 | D143: =+Ruta!D143 -> Cali | E143: =+Ruta!E143 -> TAT | F143: =+Ruta!F143 -> Ana Rosa Lopera | G143: =+Ruta!G143 -> Victor mosquera | H143: =+Ruta!H143 -> 6622328 | I143: =+Ruta!I143 -> Marques 3años Botella + Can Agte | J143: =+Ruta!J143 -> CL 72A # 7B BIS 09 | K143: =+Ruta!K143 -> 166659803 | M143: =+Ruta!R143 -> 6 | N143: 0.02% | O143: 0 | P143: 3 | Q143: 3 | R143: 1 | S143: 9 | T143: 2 | U143: 30 | V143: 9
B144: =+Ruta!B144 -> SI | C144: =+Ruta!C144 -> 141 | D144: =+Ruta!D144 -> Cali | E144: =+Ruta!E144 -> TAT | F144: =+Ruta!F144 -> Ana Rosa Lopera | G144: =+Ruta!G144 -> Doly hortencia | H144: =+Ruta!H144 -> 5514843 | I144: =+Ruta!I144 -> Marques 3años Botella + Can Agte | J144: =+Ruta!J144 -> CR 40A # 9C 20 | K144: =+Ruta!K144 -> 66814208 | M144: =+Ruta!R144 -> 7 | N144: 0.02% | O144: 0 | P144: 3 | Q144: 3 | R144: 1 | S144: 9 | T144: 2 | U144: 30 | V144: 9
B145: =+Ruta!B145 -> SI | C145: =+Ruta!C145 -> 142 | D145: =+Ruta!D145 -> Cali | E145: =+Ruta!E145 -> TAT | F145: =+Ruta!F145 -> Ana Rosa Lopera | G145: =+Ruta!G145 -> Jonny salazar giraldo | H145: =+Ruta!H145 -> 3117636936 | I145: =+Ruta!I145 -> Marques 3años Botella + Can Agte | J145: =+Ruta!J145 -> CLL 13 # 47 04 | K145: =+Ruta!K145 -> 1038405574 | M145: =+Ruta!R145 -> 3 | N145: 0.01% | O145: 0 | P145: 3 | Q145: 3 | R145: 0 | S145: 9 | T145: 1 | U145: 30 | V145: 9
B146: =+Ruta!B146 -> SI | C146: =+Ruta!C146 -> 143 | D146: =+Ruta!D146 -> Cali | E146: =+Ruta!E146 -> TAT | F146: =+Ruta!F146 -> Ana Rosa Lopera | G146: =+Ruta!G146 -> Carlos alberto lopez | H146: =+Ruta!H146 -> 5531616 | I146: =+Ruta!I146 -> Marques 3años Botella + Can Agte | J146: =+Ruta!J146 -> CR 47A # 10-83 | K146: =+Ruta!K146 -> 15429690 | M146: =+Ruta!R146 -> 7 | N146: 0.02% | O146: 0 | P146: 3 | Q146: 3 | R146: 1 | S146: 9 | T146: 2 | U146: 30 | V146: 9
B147: =+Ruta!B147 -> SI | C147: =+Ruta!C147 -> 144 | D147: =+Ruta!D147 -> Cali | E147: =+Ruta!E147 -> TAT | F147: =+Ruta!F147 -> Ana Rosa Lopera | G147: =+Ruta!G147 -> Yakeline ospina | H147: =+Ruta!H147 -> 3053624703 | I147: =+Ruta!I147 -> Marques 3años Botella + Can Agte | J147: =+Ruta!J147 -> CLL 52A # 29B 17 | K147: =+Ruta!K147 -> 1144176021 | M147: =+Ruta!R147 -> 0 | N147: 0.00% | O147: 0 | P147: 3 | Q147: 3 | R147: 0 | S147: 9 | T147: 0 | U147: 30 | V147: 9
B148: =+Ruta!B148 -> SI | C148: =+Ruta!C148 -> 145 | D148: =+Ruta!D148 -> Cali | E148: =+Ruta!E148 -> TAT | F148: =+Ruta!F148 -> Ana Rosa Lopera | G148: =+Ruta!G148 -> Jaime ocampo valencia | H148: =+Ruta!H148 -> 3103953082 | I148: =+Ruta!I148 -> Marques 3años Botella + Can Agte | J148: =+Ruta!J148 -> CLL 51 # 29A 118 | K148: =+Ruta!K148 -> 1058844991 | M148: =+Ruta!R148 -> 7 | N148: 0.02% | O148: 0 | P148: 11 | Q148: 11 | R148: 1 | S148: 9 | T148: 2 | U148: 30 | V148: 9
B149: =+Ruta!B149 -> SI | C149: =+Ruta!C149 -> 146 | D149: =+Ruta!D149 -> Cali | E149: =+Ruta!E149 -> TAT | F149: =+Ruta!F149 -> Ana Rosa Lopera | G149: =+Ruta!G149 -> Jesus antonio barles | H149: =+Ruta!H149 -> 3931110 | I149: =+Ruta!I149 -> Marques 3años Botella + Can Agte | J149: =+Ruta!J149 -> CR 32A # 51A 20 | K149: =+Ruta!K149 -> 3493913 | M149: =+Ruta!R149 -> 3 | N149: 0.01% | O149: 0 | P149: 3 | Q149: 3 | R149: 0 | S149: 9 | T149: 1 | U149: =+Q149*10 -> 30 | V149: 9
B150: =+Ruta!B150 -> SI | C150: =+Ruta!C150 -> 147 | D150: =+Ruta!D150 -> Cali | E150: =+Ruta!E150 -> TAT | F150: =+Ruta!F150 -> Ana Rosa Lopera | G150: =+Ruta!G150 -> Ciro solis | H150: =+Ruta!H150 -> 3217534183 | I150: =+Ruta!I150 -> Marques 3años Botella + Can Agte | J150: =+Ruta!J150 -> CR 29B # 46 00 | K150: =+Ruta!K150 -> 1144137846 | M150: =+Ruta!R150 -> 3 | N150: 0.01% | O150: 0 | P150: 3 | Q150: 3 | R150: 0 | S150: 9 | T150: 1 | U150: 30 | V150: 9
B151: =+Ruta!B151 -> SI | C151: =+Ruta!C151 -> 148 | D151: =+Ruta!D151 -> Cali | E151: =+Ruta!E151 -> TAT | F151: =+Ruta!F151 -> Ana Rosa Lopera | G151: =+Ruta!G151 -> Jaime jaramillo | H151: =+Ruta!H151 -> 3146940159 | I151: =+Ruta!I151 -> Marques 3años Botella + Can Agte | J151: =+Ruta!J151 -> CR 29 B # 40 99 | K151: =+Ruta!K151 -> 1107514677 | M151: =+Ruta!R151 -> 3 | N151: 0.01% | O151: 0 | P151: 3 | Q151: 3 | R151: 0 | S151: 9 | T151: 1 | U151: 30 | V151: 9
B152: =+Ruta!B152 -> SI | C152: =+Ruta!C152 -> 149 | D152: =+Ruta!D152 -> Cali | E152: =+Ruta!E152 -> TAT | F152: =+Ruta!F152 -> Ana Rosa Lopera | G152: =+Ruta!G152 -> Carlos alberto lopez | H152: =+Ruta!H152 -> 3137671699 | I152: =+Ruta!I152 -> Marques 3años Botella + Can Agte | J152: =+Ruta!J152 -> CLL 49# 8A 23 | K152: =+Ruta!K152 -> 16681943 | M152: =+Ruta!R152 -> 3 | N152: 0.01% | O152: 0 | P152: 3 | Q152: 3 | R152: 0 | S152: 9 | T152: 1 | U152: 30 | V152: 9
B153: =+Ruta!B153 -> SI | C153: =+Ruta!C153 -> 150 | D153: =+Ruta!D153 -> Cali | E153: =+Ruta!E153 -> TAT | F153: =+Ruta!F153 -> Ana Rosa Lopera | G153: =+Ruta!G153 -> Olga pelaez | H153: =+Ruta!H153 -> 4337053 | I153: =+Ruta!I153 -> Marques 3años Botella + Can Agte | J153: =+Ruta!J153 -> CLL 71C # 3BN 70 | K153: =+Ruta!K153 -> 29185357 | M153: =+Ruta!R153 -> 0 | N153: 0.00% | O153: 0 | P153: 3 | Q153: 3 | R153: 0 | S153: 9 | T153: 0 | U153: 30 | V153: 9
B154: =+Ruta!B154 -> SI | C154: =+Ruta!C154 -> 151 | D154: =+Ruta!D154 -> Cali | E154: =+Ruta!E154 -> TAT | F154: =+Ruta!F154 -> Ana Rosa Lopera | G154: =+Ruta!G154 -> Alba nora | H154: =+Ruta!H154 -> 3207552888 | I154: =+Ruta!I154 -> Marques 3años Botella + Can Agte | J154: =+Ruta!J154 -> CLL 45 # 98A 28 | K154: =+Ruta!K154 -> 66978222 | M154: =+Ruta!R154 -> 6 | N154: 0.02% | O154: 0 | P154: 3 | Q154: 3 | R154: 1 | S154: 9 | T154: 2 | U154: 30 | V154: 9
B155: =+Ruta!B155 -> SI | C155: =+Ruta!C155 -> 152 | D155: =+Ruta!D155 -> Cali | E155: =+Ruta!E155 -> TAT | F155: =+Ruta!F155 -> Ana Rosa Lopera | G155: =+Ruta!G155 -> Diliana españa | H155: =+Ruta!H155 -> 3162451945 | I155: =+Ruta!I155 -> Marques 3años Botella + Can Agte | J155: =+Ruta!J155 -> CR 83C # 48 223 | K155: =+Ruta!K155 -> 1144084729 | M155: =+Ruta!R155 -> 3 | N155: 0.01% | O155: 0 | P155: 3 | Q155: 3 | R155: 0 | S155: 9 | T155: 1 | U155: 30 | V155: 9
B156: =+Ruta!B156 -> SI | C156: =+Ruta!C156 -> 153 | D156: =+Ruta!D156 -> Cali | E156: =+Ruta!E156 -> TAT | F156: =+Ruta!F156 -> Ana Rosa Lopera | G156: =+Ruta!G156 -> Supermercado aranjuez | H156: =+Ruta!H156 -> 3722002 | I156: =+Ruta!I156 -> Marques 3años Botella + Can Agte | J156: =+Ruta!J156 -> CR 23 15B 44 | K156: =+Ruta!K156 -> 1130598374 | M156: =+Ruta!R156 -> 7 | N156: 0.02% | O156: 0 | P156: 3 | Q156: 3 | R156: 1 | S156: 9 | T156: 2 | U156: 30 | V156: 9
B157: =+Ruta!B157 -> SI | C157: =+Ruta!C157 -> 154 | D157: =+Ruta!D157 -> Cali | E157: =+Ruta!E157 -> TAT | F157: =+Ruta!F157 -> Ana Rosa Lopera | G157: =+Ruta!G157 -> Licores sarasty | H157: =+Ruta!H157 -> 3104156267 | I157: =+Ruta!I157 -> Marques 3años Botella + Can Agte | J157: =+Ruta!J157 -> CLL 58A 1B 06 | K157: =+Ruta!K157 -> 16796483 | M157: =+Ruta!R157 -> 5 | N157: 0.02% | O157: 0 | P157: 3 | Q157: 3 | R157: 0 | S157: 9 | T157: 2 | U157: 30 | V157: 9
B158: =+Ruta!B158 -> SI | C158: =+Ruta!C158 -> 155 | D158: =+Ruta!D158 -> Cali | E158: =+Ruta!E158 -> TAT | F158: =+Ruta!F158 -> Ana Rosa Lopera | G158: =+Ruta!G158 -> Licores baratillo | H158: =+Ruta!H158 -> 3187914323 | I158: =+Ruta!I158 -> Marques 3años Botella + Can Agte | J158: =+Ruta!J158 -> CR 26U # 122 94 | K158: =+Ruta!K158 -> 94300252 | M158: =+Ruta!R158 -> 6 | N158: 0.02% | O158: 0 | P158: 3 | Q158: 3 | R158: 1 | S158: 9 | T158: 2 | U158: 30 | V158: 9
B159: =+Ruta!B159 -> SI | C159: =+Ruta!C159 -> 156 | D159: =+Ruta!D159 -> Cali | E159: =+Ruta!E159 -> TAT | F159: =+Ruta!F159 -> Ana Rosa Lopera | G159: =+Ruta!G159 -> Giovanny duque | H159: =+Ruta!H159 -> 3153471142 | I159: =+Ruta!I159 -> Marques 3años Botella + Can Agte | J159: =+Ruta!J159 -> CR 23 12.ª 03 | K159: =+Ruta!K159 -> 98391364 | M159: =+Ruta!R159 -> 3 | N159: 0.01% | O159: 0 | P159: 3 | Q159: 3 | R159: 0 | S159: 9 | T159: 1 | U159: 30 | V159: 9
B160: =+Ruta!B160 -> SI | C160: =+Ruta!C160 -> 157 | D160: =+Ruta!D160 -> Cali | E160: =+Ruta!E160 -> TAT | F160: =+Ruta!F160 -> Ana Rosa Lopera | G160: =+Ruta!G160 -> Dulceria y licores JL | H160: =+Ruta!H160 -> 3218729505 | I160: =+Ruta!I160 -> Marques 3años Botella + Can Agte | J160: =+Ruta!J160 -> CLL 11 # 8 19 | K160: =+Ruta!K160 -> 1113522977 | M160: =+Ruta!R160 -> 25 | N160: 0.08% | O160: 1 | P160: 3 | Q160: 3 | R160: 2 | S160: 9 | T160: 8 | U160: 30 | V160: 9
B161: =+Ruta!B161 -> SI | C161: =+Ruta!C161 -> 158 | D161: =+Ruta!D161 -> Palmira | E161: =+Ruta!E161 -> Mayorista | F161: =+Ruta!F161 -> Katherine Rengifo | G161: =+Ruta!G161 -> miscelanea San Agustin | H161: =+Ruta!H161 -> 2734001 | I161: =+Ruta!I161 -> Marques 3 años + caneca agte-marques botella pague 2 lleve 3 - marques caneca 3 años pague 2 lleve 3 | J161: =+Ruta!J161 -> Cra 28 # 35 - 43 | K161: =+Ruta!K161 -> 0 | M161: =+Ruta!R161 -> 300 | N161: 1.00% | O161: 10 | P161: 8 | Q161: 8 | R161: 30 | S161: 30 | T161: 100 | U161: 100 | V161: 30
B162: =+Ruta!B162 -> SI | C162: =+Ruta!C162 -> 159 | D162: =+Ruta!D162 -> Ginebra | E162: =+Ruta!E162 -> Mayorista | F162: =+Ruta!F162 -> Katherine Rengifo | G162: =+Ruta!G162 -> Estanco Luz | H162: =+Ruta!H162 -> 2561280 | I162: =+Ruta!I162 -> Marques 3 años + caneca agte-marques botella pague 2 lleve 3 - marques caneca 3 años pague 2 lleve 3 | J162: =+Ruta!J162 -> Calle 4 # 3 - 58 | K162: =+Ruta!K162 -> 0 | M162: =+Ruta!R162 -> 192 | N162: 0.64% | O162: 6 | P162: 4 | Q162: 4 | R162: 19 | S162: 20 | T162: 64 | U162: 60 | V162: 20
B163: =+Ruta!B163 -> SI | C163: =+Ruta!C163 -> 160 | D163: =+Ruta!D163 -> Villagorgona | E163: =+Ruta!E163 -> Mayorista | F163: =+Ruta!F163 -> Katherine Rengifo | G163: =+Ruta!G163 -> Comercializadora La Berraquera | H163: =+Ruta!H163 -> 2607952 | I163: =+Ruta!I163 -> oferta ron marques 3 años + caneca de aguardiente | J163: =+Ruta!J163 -> Calle 16 # 10 - 16 | K163: =+Ruta!K163 -> 0 | M163: =+Ruta!R163 -> 360 | N163: 1.20% | O163: 12 | P163: 6 | Q163: 6 | R163: 36 | S163: 40 | T163: 120 | U163: 120 | V163: 40
B164: =+Ruta!B164 -> SI | C164: =+Ruta!C164 -> 161 | D164: =+Ruta!D164 -> Buga | E164: =+Ruta!E164 -> Mayorista | F164: =+Ruta!F164 -> Lina Colonia | G164: =+Ruta!G164 -> Licores La 21 | H164: =+Ruta!H164 -> 316 7156198 | I164: =+Ruta!I164 -> 0 | J164: =+Ruta!J164 -> Calle 21 # 13 - 04 | K164: =+Ruta!K164 -> 0 | M164: =+Ruta!R164 -> 24 | N164: 0.08% | O164: 1 | P164: 3 | Q164: 3 | R164: 2 | S164: 9 | T164: 8 | U164: =+Q164*10 -> 30 | V164: 9
B165: =+Ruta!B165 -> SI | C165: =+Ruta!C165 -> 162 | D165: =+Ruta!D165 -> Buga | E165: =+Ruta!E165 -> Mayorista | F165: =+Ruta!F165 -> Lina Colonia | G165: =+Ruta!G165 -> Licores Estambul | H165: =+Ruta!H165 -> 316 6154526 | I165: =+Ruta!I165 -> 0 | J165: =+Ruta!J165 -> Calle 11 # 11-18 | K165: =+Ruta!K165 -> 0 | L165: =+Ruta!L165 -> 0 | M165: =+Ruta!R165 -> 90 | N165: 0.30% | O165: 3 | P165: 3 | Q165: 3 | R165: =+R$3*N165 -> 9 | S165: =+P165*3 -> 9 | T165: 30 | U165: =+Q165*10 -> 30 | V165: 9
B166: =+Ruta!B166 -> SI | C166: =+Ruta!C166 -> 163 | D166: =+Ruta!D166 -> Buga | E166: =+Ruta!E166 -> Mayorista | F166: =+Ruta!F166 -> Lina Colonia | G166: =+Ruta!G166 -> Distrikopas | H166: =+Ruta!H166 -> 0 | I166: =+Ruta!I166 -> 0 | J166: =+Ruta!J166 -> 0 | K166: =+Ruta!K166 -> 0 | M166: =+Ruta!R166 -> 0 | N166: 0.00% | O166: 0 | P166: 3 | Q166: 3 | R166: 0 | T166: 0
B167: =+Ruta!B167 -> SI | C167: =+Ruta!C167 -> 164 | D167: =+Ruta!D167 -> La Paila | E167: =+Ruta!E167 -> Mayorista | F167: =+Ruta!F167 -> Jhenny Romero | G167: =+Ruta!G167 -> Miscelanea Melany | H167: =+Ruta!H167 -> 3022880752 | I167: =+Ruta!I167 -> 0 | J167: =+Ruta!J167 -> Carrera 4 # 12-61 | K167: =+Ruta!K167 -> 0 | M167: =+Ruta!R167 -> 0 | N167: 0.00% | O167: 0 | P167: 3 | Q167: 3 | R167: 0 | T167: 0
B168: =+Ruta!B184 -> SI | C168: =+Ruta!C184 -> 181 | D168: =+Ruta!D184 -> Tuluá | E168: =+Ruta!E184 -> Licorera | F168: =+Ruta!F184 -> Lina Colonia | G168: =+Ruta!G184 -> Licores VIP | H168: =+Ruta!H184 -> 3216605343 | I168: =+Ruta!I184 -> 0 | J168: =+Ruta!J184 -> Calle 40 # 24 - 78 | K168: =+Ruta!K184 -> 0 | M168: =+Ruta!R184 -> 0 | N168: 0.00% | O168: 0 | P168: 3 | Q168: 3 | R168: 0 | T168: 0
B169: =+Ruta!B185 -> 0 | C169: =+Ruta!C185 -> 0 | D169: =+Ruta!D185 -> 0 | E169: =+Ruta!E185 -> 0 | F169: =+Ruta!F185 -> 0 | G169: =+Ruta!G185 -> 0 | H169: =+Ruta!H185 -> 0 | I169: =+Ruta!I185 -> 0 | J169: =+Ruta!J185 -> 0 | K169: =+Ruta!K185 -> 0 | M169: =+Ruta!R185 -> 0 | N169: 0.00% | O169: 0 | P169: 3 | Q169: 3 | R169: 0 | T169: 0
M170: =+Ruta!R186 -> 0 | N170: 0.00% | S170: 0 | T170: 0 | U170: 0 | V170: =+S170*10 -> 0
M173: =SUBTOTAL(9,M4:M172) -> 2,074 | N173: =SUBTOTAL(9,N4:N172) -> 7% | O173: =SUBTOTAL(9,O4:O172) -> 69 | P173: =SUBTOTAL(9,P4:P172) -> 66 | R173: =SUBTOTAL(9,R4:R172) -> 207 | S173: =SUBTOTAL(9,S4:S172) -> 196 | T173: =SUBTOTAL(9,T4:T172) -> 689 | U173: =SUBTOTAL(9,U4:U172) -> 656 | V173: =SUBTOTAL(9,V4:V172) -> 196

Sheet Hoja1 (hidden)
A3: Suma de Total | B3: Etiquetas de columna
A4: Etiquetas de fila | B4: 1 | C4: 2 | D4: 3 | E4: (en blanco) | F4: Total general | G4: ok | J4: Etiquetas de fila | K4: ok
A5: 2685975 | D5: 10 | F5: 10 | G5: =+VLOOKUP(A5,Ruta!$K$38:$K$98,1,0) ->  | J5: 2685975
A6: 3494086 | B6: 2 | F6: 2 | G6: =+VLOOKUP(A6,Ruta!$K$38:$K$98,1,0) ->  | J6: 3494086
A7: 4453658 | C7: 2 | F7: 2 | G7: =+VLOOKUP(A7,Ruta!$K$38:$K$98,1,0) ->  | J7: 4453658
A8: 4653824 | C8: 20 | F8: 20 | G8: =+VLOOKUP(A8,Ruta!$K$38:$K$98,1,0) ->  | J8: 4653824
A9: 6334121 | C9: 20 | F9: 20 | G9: =+VLOOKUP(A9,Ruta!$K$38:$K$98,1,0) ->  | J9: 6334121
A10: 9850773 | C10: 2 | F10: 2 | G10: =+VLOOKUP(A10,Ruta!$K$38:$K$98,1,0) -> 9850773 | J10: 9850773 | K10: 9850773
A11: 9855053 | C11: 2 | F11: 2 | G11: =+VLOOKUP(A11,Ruta!$K$38:$K$98,1,0) -> 9855053 | J11: 9855053 | K11: 9855053
A12: 10115498 | C12: 2 | F12: 2 | G12: =+VLOOKUP(A12,Ruta!$K$38:$K$98,1,0) -> 10115498 | J12: 10115498 | K12: 10115498
A13: 10224700 | C13: 2 | F13: 2 | G13: =+VLOOKUP(A13,Ruta!$K$38:$K$98,1,0) ->  | J13: 10224700
A14: 10517213 | B14: 2 | F14: 2 | G14: =+VLOOKUP(A14,Ruta!$K$38:$K$98,1,0) ->  | J14: 10517213
A15: 13644003 | C15: 4 | F15: 4 | G15: =+VLOOKUP(A15,Ruta!$K$38:$K$98,1,0) ->  | J15: 13644003
A16: 14981868 | B16: 2 | F16: 2 | G16: =+VLOOKUP(A16,Ruta!$K$38:$K$98,1,0) ->  | J16: 14981868
A17: 14998749 | C17: 2 | F17: 2 | G17: =+VLOOKUP(A17,Ruta!$K$38:$K$98,1,0) ->  | J17: 14998749
A18: 15429690 | C18: 4 | F18: 4 | G18: =+VLOOKUP(A18,Ruta!$K$38:$K$98,1,0) ->  | J18: 15429690
A19: 16377467 | C19: 4 | F19: 4 | G19: =+VLOOKUP(A19,Ruta!$K$38:$K$98,1,0) ->  | J19: 16377467
A20: 16536358 | C20: 20 | F20: 20 | G20: =+VLOOKUP(A20,Ruta!$K$38:$K$98,1,0) ->  | J20: 16536358
A21: 16545153 | C21: 2 | F21: 2 | G21: =+VLOOKUP(A21,Ruta!$K$38:$K$98,1,0) ->  | J21: 16545153
A22: 16738410 | D22: 20 | F22: 20 | G22: =+VLOOKUP(A22,Ruta!$K$38:$K$98,1,0) ->  | J22: 16738410
A23: 16796483 | B23: 4 | F23: 4 | G23: =+VLOOKUP(A23,Ruta!$K$38:$K$98,1,0) ->  | J23: 16796483
A24: 21873936 | C24: 2 | F24: 2 | G24: =+VLOOKUP(A24,Ruta!$K$38:$K$98,1,0) ->  | J24: 21873936
A25: 24720136 | B25: 2 | F25: 2 | G25: =+VLOOKUP(A25,Ruta!$K$38:$K$98,1,0) ->  | J25: 24720136
A26: 25529383 | C26: 2 | F26: 2 | G26: =+VLOOKUP(A26,Ruta!$K$38:$K$98,1,0) ->  | J26: 25529383
A27: 29108561 | B27: 4 | F27: 4 | G27: =+VLOOKUP(A27,Ruta!$K$38:$K$98,1,0) ->  | J27: 29108561
A28: 29122250 | C28: 20 | F28: 20 | G28: =+VLOOKUP(A28,Ruta!$K$38:$K$98,1,0) ->  | J28: 29122250
A29: 29124640 | B29: 2 | F29: 2 | G29: =+VLOOKUP(A29,Ruta!$K$38:$K$98,1,0) ->  | J29: 29124640
A30: 29185357 | B30: 2 | F30: 2 | G30: =+VLOOKUP(A30,Ruta!$K$38:$K$98,1,0) ->  | J30: 29185357
A31: 29495749 | C31: 2 | F31: 2 | G31: =+VLOOKUP(A31,Ruta!$K$38:$K$98,1,0) ->  | J31: 29495749
A32: 29655305 | B32: 2 | F32: 2 | G32: =+VLOOKUP(A32,Ruta!$K$38:$K$98,1,0) ->  | J32: 29655305
A33: 30306298 | D33: 20 | F33: 20 | G33: =+VLOOKUP(A33,Ruta!$K$38:$K$98,1,0) ->  | J33: 30306298
A34: 31263536 | C34: 2 | F34: 2 | G34: =+VLOOKUP(A34,Ruta!$K$38:$K$98,1,0) ->  | J34: 31263536
A35: 31483542 | C35: 10 | F35: 10 | G35: =+VLOOKUP(A35,Ruta!$K$38:$K$98,1,0) ->  | J35: 31483542
A36: 31523227 | C36: 2 | F36: 2 | G36: =+VLOOKUP(A36,Ruta!$K$38:$K$98,1,0) ->  | J36: 31523227
A37: 31533755 | C37: 20 | F37: 20 | G37: =+VLOOKUP(A37,Ruta!$K$38:$K$98,1,0) ->  | J37: 31533755
A38: 31905517 | B38: 2 | F38: 2 | G38: =+VLOOKUP(A38,Ruta!$K$38:$K$98,1,0) ->  | J38: 31905517
A39: 31971928 | B39: 20 | F39: 20 | G39: =+VLOOKUP(A39,Ruta!$K$38:$K$98,1,0) -> 31971928 | J39: 31971928 | K39: 31971928
A40: 38555629 | C40: 20 | F40: 20 | G40: =+VLOOKUP(A40,Ruta!$K$38:$K$98,1,0) ->  | J40: 38555629
A41: 38644553 | C41: 20 | F41: 20 | G41: =+VLOOKUP(A41,Ruta!$K$38:$K$98,1,0) -> 38644553 | J41: 38644553 | K41: 38644553
A42: 38684955 | C42: 20 | F42: 20 | G42: =+VLOOKUP(A42,Ruta!$K$38:$K$98,1,0) ->  | J42: 38684955
A43: 38989090 | C43: 2 | F43: 2 | G43: =+VLOOKUP(A43,Ruta!$K$38:$K$98,1,0) ->  | J43: 38989090
A44: 42116594 | B44: 10 | F44: 10 | G44: =+VLOOKUP(A44,Ruta!$K$38:$K$98,1,0) -> 42116594 | J44: 42116594
A45: 43475437 | C45: 10 | F45: 10 | G45: =+VLOOKUP(A45,Ruta!$K$38:$K$98,1,0) ->  | J45: 43475437
A46: 43642694 | B46: 20 | F46: 20 | G46: =+VLOOKUP(A46,Ruta!$K$38:$K$98,1,0) ->  | J46: 43642694
A47: 66978529 | C47: 20 | F47: 20 | G47: =+VLOOKUP(A47,Ruta!$K$38:$K$98,1,0) ->  | J47: 66978529
A48: 66993437 | C48: 4 | F48: 4 | G48: =+VLOOKUP(A48,Ruta!$K$38:$K$98,1,0) -> 66993437 | J48: 66993437
A49: 67002900 | C49: 20 | F49: 20 | G49: =+VLOOKUP(A49,Ruta!$K$38:$K$98,1,0) ->  | J49: 67002900
A50: 67003801 | C50: 10 | F50: 10 | G50: =+VLOOKUP(A50,Ruta!$K$38:$K$98,1,0) ->  | J50: 67003801
A51: 67026466 | B51: 2 | F51: 2 | G51: =+VLOOKUP(A51,Ruta!$K$38:$K$98,1,0) ->  | J51: 67026466
A52: 70386383 | C52: 2 | F52: 2 | G52: =+VLOOKUP(A52,Ruta!$K$38:$K$98,1,0) ->  | J52: 70386383
A53: 70753695 | C53: 20 | F53: 20 | G53: =+VLOOKUP(A53,Ruta!$K$38:$K$98,1,0) ->  | J53: 70753695
A54: 70828284 | C54: 2 | F54: 2 | G54: =+VLOOKUP(A54,Ruta!$K$38:$K$98,1,0) ->  | J54: 70828284
A55: 71142237 | B55: 4 | F55: 4 | G55: =+VLOOKUP(A55,Ruta!$K$38:$K$98,1,0) ->  | J55: 71142237
A56: 71371926 | C56: 20 | F56: 20 | G56: =+VLOOKUP(A56,Ruta!$K$38:$K$98,1,0) -> 71371926 | J56: 71371926 | K56: 71371926
A57: 94071006 | C57: 20 | F57: 20 | G57: =+VLOOKUP(A57,Ruta!$K$38:$K$98,1,0) ->  | J57: 94071006
A58: 94193276 | B58: 2 | F58: 2 | G58: =+VLOOKUP(A58,Ruta!$K$38:$K$98,1,0) ->  | J58: 94193276
A59: 94386842 | C59: 2 | F59: 2 | G59: =+VLOOKUP(A59,Ruta!$K$38:$K$98,1,0) ->  | J59: 94386842
A60: 94400940 | C60: 2 | F60: 2 | G60: =+VLOOKUP(A60,Ruta!$K$38:$K$98,1,0) ->  | J60: 94400940
A61: 94417963 | C61: 2 | F61: 2 | G61: =+VLOOKUP(A61,Ruta!$K$38:$K$98,1,0) ->  | J61: 94417963
A62: 94422261 | C62: 2 | F62: 2 | G62: =+VLOOKUP(A62,Ruta!$K$38:$K$98,1,0) ->  | J62: 94422261
A63: 94506728 | C63: 2 | F63: 2 | G63: =+VLOOKUP(A63,Ruta!$K$38:$K$98,1,0) ->  | J63: 94506728
A64: 94517200 | C64: 4 | F64: 4 | G64: =+VLOOKUP(A64,Ruta!$K$38:$K$98,1,0) -> 94517200 | J64: 94517200 | K64: 94517200
A65: 94543390 | C65: 20 | F65: 20 | G65: =+VLOOKUP(A65,Ruta!$K$38:$K$98,1,0) -> 94543390 | J65: 94543390 | K65: 94543390
A66: 901235591 | C66: 20 | D66: 10 | F66: 30 | G66: =+VLOOKUP(A66,Ruta!$K$38:$K$98,1,0) ->  | J66: 901235591
A67: 967023320 | C67: 2 | F67: 2 | G67: =+VLOOKUP(A67,Ruta!$K$38:$K$98,1,0) -> 967023320 | J67: 967023320 | K67: 967023320
A68: 1024518932 | C68: 20 | F68: 20 | G68: =+VLOOKUP(A68,Ruta!$K$38:$K$98,1,0) ->  | J68: 1024518932
A69: 1032363617 | C69: 20 | F69: 20 | G69: =+VLOOKUP(A69,Ruta!$K$38:$K$98,1,0) -> 1032363617 | J69: 1032363617 | K69: 1032363617
A70: 1041328694 | C70: 20 | F70: 20 | G70: =+VLOOKUP(A70,Ruta!$K$38:$K$98,1,0) ->  | J70: 1041328694
A71: 1047410654 | C71: 10 | F71: 10 | G71: =+VLOOKUP(A71,Ruta!$K$38:$K$98,1,0) ->  | J71: 1047410654
A72: 1058843345 | C72: 2 | F72: 2 | G72: =+VLOOKUP(A72,Ruta!$K$38:$K$98,1,0) ->  | J72: 1058843345
A73: 1098337533 | B73: 4 | F73: 4 | G73: =+VLOOKUP(A73,Ruta!$K$38:$K$98,1,0) ->  | J73: 1098337533
A74: 1113068055 | B74: 2 | F74: 2 | G74: =+VLOOKUP(A74,Ruta!$K$38:$K$98,1,0) ->  | J74: 1113068055
A75: 1118296911 | B75: 2 | F75: 2 | G75: =+VLOOKUP(A75,Ruta!$K$38:$K$98,1,0) -> 1118296911 | J75: 1118296911 | K75: 1118296911
A76: 1130590173 | C76: 4 | F76: 4 | G76: =+VLOOKUP(A76,Ruta!$K$38:$K$98,1,0) ->  | J76: 1130590173
A77: 1130591583 | C77: 4 | F77: 4 | G77: =+VLOOKUP(A77,Ruta!$K$38:$K$98,1,0) -> 1130591583 | J77: 1130591583 | K77: 1130591583
A78: 1130598374 | C78: 10 | F78: 10 | G78: =+VLOOKUP(A78,Ruta!$K$38:$K$98,1,0) ->  | J78: 1130598374
A79: 1130656816 | B79: 4 | F79: 4 | G79: =+VLOOKUP(A79,Ruta!$K$38:$K$98,1,0) -> 1130656816 | J79: 1130656816 | K79: 1130656816
A80: 1130679015 | C80: 2 | F80: 2 | G80: =+VLOOKUP(A80,Ruta!$K$38:$K$98,1,0) -> 1130679015 | J80: 1130679015
A81: 1143830559 | C81: 2 | F81: 2 | G81: =+VLOOKUP(A81,Ruta!$K$38:$K$98,1,0) ->  | J81: 1143830559
A82: 1143848323 | B82: 2 | F82: 2 | G82: =+VLOOKUP(A82,Ruta!$K$38:$K$98,1,0) ->  | J82: 1143848323
A83: 1143856219 | B83: 2 | F83: 2 | G83: =+VLOOKUP(A83,Ruta!$K$38:$K$98,1,0) ->  | J83: 1143856219
A84: 1143981647 | B84: 10 | F84: 10 | G84: =+VLOOKUP(A84,Ruta!$K$38:$K$98,1,0) ->  | J84: 1143981647
A85: 1144025746 | C85: 4 | F85: 4 | G85: =+VLOOKUP(A85,Ruta!$K$38:$K$98,1,0) ->  | J85: 1144025746
A86: 1144073992 | C86: 4 | F86: 4 | G86: =+VLOOKUP(A86,Ruta!$K$38:$K$98,1,0) ->  | J86: 1144073992
A87: 1151943206 | C87: 20 | F87: 20 | G87: =+VLOOKUP(A87,Ruta!$K$38:$K$98,1,0) ->  | J87: 1151943206
A88: (en blanco)
A89: Total general | B89: 108 | C89: 514 | D89: 60 | F89: 682

Sheet Encuesta (hidden)
A1: ENCUESTA_ID | B1: ASESOR_ID | C1: CODIGO_CLIENTE | D1: FECHA_INICIO | E1: Fecha | F1: Semana | G1: DE 30.000 A 50.000 | H1: DE 50.001 A 100.000 | I1: DE 100.001 A 300.000 | J1: DE 300.001 EN ADELANTE | K1: Total
A2: A126-39 | B2: DBL55 | C2: 31971928 | D2: 2020/05/02 1:10PM | E2: =+MID(D2,1,11) -> 2020/05/02 | F2: 1 | J2: 20 | K2: =+SUM(G2:J2) -> 20
A3: A125-51 | B3: DBL51 | C3: 29655305 | D3: 2020/04/29 8:30AM | E3: 2020/04/29 | F3: 1 | G3: 2 | K3: =+SUM(G3:J3) -> 2
A4: A125-76 | B4: DBL51 | C4: 1143848323 | D4: 2020/04/29 12:13PM | E4: 2020/04/29 | F4: 1 | G4: 2 | K4: 2
A5: A125-4 | B5: DBL51 | C5: 10517213 | D5: 2020/04/28 8:20AM | E5: 2020/04/28 | F5: 1 | G5: 2 | K5: 2
A6: A118-251 | B6: DBL53 | C6: 3494086 | D6: 2020/04/28 8:26AM | E6: 2020/04/28 | F6: 1 | G6: 2 | K6: 2
A7: A116-244 | B7: DBL56 | C7: 67026466 | D7: 2020/04/28 8:51AM | E7: 2020/04/28 | F7: 1 | G7: 2 | K7: 2
A8: A116-245 | B8: DBL56 | C8: 14981868 | D8: 2020/04/28 8:52AM | E8: 2020/04/28 | F8: 1 | G8: 2 | K8: 2
A9: A118-254 | B9: DBL53 | C9: 24720136 | D9: 2020/04/28 9:04AM | E9: 2020/04/28 | F9: 1 | G9: 2 | K9: 2
A10: A116-246 | B10: DBL56 | C10: 31905517 | D10: 2020/04/28 9:24AM | E10: 2020/04/28 | F10: 1 | G10: 2 | K10: 2
A11: A116-247 | B11: DBL56 | C11: 1098337533 | D11: 2020/04/28 9:24AM | E11: 2020/04/28 | F11: 1 | H11: 4 | K11: 4
A12: A116-248 | B12: DBL56 | C12: 1113068055 | D12: 2020/04/28 9:24AM | E12: 2020/04/28 | F12: 1 | G12: 2 | K12: 2
A13: A116-249 | B13: DBL56 | C13: 1143856219 | D13: 2020/04/28 9:24AM | E13: 2020/04/28 | F13: 1 | G13: 2 | K13: 2
A14: A116-250 | B14: DBL56 | C14: 29108561 | D14: 2020/04/28 9:27AM | E14: 2020/04/28 | F14: 1 | H14: 4 | K14: 4
A15: A118-258 | B15: DBL53 | C15: 1143981647 | D15: 2020/04/28 9:41AM | E15: 2020/04/28 | F15: 1 | I15: 10 | K15: 10
A16: A118-260 | B16: DBL53 | C16: 94193276 | D16: 2020/04/28 9:54AM | E16: 2020/04/28 | F16: 1 | G16: 2 | K16: 2
A17: A118-265 | B17: DBL53 | C17: 16796483 | D17: 2020/04/28 11:08AM | E17: 2020/04/28 | F17: 1 | H17: 4 | K17: 4
A18: A118-266 | B18: DBL53 | C18: 1130656816 | D18: 2020/04/28 11:26AM | E18: 2020/04/28 | F18: 1 | H18: 4 | K18: 4
A19: A103-454 | B19: DBL52 | C19: 29185357 | D19: 2020/04/28 12:46PM | E19: 2020/04/28 | F19: 1 | G19: 2 | K19: 2
A20: A118-271 | B20: DBL53 | C20: 71142237 | D20: 2020/04/28 12:46PM | E20: 2020/04/28 | F20: 1 | H20: 4 | K20: 4
A21: A114-368 | B21: DBL50 | C21: 1118296911 | D21: 2020/04/28 12:51PM | E21: 2020/04/28 | F21: 1 | G21: 2 | K21: 2
A22: A123-303 | B22: DBL55 | C22: 42116594 | D22: 2020/04/28 1:06PM | E22: 2020/04/28 | F22: 1 | I22: 10 | K22: 10
A23: A103-458 | B23: DBL52 | C23: 43642694 | D23: 2020/04/28 1:12PM | E23: 2020/04/28 | F23: 1 | J23: 20 | K23: 20
A24: A118-274 | B24: DBL53 | C24: 29124640 | D24: 2020/04/28 1:18PM | E24: 2020/04/28 | F24: 1 | G24: 2 | K24: 2
A25: A118-385 | B25: DBL53 | C25: 9850773 | D25: 2020/05/09 10:11AM | E25: 2020/05/09 | F25: 2 | G25: 2 | K25: 2
A26: A126-225 | B26: DBL55 | C26: 29495749 | D26: 2020/05/09 1:19PM | E26: 2020/05/09 | F26: 2 | G26: 2 | K26: 2
A27: A114-531 | B27: DBL50 | C27: 31523227 | D27: 2020/05/08 8:41AM | E27: 2020/05/08 | F27: 2 | G27: 2 | K27: 2
A28: A118-379 | B28: DBL53 | C28: 1130598374 | D28: 2020/05/08 11:02AM | E28: 2020/05/08 | F28: 2 | I28: 10 | K28: 10
A29: A114-552 | B29: DBL50 | C29: 967023320 | D29: 2020/05/08 1:55PM | E29: 2020/05/08 | F29: 2 | G29: 2 | K29: 2
A30: A114-554 | B30: DBL50 | C30: 94422261 | D30: 2020/05/08 1:57PM | E30: 2020/05/08 | F30: 2 | G30: 2 | K30: 2
A31: A114-505 | B31: DBL50 | C31: 25529383 | D31: 2020/05/07 10:36AM | E31: 2020/05/07 | F31: 2 | G31: 2 | K31: 2
A32: A109-329 | B32: DBL54 | C32: 16536358 | D32: 2020/05/06 10:52AM | E32: 2020/05/06 | F32: 2 | J32: 20 | K32: 20
A33: A109-290 | B33: DBL54 | C33: 70753695 | D33: 2020/05/05 9:17AM | E33: 2020/05/05 | F33: 2 | J33: 20 | K33: 20
A34: A109-293 | B34: DBL54 | C34: 1041328694 | D34: 2020/05/05 9:19AM | E34: =+MID(D34,1,11) -> 2020/05/05 | F34: 2 | J34: 20 | K34: 20
A35: A109-295 | B35: DBL54 | C35: 1024518932 | D35: 2020/05/05 9:25AM | E35: 2020/05/05 | F35: 2 | J35: 20 | K35: 20
A36: A109-297 | B36: DBL54 | C36: 43475437 | D36: 2020/05/05 9:30AM | E36: 2020/05/05 | F36: 2 | I36: 10 | K36: 10
A37: A109-301 | B37: DBL54 | C37: 1047410654 | D37: 2020/05/05 10:08AM | E37: 2020/05/05 | F37: 2 | I37: 10 | K37: 10
A38: A109-304 | B38: DBL54 | C38: 1151943206 | D38: 2020/05/05 10:26AM | E38: 2020/05/05 | F38: 2 | J38: 20 | K38: 20
A39: A109-306 | B39: DBL54 | C39: 66978529 | D39: 2020/05/05 10:36AM | E39: 2020/05/05 | F39: 2 | J39: 20 | K39: 20
A40: A114-490 | B40: DBL50 | C40: 94417963 | D40: 2020/05/05 10:40AM | E40: 2020/05/05 | F40: 2 | G40: 2 | K40: 2
A41: A109-309 | B41: DBL54 | C41: 29122250 | D41: 2020/05/05 11:32AM | E41: 2020/05/05 | F41: 2 | J41: 20 | K41: 20
A42: A114-496 | B42: DBL50 | C42: 14998749 | D42: 2020/05/05 12:08PM | E42: 2020/05/05 | F42: 2 | G42: 2 | K42: 2
A43: A109-318 | B43: DBL54 | C43: 71371926 | D43: 2020/05/05 1:11PM | E43: 2020/05/05 | F43: 2 | J43: 20 | K43: 20
A44: A109-320 | B44: DBL54 | C44: 38684955 | D44: 2020/05/05 1:19PM | E44: 2020/05/05 | F44: 2 | J44: 20 | K44: 20
A45: A109-322 | B45: DBL54 | C45: 94071006 | D45: 2020/05/05 1:30PM | E45: 2020/05/05 | F45: 2 | J45: 20 | K45: 20
A46: A126-63 | B46: DBL55 | C46: 1144025746 | D46: 2020/05/04 8:12AM | E46: 2020/05/04 | F46: 2 | H46: 4 | K46: 4
A47: A118-300 | B47: DBL53 | C47: 10224700 | D47: 2020/05/04 8:27AM | E47: 2020/05/04 | F47: 2 | G47: 2 | K47: 2
A48: A118-303 | B48: DBL53 | C48: 94517200 | D48: 2020/05/04 8:35AM | E48: 2020/05/04 | F48: 2 | H48: 4 | K48: 4
A49: A125-88 | B49: DBL51 | C49: 94400940 | D49: 2020/05/04 8:35AM | E49: 2020/05/04 | F49: 2 | G49: 2 | K49: 2
A50: A126-67 | B50: DBL55 | C50: 901235591 | D50: 2020/05/04 8:36AM | E50: 2020/05/04 | F50: 2 | J50: 20 | K50: 20
A51: A125-90 | B51: DBL51 | C51: 1143830559 | D51: 2020/05/04 8:37AM | E51: 2020/05/04 | F51: 2 | G51: 2 | K51: 2
A52: A125-92 | B52: DBL51 | C52: 94386842 | D52: 2020/05/04 8:39AM | E52: 2020/05/04 | F52: 2 | G52: 2 | K52: 2
A53: A125-94 | B53: DBL51 | C53: 1130590173 | D53: 2020/05/04 8:42AM | E53: 2020/05/04 | F53: 2 | H53: 4 | K53: 4
A54: A118-306 | B54: DBL53 | C54: 13644003 | D54: 2020/05/04 8:48AM | E54: 2020/05/04 | F54: 2 | H54: 4 | K54: 4
A55: A125-97 | B55: DBL51 | C55: 15429690 | D55: 2020/05/04 8:50AM | E55: 2020/05/04 | F55: 2 | H55: 4 | K55: 4
A56: A106-348 | B56: DBL58 | C56: 66993437 | D56: 2020/05/04 8:55AM | E56: 2020/05/04 | F56: 2 | H56: 4 | K56: 4
A57: A109-254 | B57: DBL54 | C57: 16545153 | D57: 2020/05/04 8:57AM | E57: 2020/05/04 | F57: 2 | G57: 2 | K57: 2
A58: A114-445 | B58: DBL50 | C58: 21873936 | D58: 2020/05/04 9:22AM | E58: 2020/05/04 | F58: 2 | G58: 2 | K58: 2
A59: A106-356 | B59: DBL58 | C59: 1130679015 | D59: 2020/05/04 9:29AM | E59: 2020/05/04 | F59: 2 | G59: 2 | K59: 2
A60: A118-313 | B60: DBL53 | C60: 38555629 | D60: 2020/05/04 9:49AM | E60: 2020/05/04 | F60: 2 | J60: 20 | K60: 20
A61: A109-261 | B61: DBL54 | C61: 6334121 | D61: 2020/05/04 10:02AM | E61: 2020/05/04 | F61: 2 | J61: 20 | K61: 20
A62: A118-316 | B62: DBL53 | C62: 16377467 | D62: 2020/05/04 10:20AM | E62: 2020/05/04 | F62: 2 | H62: 4 | K62: 4
A63: A109-264 | B63: DBL54 | C63: 38644553 | D63: 2020/05/04 10:57AM | E63: 2020/05/04 | F63: 2 | J63: 20 | K63: 20
A64: A118-320 | B64: DBL53 | C64: 1130591583 | D64: 2020/05/04 11:03AM | E64: 2020/05/04 | F64: 2 | H64: 4 | K64: 4
A65: A114-458 | B65: DBL50 | C65: 70386383 | D65: 2020/05/04 11:24AM | E65: 2020/05/04 | F65: 2 | G65: 2 | K65: 2
A66: A109-267 | B66: DBL54 | C66: 94543390 | D66: 2020/05/04 11:38AM | E66: =+MID(D66,1,11) -> 2020/05/04 | F66: 2 | J66: 20 | K66: 20
A67: A114-461 | B67: DBL50 | C67: 10115498 | D67: 2020/05/04 11:43AM | E67: 2020/05/04 | F67: 2 | G67: 2 | K67: =+SUM(G67:J67) -> 2
A68: A118-327 | B68: DBL53 | C68: 1144073992 | D68: 2020/05/04 11:49AM | E68: 2020/05/04 | F68: 2 | H68: 4 | K68: 4
A69: A114-467 | B69: DBL50 | C69: 38989090 | D69: 2020/05/04 12:24PM | E69: 2020/05/04 | F69: 2 | G69: 2 | K69: 2
A70: A125-115 | B70: DBL51 | C70: 31263536 | D70: 2020/05/04 12:27PM | E70: 2020/05/04 | F70: 2 | G70: 2 | K70: 2
A71: A118-334 | B71: DBL53 | C71: 94506728 | D71: 2020/05/04 12:42PM | E71: 2020/05/04 | F71: 2 | G71: 2 | K71: 2
A72: A109-273 | B72: DBL54 | C72: 4653824 | D72: 2020/05/04 12:55PM | E72: 2020/05/04 | F72: 2 | J72: 20 | K72: 20
A73: A103-521 | B73: DBL52 | C73: 31483542 | D73: 2020/05/04 1:33PM | E73: 2020/05/04 | F73: 2 | I73: 10 | K73: 10
A74: A126-81 | B74: DBL55 | C74: 1032363617 | D74: 2020/05/04 1:35PM | E74: 2020/05/04 | F74: 2 | J74: 20 | K74: 20
A75: A114-478 | B75: DBL50 | C75: 9855053 | D75: 2020/05/04 1:38PM | E75: 2020/05/04 | F75: 2 | G75: 2 | K75: 2
A76: A118-338 | B76: DBL53 | C76: 4453658 | D76: 2020/05/04 1:48PM | E76: 2020/05/04 | F76: 2 | G76: 2 | K76: 2
A77: A109-277 | B77: DBL54 | C77: 31533755 | D77: 2020/05/04 2:00PM | E77: 2020/05/04 | F77: 2 | J77: 20 | K77: 20
A78: A109-279 | B78: DBL54 | C78: 67003801 | D78: 2020/05/04 2:04PM | E78: 2020/05/04 | F78: 2 | I78: 10 | K78: 10
A79: A109-282 | B79: DBL54 | C79: 67002900 | D79: 2020/05/04 2:24PM | E79: 2020/05/04 | F79: 2 | J79: 20 | K79: 20
A80: A114-486 | B80: DBL50 | C80: 1058843345 | D80: 2020/05/04 3:07PM | E80: 2020/05/04 | F80: 2 | G80: 2 | K80: 2
A81: A106-386 | B81: DBL58 | C81: 70828284 | D81: 2020/05/04 3:15PM | E81: 2020/05/04 | F81: 2 | G81: 2 | K81: 2
A82: A126-253 | B82: DBL55 | C82: 901235591 | D82: 2020/05/11 8:29AM | E82: 2020/05/11 | F82: 3 | I82: 10 | K82: 10
A83: A103-557 | B83: DBL52 | C83: 2685975 | D83: 2020/05/11 10:53AM | E83: 2020/05/11 | F83: 3 | I83: 10 | K83: 10
A84: A109-355 | B84: DBL54 | C84: 16738410 | D84: 2020/05/11 11:15AM | E84: 2020/05/11 | F84: 3 | J84: 20 | K84: 20
A85: A103-562 | B85: DBL52 | C85: 30306298 | D85: 2020/05/11 11:31AM | E85: 2020/05/11 | F85: 3 | J85: 20 | K85: 20
